Workbook

Sheet Sverigeranking
B1: Svenska Hästskokastarförbundets Sverigeranking | W1: Antal kastare som deltagit i samtliga tävlingar senaste 12 månaderna: | X1: =COUNTIF(F5:F199,15) -> 3 | AE1: Antal starter senaste 12 månaderna föruton DM: | AF1: =SUM(I2:Z2)+(AH1)-(O2+P2+W2+X2) -> 902 | AH1: =Miniorranking!$AC$1 -> 8
B2: 2020-03-08 | I2: =COUNT(I5:I220) -> 46 | J2: =COUNT(J5:J220) -> 68 | K2: 81 | L2: 90 | M2: 82 | N2: 48 | O2: 30 | P2: 33 | Q2: 78 | R2: 60 | S2: 56 | T2: 68 | U2: 61 | V2: =COUNT(V5:V220) -> 34 | W2: 31 | X2: 45 | Y2: 64 | Z2: 58
B3: Säsong 2019 / 2020 | I3: =IF(SUM(I5:I400)>100,1,"") -> 1 | J3: 1 | K3: 1 | L3: 1 | M3: 1 | N3: =IF(SUM(N5:N400)>-1,1,"") -> 1 | O3: 1 | P3: 1 | Q3: 1 | R3: 1 | S3: 1 | T3: 1 | U3: 1 | V3: =IF(SUM(V5:V400)>100,1,"") -> 1 | W3: 1 | X3: 1 | Y3: 1 | Z3: 1 | AE3: Snitt / tävling förutom DM : | AF3: =SUM(AF1/12) -> 75.16666667
A4: Plac. | B4: Kastare | C4: Klubb | D4: Rankingpoäng | F4: Antal tävlingar | G4: Snitt per serie | I4: Moheda Open | J4: Jämjö Open | K4: Björkenäs Open | L4: Utomhus-SM Dag 1 | M4: Utomhus-SM Dag 2 | N4: Vaxholm Open | O4: Utomhus Smålandsmästaren | P4: Blekinge-DM Ute | Q4: Dynapac Open | R4: Åseda Open | S4: Höstskon Nybro | T4: Carlskrona Cup | U4: Sibbamåla Open | V4: Stockholms-DM | W4: Inomhus Smålandsmästaren | X4: Blekinge DM inne | Y4: Inomhus-SM | Z4: Tingsryds Open | AA4: Antal arrangerade tävlingar | AB4: Ej medräknat resultat | AC4: Ej medräknat resultat | AD4: Ej medräknat resultat | BH4: 1 | BI4: 2 | BJ4: 3 | BK4: 4 | BL4: 5 | BM4: 6 | BN4: 7 | BO4: 8 | BP4: 9 | BQ4: 10 | BR4: 11 | BS4: 12 | BT4: 13 | BU4: 14 | BV4: 15 | BW4: 16 | BX4: ej medräknad | CA4: missade tävlingar
A5: =IF(BE5>1,AF5&" ("&AE5&")",AF5&" ("&AG5&")") -> 1 (1) | B5: Sandor Bodi | C5: Växjö | D5: =SUM(BH5:BS5) -> 4802 | F5: =COUNT(I5:Z5) -> 13 | G5: =SUM((CC5)/(F5*2)) -> 193.8846154 | I5: 424 | J5: 425 | K5: 415 | L5: 443 | M5: 511 | N5: 239 | O5: 391 | Q5: 371 | R5: 289 | S5: 424 | T5: 383 | W5: 446 | Y5: 280 | AA5: =SUM($I$3:$Z$3) -> 18 | AB5: =BX5 -> 239 | AC5: =BY5 -> - | AD5: =BZ5 -> - | AE5: 1 | AF5: =IF(D5<D4,AH5,AF4) -> 1 | AG5: =IF(F5>1,ROW(1:1),"-") -> 1 | AH5: 1 | AK5: =COUNT($I$3,I5,H5) -> 2 | AL5: =COUNT($J$3,J5,I5) -> 3 | AM5: =COUNT($K$3,K5,J5) -> 3 | AN5: =COUNT($L$3,L5,K5) -> 3 | AO5: =COUNT($M$3,M5,L5) -> 3 | AP5: =COUNT($N$3,N5,M5) -> 3 | AQ5: =COUNT($O$3,O5,N5) -> 3 | AR5: =COUNT($P$3,P5,O5) -> 2 | AS5: =COUNT($Q$3,Q5,P5) -> 2 | AT5: =COUNT($R$3,R5,Q5) -> 3 | AU5: =COUNT($S$3,S5,R5) -> 3 | AV5: =COUNT($T$3,T5,S5) -> 3 | AW5: =COUNT($U$3,U5,T5) -> 2 | AX5: =COUNT($V$3,V5,U5) -> 1 | AY5: =COUNT($W$3,W5,V5) -> 2 | AZ5: =COUNT($X$3,X5,W5) -> 2 | BA5: =COUNT($Y$3,Y5,X5) -> 2 | BB5: =COUNT($Z$3,Z5,Y5) -> 2 | BE5: =IF(H5="x",1,2) -> 2 | BH5: =IF($F5>0,LARGE($I5:$Z5,1),"") -> 511 | BI5: =IF($F5>1,LARGE($I5:$Z5,2),"") -> 446 | BJ5: =IF($F5>2,LARGE($I5:$Z5,3),"") -> 443 | BK5: =IF($F5>3,LARGE($I5:$Z5,4),"") -> 425 | BL5: =IF($F5>4,LARGE($I5:$Z5,5),"") -> 424 | BM5: =IF($F5>5,LARGE($I5:$Z5,6),"") -> 424 | BN5: =IF($F5>6,LARGE($I5:$Z5,7),"") -> 415 | BO5: =IF($F5>7,LARGE($I5:$Z5,8),"") -> 391 | BP5: =IF($F5>8,LARGE($I5:$Z5,9),"") -> 383 | BQ5: =IF($F5>9,LARGE($I5:$Z5,10),"") -> 371 | BR5: =IF($F5>10,LARGE($I5:$Z5,11),"") -> 289 | BS5: =IF($F5>11,LARGE($I5:$Z5,12),"") -> 280 | BT5: =IF($F5>12,LARGE($I5:$Z5,13),"") -> 239 | BU5: =IF($F5>13,LARGE($I5:$Z5,14),"") ->  | BV5: =IF($F5>14,LARGE($I5:$Z5,15),"") ->  | BW5: =IF($F5>15,LARGE($I5:$Z5,16),"") ->  | BX5: =IF($F5>12,LARGE($I5:$Z5,13),"-") -> 239 | BY5: =IF($F5>13,LARGE($I5:$Z5,14),"-") -> - | BZ5: =IF($F5>14,LARGE($I5:$Z5,15),"-") -> - | CA5: =SUM(AA5-F5)-2 -> 3 | CC5: =SUM(BH5:BW5) -> 5041 | EN5: 1 | EP5: =IF(BE5>=1,AF5,"") -> 1 | EQ5: =IF(BE5>1,"("&AE5&")","("&AG5&")") -> (1)
A6: 2 (2) | B6: Matz Karlsson | C6: Korpen Åseda | D6: 4650 | F6: 14 | G6: 184.5714286 | I6: 397 | J6: 517 | K6: 374 | L6: 398 | M6: 423 | O6: 398 | Q6: 360 | R6: 266 | S6: 472 | T6: 403 | U6: 252 | W6: 342 | Y6: 268 | Z6: 298 | AA6: 18 | AB6: 266 | AC6: 252 | AD6: - | AE6: 2 | AF6: 2 | AG6: 2 | AH6: 2 | AK6: =COUNT($I$3,I6,H6) -> 2 | AL6: =COUNT($J$3,J6,I6) -> 3 | AM6: =COUNT($K$3,K6,J6) -> 3 | AN6: =COUNT($L$3,L6,K6) -> 3 | AO6: =COUNT($M$3,M6,L6) -> 3 | AP6: =COUNT($N$3,N6,M6) -> 2 | AQ6: =COUNT($O$3,O6,N6) -> 2 | AR6: =COUNT($P$3,P6,O6) -> 2 | AS6: =COUNT($Q$3,Q6,P6) -> 2 | AT6: =COUNT($R$3,R6,Q6) -> 3 | AU6: =COUNT($S$3,S6,R6) -> 3 | AV6: =COUNT($T$3,T6,S6) -> 3 | AW6: =COUNT($U$3,U6,T6) -> 3 | AX6: =COUNT($V$3,V6,U6) -> 2 | AY6: =COUNT($W$3,W6,V6) -> 2 | AZ6: =COUNT($X$3,X6,W6) -> 2 | BA6: =COUNT($Y$3,Y6,X6) -> 2 | BB6: =COUNT($Z$3,Z6,Y6) -> 3 | BE6: 2 | BH6: 517 | BI6: 472 | BJ6: 423 | BK6: 403 | BL6: 398 | BM6: 398 | BN6: 397 | BO6: 374 | BP6: 360 | BQ6: 342 | BR6: 298 | BS6: 268 | BT6: 266 | BU6: 252 | BX6: 266 | BY6: 252 | BZ6: - | CA6: 2 | CC6: 5168 | EN6: 2 | EP6: 2 | EQ6: (2)
A7: 3 (3) | B7: Peter Olsson | C7: Dynapac | D7: 4253 | F7: 15 | G7: 164.3666667 | I7: 449 | J7: 540 | K7: 347 | L7: 334 | M7: 130 | N7: 313 | P7: 282 | Q7: 302 | R7: 349 | S7: 283 | T7: 367 | U7: 267 | X7: 336 | Y7: 351 | Z7: 281 | AA7: 18 | AB7: 281 | AC7: 267 | AD7: 130 | AE7: 3 | AF7: 3 | AG7: 3 | AH7: 3 | AK7: 2 | AL7: 3 | AM7: 3 | AN7: 3 | AO7: 3 | AP7: 3 | AQ7: 2 | AR7: 2 | AS7: 3 | AT7: 3 | AU7: 3 | AV7: 3 | AW7: 3 | AX7: 2 | AY7: 1 | AZ7: 2 | BA7: 3 | BB7: 3 | BE7: 2 | BH7: 540 | BI7: 449 | BJ7: 367 | BK7: 351 | BL7: 349 | BM7: 347 | BN7: 336 | BO7: 334 | BP7: 313 | BQ7: 302 | BR7: 283 | BS7: 282 | BT7: 281 | BU7: 267 | BV7: 130 | BX7: 281 | BY7: 267 | BZ7: 130 | CA7: 1 | CC7: 4931 | EN7: 3 | EP7: 3 | EQ7: (3)
A8: 4 (4) | B8: Kent Sundahl | C8: Carlskrona | D8: 4212 | F8: 12 | G8: 175.5 | I8: 485 | J8: 391 | K8: 377 | L8: 329 | M8: 426 | P8: 283 | Q8: 252 | R8: 398 | T8: 373 | X8: 346 | Y8: 298 | Z8: 254 | AA8: 18 | AB8: - | AC8: - | AD8: - | AE8: 4 | AF8: 4 | AG8: 4 | AH8: 4 | AK8: 2 | AL8: 3 | AM8: 3 | AN8: 3 | AO8: 3 | AP8: 2 | AQ8: 1 | AR8: 2 | AS8: 3 | AT8: 3 | AU8: 2 | AV8: 2 | AW8: 2 | AX8: 1 | AY8: 1 | AZ8: 2 | BA8: 3 | BB8: 3 | BE8: 2 | BH8: 485 | BI8: 426 | BJ8: 398 | BK8: 391 | BL8: 377 | BM8: 373 | BN8: 346 | BO8: 329 | BP8: 298 | BQ8: 283 | BR8: 254 | BS8: 252 | BX8: - | BY8: - | BZ8: - | CA8: 4 | CC8: 4212 | EN8: 4 | EP8: 4 | EQ8: (4)
A9: 5 (5) | B9: Gert Karlsson | C9: Korpen Åseda | D9: 4042 | F9: 15 | G9: 160.6666667 | I9: 349 | J9: 399 | K9: 326 | L9: 326 | M9: 370 | N9: 265 | O9: 305 | Q9: 316 | R9: 420 | S9: 325 | T9: 280 | U9: 264 | W9: 335 | Y9: 249 | Z9: 291 | AA9: 18 | AB9: 265 | AC9: 264 | AD9: 249 | AE9: 5 | AF9: 5 | AG9: 5 | AH9: 5 | AK9: 2 | AL9: 3 | AM9: 3 | AN9: 3 | AO9: 3 | AP9: 3 | AQ9: 3 | AR9: 2 | AS9: 2 | AT9: 3 | AU9: 3 | AV9: 3 | AW9: 3 | AX9: 2 | AY9: 2 | AZ9: 2 | BA9: 2 | BB9: 3 | BE9: 2 | BH9: 420 | BI9: 399 | BJ9: 370 | BK9: 349 | BL9: 335 | BM9: 326 | BN9: 326 | BO9: 325 | BP9: 316 | BQ9: 305 | BR9: 291 | BS9: 280 | BT9: 265 | BU9: 264 | BV9: 249 | BX9: 265 | BY9: 264 | BZ9: 249 | CA9: 1 | CC9: 4820 | EN9: 5 | EP9: 5 | EQ9: (5)
A10: 6 (6) | B10: Joel Sundahl | C10: Carlskrona | D10: 3978 | F10: 12 | G10: 165.75 | I10: 495 | J10: 255 | K10: 396 | L10: 282 | M10: 335 | P10: 207 | Q10: 330 | R10: 358 | T10: 293 | X10: 424 | Y10: 270 | Z10: 333 | AA10: 18 | AB10: - | AC10: - | AD10: - | AE10: 6 | AF10: 6 | AG10: 6 | AH10: 6 | AK10: 2 | AL10: 3 | AM10: 3 | AN10: 3 | AO10: 3 | AP10: 2 | AQ10: 1 | AR10: 2 | AS10: 3 | AT10: 3 | AU10: 2 | AV10: 2 | AW10: 2 | AX10: 1 | AY10: 1 | AZ10: 2 | BA10: 3 | BB10: 3 | BE10: 2 | BH10: 495 | BI10: 424 | BJ10: 396 | BK10: 358 | BL10: 335 | BM10: 333 | BN10: 330 | BO10: 293 | BP10: 282 | BQ10: 270 | BR10: 255 | BS10: 207 | BX10: - | BY10: - | BZ10: - | CA10: 4 | CC10: 3978 | EN10: 6 | EP10: 6 | EQ10: (6)
A11: 7 (7) | B11: Ingvar Eriksson | C11: Carlskrona | D11: 3961 | F11: 14 | G11: 157.6071429 | I11: 353 | J11: 332 | K11: 328 | L11: 378 | M11: 328 | P11: 232 | Q11: 312 | R11: 220 | S11: 323 | T11: 353 | U11: 355 | X11: 302 | Y11: 273 | Z11: 324 | AA11: 18 | AB11: 232 | AC11: 220 | AD11: - | AE11: 7 | AF11: 7 | AG11: 7 | AH11: 7 | AK11: 2 | AL11: 3 | AM11: 3 | AN11: 3 | AO11: 3 | AP11: 2 | AQ11: 1 | AR11: 2 | AS11: 3 | AT11: 3 | AU11: 3 | AV11: 3 | AW11: 3 | AX11: 2 | AY11: 1 | AZ11: 2 | BA11: 3 | BB11: 3 | BE11: 2 | BH11: 378 | BI11: 355 | BJ11: 353 | BK11: 353 | BL11: 332 | BM11: 328 | BN11: 328 | BO11: 324 | BP11: 323 | BQ11: 312 | BR11: 302 | BS11: 273 | BT11: 232 | BU11: 220 | BX11: 232 | BY11: 220 | BZ11: - | CA11: 2 | CC11: 4413 | EN11: 7 | EP11: 7 | EQ11: (7)
A12: 8 (8) | B12: Leo Andersson | C12: Carlskrona | D12: 3738 | F12: 14 | G12: 149.5 | I12: 423 | J12: 298 | K12: 282 | L12: 295 | M12: 386 | P12: 292 | Q12: 312 | R12: 287 | S12: 269 | T12: 264 | U12: 268 | X12: 362 | Y12: 204 | Z12: 244 | AA12: 18 | AB12: 244 | AC12: 204 | AD12: - | AE12: 8 | AF12: 8 | AG12: 8 | AH12: 8 | AK12: 2 | AL12: 3 | AM12: 3 | AN12: 3 | AO12: 3 | AP12: 2 | AQ12: 1 | AR12: 2 | AS12: 3 | AT12: 3 | AU12: 3 | AV12: 3 | AW12: 3 | AX12: 2 | AY12: 1 | AZ12: 2 | BA12: 3 | BB12: 3 | BE12: 2 | BH12: 423 | BI12: 386 | BJ12: 362 | BK12: 312 | BL12: 298 | BM12: 295 | BN12: 292 | BO12: 287 | BP12: 282 | BQ12: 269 | BR12: 268 | BS12: 264 | BT12: 244 | BU12: 204 | BX12: 244 | BY12: 204 | BZ12: - | CA12: 2 | CC12: 4186 | EN12: 8 | EP12: 8 | EQ12: (8)
A13: 9 (9) | B13: Anita Fabbeke | C13: Dynapac | D13: 3704 | F13: 13 | G13: 149.6153846 | I13: 277 | J13: 401 | K13: 359 | L13: 353 | M13: 345 | N13: 186 | P13: 321 | R13: 261 | S13: 333 | U13: 242 | X13: 339 | Y13: 283 | Z13: 190 | AA13: 18 | AB13: 186 | AC13: - | AD13: - | AE13: 9 | AF13: 9 | AG13: 9 | AH13: 9 | AK13: 2 | AL13: 3 | AM13: 3 | AN13: 3 | AO13: 3 | AP13: 3 | AQ13: 2 | AR13: 2 | AS13: 2 | AT13: 2 | AU13: 3 | AV13: 2 | AW13: 2 | AX13: 2 | AY13: 1 | AZ13: 2 | BA13: 3 | BB13: 3 | BE13: 2 | BH13: 401 | BI13: 359 | BJ13: 353 | BK13: 345 | BL13: 339 | BM13: 333 | BN13: 321 | BO13: 283 | BP13: 277 | BQ13: 261 | BR13: 242 | BS13: 190 | BT13: 186 | BX13: 186 | BY13: - | BZ13: - | CA13: 3 | CC13: 3890 | EN13: 9 | EP13: 9 | EQ13: (9)
A14: 10 (10) | B14: Mattias Gneupel | C14: Sibbamåla | D14: 3502 | F14: 13 | G14: 144.2692308 | I14: 436 | K14: 256 | L14: 289 | M14: 303 | N14: 263 | P14: 276 | Q14: 319 | R14: 292 | S14: 289 | U14: 249 | X14: 257 | Y14: 273 | Z14: 249 | AA14: 18 | AB14: 249 | AC14: - | AD14: - | AE14: 10 | AF14: 10 | AG14: 10 | AH14: 10 | AK14: 2 | AL14: 2 | AM14: 2 | AN14: 3 | AO14: 3 | AP14: 3 | AQ14: 2 | AR14: 2 | AS14: 3 | AT14: 3 | AU14: 3 | AV14: 2 | AW14: 2 | AX14: 2 | AY14: 1 | AZ14: 2 | BA14: 3 | BB14: 3 | BE14: 2 | BH14: 436 | BI14: 319 | BJ14: 303 | BK14: 292 | BL14: 289 | BM14: 289 | BN14: 276 | BO14: 273 | BP14: 263 | BQ14: 257 | BR14: 256 | BS14: 249 | BT14: 249 | BX14: 249 | BY14: - | BZ14: - | CA14: 3 | CC14: 3751 | EN14: 10 | EP14: 10 | EQ14: (10)
A15: 11 (11) | B15: Gebriela Kostantinos | C15: Korpen Åseda | D15: 3472 | F15: 11 | G15: 157.8181818 | I15: 369 | K15: 384 | L15: 200 | M15: 314 | O15: 258 | Q15: 373 | R15: 313 | S15: 276 | U15: 349 | W15: 339 | Z15: 297 | AA15: 18 | AB15: - | AC15: - | AD15: - | AE15: 11 | AF15: 11 | AG15: 11 | AH15: 11 | AK15: 2 | AL15: 2 | AM15: 2 | AN15: 3 | AO15: 3 | AP15: 2 | AQ15: 2 | AR15: 2 | AS15: 2 | AT15: 3 | AU15: 3 | AV15: 2 | AW15: 2 | AX15: 2 | AY15: 2 | AZ15: 2 | BA15: 1 | BB15: 2 | BE15: 2 | BH15: 384 | BI15: 373 | BJ15: 369 | BK15: 349 | BL15: 339 | BM15: 314 | BN15: 313 | BO15: 297 | BP15: 276 | BQ15: 258 | BR15: 200 | BX15: - | BY15: - | BZ15: - | CA15: 5 | CC15: 3472 | EN15: 11 | EP15: 11 | EQ15: (11)
A16: 12 (12) | B16: Magnus Israelsson | C16: Sibbamåla | D16: 3401 | F16: 13 | G16: 135.7307692 | I16: 371 | J16: 295 | K16: 302 | L16: 235 | M16: 291 | P16: 198 | Q16: 288 | R16: 151 | S16: 128 | T16: 321 | U16: 343 | Y16: 291 | Z16: 315 | AA16: 18 | AB16: 128 | AC16: - | AD16: - | AE16: 12 | AF16: 12 | AG16: 12 | AH16: 12 | AK16: 2 | AL16: 3 | AM16: 3 | AN16: 3 | AO16: 3 | AP16: 2 | AQ16: 1 | AR16: 2 | AS16: 3 | AT16: 3 | AU16: 3 | AV16: 3 | AW16: 3 | AX16: 2 | AY16: 1 | AZ16: 1 | BA16: 2 | BB16: 3 | BE16: 2 | BH16: 371 | BI16: 343 | BJ16: 321 | BK16: 315 | BL16: 302 | BM16: 295 | BN16: 291 | BO16: 291 | BP16: 288 | BQ16: 235 | BR16: 198 | BS16: 151 | BT16: 128 | BX16: 128 | BY16: - | BZ16: - | CA16: 3 | CC16: 3529 | EN16: 12 | EP16: 12 | EQ16: (12)
A17: 13 (13) | B17: Sandra Widlund | C17: Växjö Hsk | D17: 3396 | F17: 11 | G17: 154.3636364 | J17: 303 | K17: 277 | L17: 316 | M17: 415 | O17: 276 | Q17: 253 | R17: 350 | S17: 289 | T17: 299 | U17: 326 | Y17: 292 | AA17: 18 | AB17: - | AC17: - | AD17: - | AE17: 13 | AF17: 13 | AG17: 13 | AH17: 13 | AK17: 1 | AL17: 2 | AM17: 3 | AN17: 3 | AO17: 3 | AP17: 2 | AQ17: 2 | AR17: 2 | AS17: 2 | AT17: 3 | AU17: 3 | AV17: 3 | AW17: 3 | AX17: 2 | AY17: 1 | AZ17: 1 | BA17: 2 | BB17: 2 | BE17: 2 | BH17: 415 | BI17: 350 | BJ17: 326 | BK17: 316 | BL17: 303 | BM17: 299 | BN17: 292 | BO17: 289 | BP17: 277 | BQ17: 276 | BR17: 253 | BX17: - | BY17: - | BZ17: - | CA17: 5 | CC17: 3396 | EN17: 13 | EP17: 13 | EQ17: (13)
A18: 14 (14) | B18: Hathaichonlanee Phaengphui | C18: Växjö Hsk | D18: 3133 | F18: 11 | G18: 142.4090909 | J18: 271 | K18: 387 | L18: 270 | M18: 391 | O18: 301 | Q18: 256 | R18: 270 | S18: 300 | T18: 245 | U18: 183 | Y18: 259 | AA18: 18 | AB18: - | AC18: - | AD18: - | AE18: 14 | AF18: 14 | AG18: 14 | AH18: 14 | AK18: 1 | AL18: 2 | AM18: 3 | AN18: 3 | AO18: 3 | AP18: 2 | AQ18: 2 | AR18: 2 | AS18: 2 | AT18: 3 | AU18: 3 | AV18: 3 | AW18: 3 | AX18: 2 | AY18: 1 | AZ18: 1 | BA18: 2 | BB18: 2 | BE18: 2 | BH18: 391 | BI18: 387 | BJ18: 301 | BK18: 300 | BL18: 271 | BM18: 270 | BN18: 270 | BO18: 259 | BP18: 256 | BQ18: 245 | BR18: 183 | BX18: - | BY18: - | BZ18: - | CA18: 5 | CC18: 3133 | EN18: 14 | EP18: 14 | EQ18: (14)
A19: 15 (15) | B19: Stefan Tollstam | C19: Dynapac | D19: 2991 | F19: 13 | G19: 121.1153846 | I19: 158 | J19: 276 | K19: 227 | L19: 288 | M19: 218 | N19: 238 | P19: 258 | Q19: 245 | R19: 221 | S19: 240 | T19: 332 | U19: 194 | X19: 254 | AA19: 18 | AB19: 158 | AC19: - | AD19: - | AE19: 15 | AF19: 15 | AG19: 15 | AH19: 15 | AK19: 2 | AL19: 3 | AM19: 3 | AN19: 3 | AO19: 3 | AP19: 3 | AQ19: 2 | AR19: 2 | AS19: 3 | AT19: 3 | AU19: 3 | AV19: 3 | AW19: 3 | AX19: 2 | AY19: 1 | AZ19: 2 | BA19: 2 | BB19: 1 | BE19: 2 | BH19: 332 | BI19: 288 | BJ19: 276 | BK19: 258 | BL19: 254 | BM19: 245 | BN19: 240 | BO19: 238 | BP19: 227 | BQ19: 221 | BR19: 218 | BS19: 194 | BT19: 158 | BX19: 158 | BY19: - | BZ19: - | CA19: 3 | CC19: 3149 | EN19: 15 | EP19: 15 | EQ19: (15)
A20: 16 (16) | B20: Nathalie Sundahl | C20: Carlskrona | D20: 2963 | F20: 14 | G20: 116.9642857 | I20: 331 | J20: 219 | K20: 193 | L20: 254 | M20: 307 | P20: 204 | Q20: 283 | R20: 188 | S20: 244 | T20: 244 | U20: 246 | X20: 223 | Y20: 124 | Z20: 215 | AA20: 18 | AB20: 188 | AC20: 124 | AD20: - | AE20: 16 | AF20: 16 | AG20: 16 | AH20: 16 | AK20: 2 | AL20: 3 | AM20: 3 | AN20: 3 | AO20: 3 | AP20: 2 | AQ20: 1 | AR20: 2 | AS20: 3 | AT20: 3 | AU20: 3 | AV20: 3 | AW20: 3 | AX20: 2 | AY20: 1 | AZ20: 2 | BA20: 3 | BB20: 3 | BE20: 2 | BH20: 331 | BI20: 307 | BJ20: 283 | BK20: 254 | BL20: 246 | BM20: 244 | BN20: 244 | BO20: 223 | BP20: 219 | BQ20: 215 | BR20: 204 | BS20: 193 | BT20: 188 | BU20: 124 | BX20: 188 | BY20: 124 | BZ20: - | CA20: 2 | CC20: 3275 | EN20: 16 | EP20: 16 | EQ20: (16)
A21: 17 (17) | B21: Berndt Pettersson | C21: Lanternan | D21: 2898 | F21: 12 | G21: 120.75 | J21: 217 | K21: 249 | L21: 232 | M21: 257 | Q21: 224 | R21: 177 | S21: 221 | T21: 274 | U21: 291 | X21: 247 | Y21: 227 | Z21: 282 | AA21: 18 | AB21: - | AC21: - | AD21: - | AE21: 17 | AF21: 17 | AG21: 17 | AH21: 17 | AK21: 1 | AL21: 2 | AM21: 3 | AN21: 3 | AO21: 3 | AP21: 2 | AQ21: 1 | AR21: 1 | AS21: 2 | AT21: 3 | AU21: 3 | AV21: 3 | AW21: 3 | AX21: 2 | AY21: 1 | AZ21: 2 | BA21: 3 | BB21: 3 | BE21: 2 | BH21: 291 | BI21: 282 | BJ21: 274 | BK21: 257 | BL21: 249 | BM21: 247 | BN21: 232 | BO21: 227 | BP21: 224 | BQ21: 221 | BR21: 217 | BS21: 177 | BX21: - | BY21: - | BZ21: - | CA21: 4 | CC21: 2898 | EN21: 17 | EP21: 17 | EQ21: (17)
A22: 18 (18) | B22: Bo Petersson | C22: Korpen Nybro | D22: 2863 | F22: 12 | G22: 119.2916667 | I22: 249 | K22: 202 | L22: 393 | M22: 235 | O22: 228 | Q22: 243 | R22: 248 | S22: 243 | T22: 228 | U22: 163 | W22: 236 | Y22: 195 | AA22: 18 | AB22: - | AC22: - | AD22: - | AE22: 18 | AF22: 18 | AG22: 18 | AH22: 18 | AK22: 2 | AL22: 2 | AM22: 2 | AN22: 3 | AO22: 3 | AP22: 2 | AQ22: 2 | AR22: 2 | AS22: 2 | AT22: 3 | AU22: 3 | AV22: 3 | AW22: 3 | AX22: 2 | AY22: 2 | AZ22: 2 | BA22: 2 | BB22: 2 | BE22: 2 | BH22: 393 | BI22: 249 | BJ22: 248 | BK22: 243 | BL22: 243 | BM22: 236 | BN22: 235 | BO22: 228 | BP22: 228 | BQ22: 202 | BR22: 195 | BS22: 163 | BX22: - | BY22: - | BZ22: - | CA22: 4 | CC22: 2863 | EN22: 18 | EP22: 18 | EQ22: (18)
A23: 19 (19) | B23: Yamolada Damnoegam | C23: Växjö Hsk | D23: 2797 | F23: 11 | G23: 127.1363636 | J23: 154 | K23: 299 | L23: 270 | M23: 225 | O23: 192 | Q23: 223 | R23: 235 | S23: 350 | T23: 261 | U23: 316 | Y23: 272 | AA23: 18 | AB23: - | AC23: - | AD23: - | AE23: 19 | AF23: 19 | AG23: 19 | AH23: 19 | AK23: 1 | AL23: 2 | AM23: 3 | AN23: 3 | AO23: 3 | AP23: 2 | AQ23: 2 | AR23: 2 | AS23: 2 | AT23: 3 | AU23: 3 | AV23: 3 | AW23: 3 | AX23: 2 | AY23: 1 | AZ23: 1 | BA23: 2 | BB23: 2 | BE23: 2 | BH23: 350 | BI23: 316 | BJ23: 299 | BK23: 272 | BL23: 270 | BM23: 261 | BN23: 235 | BO23: 225 | BP23: 223 | BQ23: 192 | BR23: 154 | BX23: - | BY23: - | BZ23: - | CA23: 5 | CC23: 2797 | EN23: 19 | EP23: 19 | EQ23: (19)
A24: 20 (20) | B24: Olle Ottosson | C24: Dynapac | D24: 2775 | F24: 9 | G24: 154.1666667 | L24: 355 | M24: 378 | P24: 260 | Q24: 196 | R24: 245 | S24: 213 | T24: 498 | U24: 259 | X24: 371 | AA24: 18 | AB24: - | AC24: - | AD24: - | AE24: 20 | AF24: 20 | AG24: 20 | AH24: 20 | AK24: 1 | AL24: 1 | AM24: 1 | AN24: 2 | AO24: 3 | AP24: 2 | AQ24: 1 | AR24: 2 | AS24: 3 | AT24: 3 | AU24: 3 | AV24: 3 | AW24: 3 | AX24: 2 | AY24: 1 | AZ24: 2 | BA24: 2 | BB24: 1 | BE24: 2 | BH24: 498 | BI24: 378 | BJ24: 371 | BK24: 355 | BL24: 260 | BM24: 259 | BN24: 245 | BO24: 213 | BP24: 196 | BX24: - | BY24: - | BZ24: - | CA24: 7 | CC24: 2775 | EN24: 20 | EP24: 20 | EQ24: (20)
A25: 21 (21) | B25: Göran Olofsson | C25: Korpen Nybro | D25: 2740 | F25: 14 | G25: 110.5 | I25: 238 | J25: 174 | K25: 214 | L25: 216 | M25: 276 | O25: 236 | Q25: 228 | R25: 180 | S25: 238 | T25: 227 | U25: 234 | W25: 187 | Y25: 215 | Z25: 231 | AA25: 18 | AB25: 180 | AC25: 174 | AD25: - | AE25: 21 | AF25: 21 | AG25: 21 | AH25: 21 | AK25: 2 | AL25: 3 | AM25: 3 | AN25: 3 | AO25: 3 | AP25: 2 | AQ25: 2 | AR25: 2 | AS25: 2 | AT25: 3 | AU25: 3 | AV25: 3 | AW25: 3 | AX25: 2 | AY25: 2 | AZ25: 2 | BA25: 2 | BB25: 3 | BE25: 2 | BH25: 276 | BI25: 238 | BJ25: 238 | BK25: 236 | BL25: 234 | BM25: 231 | BN25: 228 | BO25: 227 | BP25: 216 | BQ25: 215 | BR25: 214 | BS25: 187 | BT25: 180 | BU25: 174 | BX25: 180 | BY25: 174 | BZ25: - | CA25: 2 | CC25: 3094 | EN25: 21 | EP25: 21 | EQ25: (21)
A26: 21 (21) | B26: Lisbeth Nygaard-Karlsson | C26: Tingsryd | D26: 2740 | F26: 10 | G26: 137 | J26: 313 | L26: 316 | M26: 259 | N26: 195 | Q26: 341 | S26: 263 | T26: 254 | W26: 339 | Y26: 241 | Z26: 219 | AA26: 18 | AB26: - | AC26: - | AD26: - | AE26: 21 | AF26: 21 | AG26: 22 | AH26: 22 | AK26: 1 | AL26: 2 | AM26: 2 | AN26: 2 | AO26: 3 | AP26: 3 | AQ26: 2 | AR26: 1 | AS26: 2 | AT26: 2 | AU26: 2 | AV26: 3 | AW26: 2 | AX26: 1 | AY26: 2 | AZ26: 2 | BA26: 2 | BB26: 3 | BE26: 2 | BH26: 341 | BI26: 339 | BJ26: 316 | BK26: 313 | BL26: 263 | BM26: 259 | BN26: 254 | BO26: 241 | BP26: 219 | BQ26: 195 | BX26: - | BY26: - | BZ26: - | CA26: 6 | CC26: 2740 | EN26: 22 | EP26: 21 | EQ26: (21)
A27: 23 (23) | B27: Bengt Fabbeke | C27: Dynapac | D27: 2731 | F27: 12 | G27: 113.7916667 | I27: 335 | K27: 257 | L27: 175 | M27: 285 | N27: 196 | P27: 261 | R27: 175 | S27: 140 | U27: 230 | X27: 168 | Y27: 221 | Z27: 288 | AA27: 18 | AB27: - | AC27: - | AD27: - | AE27: 23 | AF27: 23 | AG27: 23 | AH27: 23 | AK27: 2 | AL27: 2 | AM27: 2 | AN27: 3 | AO27: 3 | AP27: 3 | AQ27: 2 | AR27: 2 | AS27: 2 | AT27: 2 | AU27: 3 | AV27: 2 | AW27: 2 | AX27: 2 | AY27: 1 | AZ27: 2 | BA27: 3 | BB27: 3 | BE27: 2 | BH27: 335 | BI27: 288 | BJ27: 285 | BK27: 261 | BL27: 257 | BM27: 230 | BN27: 221 | BO27: 196 | BP27: 175 | BQ27: 175 | BR27: 168 | BS27: 140 | BX27: - | BY27: - | BZ27: - | CA27: 4 | CC27: 2731 | EN27: 23 | EP27: 23 | EQ27: (23)
A28: 24 (24) | B28: Tobias Gneupel | C28: Sibbamåla | D28: 2712 | F28: 7 | G28: 193.7142857 | L28: 340 | P28: 337 | Q28: 390 | R28: 381 | T28: 403 | U28: 440 | X28: 421 | AA28: 18 | AB28: - | AC28: - | AD28: - | AE28: 24 | AF28: 24 | AG28: 24 | AH28: 24 | AK28: 1 | AL28: 1 | AM28: 1 | AN28: 2 | AO28: 2 | AP28: 1 | AQ28: 1 | AR28: 2 | AS28: 3 | AT28: 3 | AU28: 2 | AV28: 2 | AW28: 3 | AX28: 2 | AY28: 1 | AZ28: 2 | BA28: 2 | BB28: 1 | BE28: 2 | BH28: 440 | BI28: 421 | BJ28: 403 | BK28: 390 | BL28: 381 | BM28: 340 | BN28: 337 | BX28: - | BY28: - | BZ28: - | CA28: 9 | CC28: 2712 | EN28: 24 | EP28: 24 | EQ28: (24)
A29: 25 (25) | B29: Christer Blomgren | C29: Lanternan | D29: 2690 | F29: 13 | G29: 109.1923077 | J29: 243 | K29: 239 | L29: 241 | M29: 223 | N29: 149 | P29: 190 | Q29: 199 | R29: 224 | S29: 150 | T29: 226 | U29: 276 | X29: 227 | Y29: 252 | AA29: 18 | AB29: 149 | AC29: - | AD29: - | AE29: 25 | AF29: 25 | AG29: 25 | AH29: 25 | AK29: 1 | AL29: 2 | AM29: 3 | AN29: 3 | AO29: 3 | AP29: 3 | AQ29: 2 | AR29: 2 | AS29: 3 | AT29: 3 | AU29: 3 | AV29: 3 | AW29: 3 | AX29: 2 | AY29: 1 | AZ29: 2 | BA29: 3 | BB29: 2 | BE29: 2 | BH29: 276 | BI29: 252 | BJ29: 243 | BK29: 241 | BL29: 239 | BM29: 227 | BN29: 226 | BO29: 224 | BP29: 223 | BQ29: 199 | BR29: 190 | BS29: 150 | BT29: 149 | BX29: 149 | BY29: - | BZ29: - | CA29: 3 | CC29: 2839 | EN29: 25 | EP29: 25 | EQ29: (25)
A30: 26 (26) | B30: Kerstin Svensson | C30: Växjö Hsk | D30: 2685 | F30: 14 | G30: 104.6071429 | I30: 225 | J30: 250 | K30: 220 | L30: 236 | M30: 306 | N30: 197 | O30: 153 | Q30: 254 | R30: 176 | T30: 242 | U30: 120 | W30: 264 | Y30: 162 | Z30: 124 | AA30: 18 | AB30: 124 | AC30: 120 | AD30: - | AE30: 26 | AF30: 26 | AG30: 26 | AH30: 26 | AK30: 2 | AL30: 3 | AM30: 3 | AN30: 3 | AO30: 3 | AP30: 3 | AQ30: 3 | AR30: 2 | AS30: 2 | AT30: 3 | AU30: 2 | AV30: 2 | AW30: 3 | AX30: 2 | AY30: 2 | AZ30: 2 | BA30: 2 | BB30: 3 | BE30: 2 | BH30: 306 | BI30: 264 | BJ30: 254 | BK30: 250 | BL30: 242 | BM30: 236 | BN30: 225 | BO30: 220 | BP30: 197 | BQ30: 176 | BR30: 162 | BS30: 153 | BT30: 124 | BU30: 120 | BX30: 124 | BY30: 120 | BZ30: - | CA30: 2 | CC30: 2929 | EN30: 26 | EP30: 26 | EQ30: (26)
A31: 27 (27) | B31: Dan Hallstan | C31: Växjö | D31: 2680 | F31: 15 | G31: 104.7666667 | I31: 248 | J31: 246 | K31: 176 | L31: 137 | M31: 225 | N31: 158 | O31: 252 | Q31: 178 | R31: 177 | S31: 239 | T31: 253 | U31: 260 | W31: 204 | Y31: 222 | Z31: 168 | AA31: 18 | AB31: 168 | AC31: 158 | AD31: 137 | AE31: 27 | AF31: 27 | AG31: 27 | AH31: 27 | AK31: 2 | AL31: 3 | AM31: 3 | AN31: 3 | AO31: 3 | AP31: 3 | AQ31: 3 | AR31: 2 | AS31: 2 | AT31: 3 | AU31: 3 | AV31: 3 | AW31: 3 | AX31: 2 | AY31: 2 | AZ31: 2 | BA31: 2 | BB31: 3 | BE31: 2 | BH31: 260 | BI31: 253 | BJ31: 252 | BK31: 248 | BL31: 246 | BM31: 239 | BN31: 225 | BO31: 222 | BP31: 204 | BQ31: 178 | BR31: 177 | BS31: 176 | BT31: 168 | BU31: 158 | BV31: 137 | BX31: 168 | BY31: 158 | BZ31: 137 | CA31: 1 | CC31: 3143 | EN31: 27 | EP31: 27 | EQ31: (27)
A32: 28 (28) | B32: Johan Johansson | C32: Tingsryd | D32: 2638 | F32: 8 | G32: 164.875 | K32: 332 | L32: 329 | M32: 409 | N32: 310 | R32: 291 | W32: 355 | Y32: 320 | Z32: 292 | AA32: 18 | AB32: - | AC32: - | AD32: - | AE32: 28 | AF32: 28 | AG32: 28 | AH32: 28 | AK32: 1 | AL32: 1 | AM32: 2 | AN32: 3 | AO32: 3 | AP32: 3 | AQ32: 2 | AR32: 1 | AS32: 1 | AT32: 2 | AU32: 2 | AV32: 1 | AW32: 1 | AX32: 1 | AY32: 2 | AZ32: 2 | BA32: 2 | BB32: 3 | BE32: 2 | BH32: 409 | BI32: 355 | BJ32: 332 | BK32: 329 | BL32: 320 | BM32: 310 | BN32: 292 | BO32: 291 | BX32: - | BY32: - | BZ32: - | CA32: 8 | CC32: 2638 | EN32: 28 | EP32: 28 | EQ32: (28)
A33: 29 (29) | B33: Ingegerd Pettersson | C33: Lanternan | D33: 2629 | F33: 12 | G33: 109.5416667 | K33: 212 | L33: 163 | M33: 199 | P33: 367 | Q33: 204 | R33: 246 | S33: 189 | T33: 235 | U33: 217 | X33: 198 | Y33: 180 | Z33: 219 | AA33: 18 | AB33: - | AC33: - | AD33: - | AE33: 29 | AF33: 29 | AG33: 29 | AH33: 29 | AK33: 1 | AL33: 1 | AM33: 2 | AN33: 3 | AO33: 3 | AP33: 2 | AQ33: 1 | AR33: 2 | AS33: 3 | AT33: 3 | AU33: 3 | AV33: 3 | AW33: 3 | AX33: 2 | AY33: 1 | AZ33: 2 | BA33: 3 | BB33: 3 | BE33: 2 | BH33: 367 | BI33: 246 | BJ33: 235 | BK33: 219 | BL33: 217 | BM33: 212 | BN33: 204 | BO33: 199 | BP33: 198 | BQ33: 189 | BR33: 180 | BS33: 163 | BX33: - | BY33: - | BZ33: - | CA33: 4 | CC33: 2629 | EN33: 29 | EP33: 29 | EQ33: (29)
A34: 30 (30) | B34: Carina Gneupel | C34: Sibbamåla | D34: 2622 | F34: 11 | G34: 119.1818182 | I34: 273 | K34: 196 | L34: 217 | M34: 270 | N34: 189 | P34: 209 | Q34: 247 | S34: 248 | U34: 253 | X34: 303 | Y34: 217 | AA34: 18 | AB34: - | AC34: - | AD34: - | AE34: 30 | AF34: 30 | AG34: 30 | AH34: 30 | AK34: 2 | AL34: 2 | AM34: 2 | AN34: 3 | AO34: 3 | AP34: 3 | AQ34: 2 | AR34: 2 | AS34: 3 | AT34: 2 | AU34: 2 | AV34: 2 | AW34: 2 | AX34: 2 | AY34: 1 | AZ34: 2 | BA34: 3 | BB34: 2 | BE34: 2 | BH34: 303 | BI34: 273 | BJ34: 270 | BK34: 253 | BL34: 248 | BM34: 247 | BN34: 217 | BO34: 217 | BP34: 209 | BQ34: 196 | BR34: 189 | BX34: - | BY34: - | BZ34: - | CA34: 5 | CC34: 2622 | EN34: 30 | EP34: 30 | EQ34: (30)
A35: 31 (31) | B35: Lasse Brincner | C35: Värends Hsk | D35: 2601 | F35: 12 | G35: 108.375 | I35: 220 | J35: 167 | K35: 147 | L35: 191 | M35: 112 | N35: 251 | O35: 240 | R35: 302 | S35: 310 | T35: 235 | U35: 269 | W35: 157 | AA35: 18 | AB35: - | AC35: - | AD35: - | AE35: 31 | AF35: 31 | AG35: 31 | AH35: 31 | AK35: 2 | AL35: 3 | AM35: 3 | AN35: 3 | AO35: 3 | AP35: 3 | AQ35: 3 | AR35: 2 | AS35: 1 | AT35: 2 | AU35: 3 | AV35: 3 | AW35: 3 | AX35: 2 | AY35: 2 | AZ35: 2 | BA35: 1 | BB35: 1 | BE35: 2 | BH35: 310 | BI35: 302 | BJ35: 269 | BK35: 251 | BL35: 240 | BM35: 235 | BN35: 220 | BO35: 191 | BP35: 167 | BQ35: 157 | BR35: 147 | BS35: 112 | BX35: - | BY35: - | BZ35: - | CA35: 4 | CC35: 2601 | EN35: 31 | EP35: 31 | EQ35: (31)
A36: 32 (32) | B36: Roy Dahlén | C36: Dynapac | D36: 2591 | F36: 13 | G36: 104.6153846 | J36: 298 | K36: 254 | L36: 182 | M36: 211 | N36: 243 | P36: 255 | Q36: 179 | R36: 174 | T36: 230 | U36: 174 | X36: 155 | Y36: 236 | Z36: 129 | AA36: 18 | AB36: 129 | AC36: - | AD36: - | AE36: 32 | AF36: 32 | AG36: 32 | AH36: 32 | AK36: 1 | AL36: 2 | AM36: 3 | AN36: 3 | AO36: 3 | AP36: 3 | AQ36: 2 | AR36: 2 | AS36: 3 | AT36: 3 | AU36: 2 | AV36: 2 | AW36: 3 | AX36: 2 | AY36: 1 | AZ36: 2 | BA36: 3 | BB36: 3 | BE36: 2 | BH36: 298 | BI36: 255 | BJ36: 254 | BK36: 243 | BL36: 236 | BM36: 230 | BN36: 211 | BO36: 182 | BP36: 179 | BQ36: 174 | BR36: 174 | BS36: 155 | BT36: 129 | BX36: 129 | BY36: - | BZ36: - | CA36: 3 | CC36: 2720 | EN36: 32 | EP36: 32 | EQ36: (32)
A37: 33 (33) | B37: Bengt Andersson | C37: Växjö Hsk | D37: 2564 | F37: 11 | G37: 116.5454545 | I37: 298 | J37: 264 | K37: 270 | L37: 258 | M37: 233 | O37: 232 | R37: 255 | T37: 190 | U37: 202 | W37: 193 | Y37: 169 | AA37: 18 | AB37: - | AC37: - | AD37: - | AE37: 33 | AF37: 33 | AG37: 33 | AH37: 33 | AK37: 2 | AL37: 3 | AM37: 3 | AN37: 3 | AO37: 3 | AP37: 2 | AQ37: 2 | AR37: 2 | AS37: 1 | AT37: 2 | AU37: 2 | AV37: 2 | AW37: 3 | AX37: 2 | AY37: 2 | AZ37: 2 | BA37: 2 | BB37: 2 | BE37: =IF(H37="x",1,2) -> 2 | BH37: =IF($F37>0,LARGE($I37:$Z37,1),"") -> 298 | BI37: =IF($F37>1,LARGE($I37:$Z37,2),"") -> 270 | BJ37: =IF($F37>2,LARGE($I37:$Z37,3),"") -> 264 | BK37: =IF($F37>3,LARGE($I37:$Z37,4),"") -> 258 | BL37: =IF($F37>4,LARGE($I37:$Z37,5),"") -> 255 | BM37: =IF($F37>5,LARGE($I37:$Z37,6),"") -> 233 | BN37: =IF($F37>6,LARGE($I37:$Z37,7),"") -> 232 | BO37: =IF($F37>7,LARGE($I37:$Z37,8),"") -> 202 | BP37: =IF($F37>8,LARGE($I37:$Z37,9),"") -> 193 | BQ37: =IF($F37>9,LARGE($I37:$Z37,10),"") -> 190 | BR37: =IF($F37>10,LARGE($I37:$Z37,11),"") -> 169 | BS37: =IF($F37>11,LARGE($I37:$Z37,12),"") ->  | BT37: =IF($F37>12,LARGE($I37:$Z37,13),"") ->  | BU37: =IF($F37>13,LARGE($I37:$Z37,14),"") ->  | BV37: =IF($F37>14,LARGE($I37:$Z37,15),"") ->  | BW37: =IF($F37>15,LARGE($I37:$Z37,16),"") ->  | BX37: =IF($F37>12,LARGE($I37:$Z37,13),"-") -> - | BY37: =IF($F37>13,LARGE($I37:$Z37,14),"-") -> - | BZ37: =IF($F37>14,LARGE($I37:$Z37,15),"-") -> - | CA37: =SUM(AA37-F37)-2 -> 5 | CC37: 2564 | EN37: 33 | EP37: =IF(BE37>=1,AF37,"") -> 33 | EQ37: (33)
A38: 34 (34) | B38: Martin Antic | C38: Värends Hsk | D38: 2525 | F38: 12 | G38: 105.2083333 | I38: 288 | J38: 223 | K38: 220 | L38: 215 | M38: 207 | N38: 171 | O38: 143 | R38: 220 | S38: 196 | T38: 239 | W38: 224 | Z38: 179 | AA38: 18 | AB38: - | AC38: - | AD38: - | AE38: 34 | AF38: 34 | AG38: 34 | AH38: 34 | AK38: 2 | AL38: 3 | AM38: 3 | AN38: 3 | AO38: 3 | AP38: 3 | AQ38: 3 | AR38: 2 | AS38: 1 | AT38: 2 | AU38: 3 | AV38: 3 | AW38: 2 | AX38: 1 | AY38: 2 | AZ38: 2 | BA38: 1 | BB38: 2 | BE38: 2 | BH38: 288 | BI38: 239 | BJ38: 224 | BK38: 223 | BL38: 220 | BM38: 220 | BN38: 215 | BO38: 207 | BP38: 196 | BQ38: 179 | BR38: 171 | BS38: 143 | BX38: - | BY38: - | BZ38: - | CA38: 4 | CC38: 2525 | EN38: 34 | EP38: 34 | EQ38: (34)
A39: 35 (35) | B39: Ewa Malmqvist | C39: Jämjö Hsk | D39: 2517 | F39: 10 | G39: 125.85 | J39: 333 | K39: 290 | L39: 233 | M39: 331 | P39: 278 | Q39: 248 | U39: 213 | X39: 179 | Y39: 152 | Z39: 260 | AA39: 18 | AB39: - | AC39: - | AD39: - | AE39: 35 | AF39: 35 | AG39: 35 | AH39: 35 | AK39: 1 | AL39: 2 | AM39: 3 | AN39: 3 | AO39: 3 | AP39: 2 | AQ39: 1 | AR39: 2 | AS39: 3 | AT39: 2 | AU39: 1 | AV39: 1 | AW39: 2 | AX39: 2 | AY39: 1 | AZ39: 2 | BA39: 3 | BB39: 3 | BE39: 2 | BH39: 333 | BI39: 331 | BJ39: 290 | BK39: 278 | BL39: 260 | BM39: 248 | BN39: 233 | BO39: 213 | BP39: 179 | BQ39: 152 | BX39: - | BY39: - | BZ39: - | CA39: 6 | CC39: 2517 | EN39: 35 | EP39: 35 | EQ39: (35)
A40: 36 (36) | B40: Klara Larsson | C40: Värends Hsk | D40: 2502 | F40: 13 | G40: 102 | I40: 191 | J40: 285 | K40: 187 | L40: 256 | M40: 150 | O40: 182 | R40: 168 | S40: 238 | T40: 224 | U40: 187 | W40: 204 | Y40: 171 | Z40: 209 | AA40: 18 | AB40: 150 | AC40: - | AD40: - | AE40: 36 | AF40: 36 | AG40: 36 | AH40: 36 | AK40: 2 | AL40: 3 | AM40: 3 | AN40: 3 | AO40: 3 | AP40: 2 | AQ40: 2 | AR40: 2 | AS40: 1 | AT40: 2 | AU40: 3 | AV40: 3 | AW40: 3 | AX40: 2 | AY40: 2 | AZ40: 2 | BA40: 2 | BB40: 3 | BE40: 2 | BH40: 285 | BI40: 256 | BJ40: 238 | BK40: 224 | BL40: 209 | BM40: 204 | BN40: 191 | BO40: 187 | BP40: 187 | BQ40: 182 | BR40: 171 | BS40: 168 | BT40: 150 | BX40: 150 | BY40: - | BZ40: - | CA40: 3 | CC40: 2652 | EN40: 36 | EP40: 36 | EQ40: (36)
A41: 37 (37) | B41: Maire Johansson | C41: Växjö | D41: 2469 | F41: 10 | G41: 123.45 | I41: 268 | J41: 332 | L41: 286 | M41: 229 | O41: 259 | R41: 258 | U41: 227 | W41: 199 | Y41: 189 | Z41: 222 | AA41: 18 | AB41: - | AC41: - | AD41: - | AE41: 37 | AF41: 37 | AG41: 37 | AH41: 37 | AK41: 2 | AL41: 3 | AM41: 2 | AN41: 2 | AO41: 3 | AP41: 2 | AQ41: 2 | AR41: 2 | AS41: 1 | AT41: 2 | AU41: 2 | AV41: 1 | AW41: 2 | AX41: 2 | AY41: 2 | AZ41: 2 | BA41: 2 | BB41: 3 | BE41: 2 | BH41: 332 | BI41: 286 | BJ41: 268 | BK41: 259 | BL41: 258 | BM41: 229 | BN41: 227 | BO41: 222 | BP41: 199 | BQ41: 189 | BX41: - | BY41: - | BZ41: - | CA41: 6 | CC41: 2469 | EN41: 37 | EP41: 37 | EQ41: (37)
A42: 38 (38) | B42: Jan Petersson | C42: Lanternan | D42: 2448 | F42: 12 | G42: 102 | K42: 279 | L42: 187 | M42: 181 | P42: 195 | Q42: 108 | R42: 234 | S42: 205 | T42: 171 | U42: 274 | X42: 272 | Y42: 196 | Z42: 146 | AA42: 18 | AB42: - | AC42: - | AD42: - | AE42: 38 | AF42: 38 | AG42: 38 | AH42: 38 | AK42: 1 | AL42: 1 | AM42: 2 | AN42: 3 | AO42: 3 | AP42: 2 | AQ42: 1 | AR42: 2 | AS42: 3 | AT42: 3 | AU42: 3 | AV42: 3 | AW42: 3 | AX42: 2 | AY42: 1 | AZ42: 2 | BA42: 3 | BB42: 3 | BE42: 2 | BH42: 279 | BI42: 274 | BJ42: 272 | BK42: 234 | BL42: 205 | BM42: 196 | BN42: 195 | BO42: 187 | BP42: 181 | BQ42: 171 | BR42: 146 | BS42: 108 | BX42: - | BY42: - | BZ42: - | CA42: 4 | CC42: 2448 | EN42: 38 | EP42: 38 | EQ42: (38)
A43: 39 (39) | B43: Bela Bodi | C43: Växjö | D43: 2397 | F43: 12 | G43: 99.875 | I43: 268 | J43: 203 | K43: 206 | L43: 173 | M43: 156 | O43: 276 | Q43: 196 | R43: 182 | S43: 163 | T43: 246 | W43: 150 | Y43: 178 | AA43: 18 | AB43: - | AC43: - | AD43: - | AE43: 39 | AF43: 39 | AG43: 39 | AH43: 39 | AK43: 2 | AL43: 3 | AM43: 3 | AN43: 3 | AO43: 3 | AP43: 2 | AQ43: 2 | AR43: 2 | AS43: 2 | AT43: 3 | AU43: 3 | AV43: 3 | AW43: 2 | AX43: 1 | AY43: 2 | AZ43: 2 | BA43: 2 | BB43: 2 | BE43: 2 | BH43: 276 | BI43: 268 | BJ43: 246 | BK43: 206 | BL43: 203 | BM43: 196 | BN43: 182 | BO43: 178 | BP43: 173 | BQ43: 163 | BR43: 156 | BS43: 150 | BX43: - | BY43: - | BZ43: - | CA43: 4 | CC43: 2397 | EN43: 39 | EP43: 39 | EQ43: (39)
A44: 40 (40) | B44: Lennart Karlsson | C44: Tingsryd | D44: 2388 | F44: 9 | G44: 132.6666667 | J44: 367 | L44: 287 | N44: 205 | Q44: 228 | S44: 284 | T44: 243 | W44: 346 | Y44: 190 | Z44: 238 | AA44: 18 | AB44: - | AC44: - | AD44: - | AE44: 40 | AF44: 40 | AG44: 40 | AH44: 40 | AK44: 1 | AL44: 2 | AM44: 2 | AN44: 2 | AO44: 2 | AP44: 2 | AQ44: 2 | AR44: 1 | AS44: 2 | AT44: 2 | AU44: 2 | AV44: 3 | AW44: 2 | AX44: 1 | AY44: 2 | AZ44: 2 | BA44: 2 | BB44: 3 | BE44: 2 | BH44: 367 | BI44: 346 | BJ44: 287 | BK44: 284 | BL44: 243 | BM44: 238 | BN44: 228 | BO44: 205 | BP44: 190 | BX44: - | BY44: - | BZ44: - | CA44: 7 | CC44: 2388 | EN44: 40 | EP44: 40 | EQ44: (40)
A45: 41 (41) | B45: Tomas Lindahl | C45: Korpen Åseda | D45: 2374 | F45: 11 | G45: 107.9090909 | I45: 268 | K45: 170 | L45: 244 | M45: 244 | O45: 217 | Q45: 144 | R45: 210 | S45: 194 | T45: 231 | W45: 274 | Z45: 178 | AA45: 18 | AB45: - | AC45: - | AD45: - | AE45: 41 | AF45: 41 | AG45: 41 | AH45: 41 | AK45: 2 | AL45: 2 | AM45: 2 | AN45: 3 | AO45: 3 | AP45: 2 | AQ45: 2 | AR45: 2 | AS45: 2 | AT45: 3 | AU45: 3 | AV45: 3 | AW45: 2 | AX45: 1 | AY45: 2 | AZ45: 2 | BA45: 1 | BB45: 2 | BE45: 2 | BH45: 274 | BI45: 268 | BJ45: 244 | BK45: 244 | BL45: 231 | BM45: 217 | BN45: 210 | BO45: 194 | BP45: 178 | BQ45: 170 | BR45: 144 | BX45: - | BY45: - | BZ45: - | CA45: 5 | CC45: 2374 | EN45: 41 | EP45: 41 | EQ45: (41)
A46: 42 (42) | B46: Göran Mårtensson | C46: Jämjö Hsk | D46: 2357 | F46: 10 | G46: 117.85 | J46: 240 | K46: 234 | L46: 303 | M46: 215 | P46: 224 | Q46: 172 | U46: 244 | X46: 251 | Y46: 226 | Z46: 248 | AA46: 18 | AB46: - | AC46: - | AD46: - | AE46: 42 | AF46: 42 | AG46: 42 | AH46: 42 | AK46: 1 | AL46: 2 | AM46: 3 | AN46: 3 | AO46: 3 | AP46: 2 | AQ46: 1 | AR46: 2 | AS46: 3 | AT46: 2 | AU46: 1 | AV46: 1 | AW46: 2 | AX46: 2 | AY46: 1 | AZ46: 2 | BA46: 3 | BB46: 3 | BE46: 2 | BH46: 303 | BI46: 251 | BJ46: 248 | BK46: 244 | BL46: 240 | BM46: 234 | BN46: 226 | BO46: 224 | BP46: 215 | BQ46: 172 | BX46: - | BY46: - | BZ46: - | CA46: 6 | CC46: 2357 | EN46: 42 | EP46: 42 | EQ46: (42)
A47: 43 (43) | B47: Lukas Bern | C47: Dynapac | D47: 2317 | F47: 10 | G47: 115.85 | J47: 220 | L47: 249 | M47: 206 | P47: 200 | Q47: 217 | R47: 308 | S47: 195 | T47: 227 | U47: 260 | X47: 235 | AA47: 18 | AB47: - | AC47: - | AD47: - | AE47: 43 | AF47: 43 | AG47: 43 | AH47: 43 | AK47: 1 | AL47: 2 | AM47: 2 | AN47: 2 | AO47: 3 | AP47: 2 | AQ47: 1 | AR47: 2 | AS47: 3 | AT47: 3 | AU47: 3 | AV47: 3 | AW47: 3 | AX47: 2 | AY47: 1 | AZ47: 2 | BA47: 2 | BB47: 1 | BE47: 2 | BH47: 308 | BI47: 260 | BJ47: 249 | BK47: 235 | BL47: 227 | BM47: 220 | BN47: 217 | BO47: 206 | BP47: 200 | BQ47: 195 | BX47: - | BY47: - | BZ47: - | CA47: 6 | CC47: 2317 | EN47: 43 | EP47: 43 | EQ47: (43)
A48: 44 (44) | B48: Peter Edlund | C48: Dynapac | D48: 2277 | F48: 11 | G48: 103.5 | J48: 213 | K48: 278 | L48: 265 | M48: 215 | Q48: 206 | R48: 205 | S48: 142 | U48: 133 | X48: 191 | Y48: 270 | Z48: 159 | AA48: 18 | AB48: - | AC48: - | AD48: - | AE48: 44 | AF48: 44 | AG48: 44 | AH48: 44 | AK48: 1 | AL48: 2 | AM48: 3 | AN48: 3 | AO48: 3 | AP48: 2 | AQ48: 1 | AR48: 1 | AS48: 2 | AT48: 3 | AU48: 3 | AV48: 2 | AW48: 2 | AX48: 2 | AY48: 1 | AZ48: 2 | BA48: 3 | BB48: 3 | BE48: 2 | BH48: 278 | BI48: 270 | BJ48: 265 | BK48: 215 | BL48: 213 | BM48: 206 | BN48: 205 | BO48: 191 | BP48: 159 | BQ48: 142 | BR48: 133 | BX48: - | BY48: - | BZ48: - | CA48: 5 | CC48: 2277 | EN48: 44 | EP48: 44 | EQ48: (44)
A49: 45 (45) | B49: Alf Svensson | C49: Korpen Åseda | D49: 2171 | F49: 14 | G49: 83.75 | I49: 184 | J49: 172 | K49: 212 | L49: 179 | M49: 202 | O49: 127 | Q49: 148 | R49: 140 | S49: 197 | T49: 77 | U49: 210 | W49: 97 | Y49: 177 | Z49: 223 | AA49: 18 | AB49: 97 | AC49: 77 | AD49: - | AE49: 45 | AF49: 45 | AG49: 45 | AH49: 45 | AK49: 2 | AL49: 3 | AM49: 3 | AN49: 3 | AO49: 3 | AP49: 2 | AQ49: 2 | AR49: 2 | AS49: 2 | AT49: 3 | AU49: 3 | AV49: 3 | AW49: 3 | AX49: 2 | AY49: 2 | AZ49: 2 | BA49: 2 | BB49: 3 | BE49: 2 | BH49: 223 | BI49: 212 | BJ49: 210 | BK49: 202 | BL49: 197 | BM49: 184 | BN49: 179 | BO49: 177 | BP49: 172 | BQ49: 148 | BR49: 140 | BS49: 127 | BT49: 97 | BU49: 77 | BX49: 97 | BY49: 77 | BZ49: - | CA49: 2 | CC49: 2345 | EN49: 45 | EP49: 45 | EQ49: (45)
A50: 46 (46) | B50: Thomas Dahl | C50: Växjö | D50: 2144 | F50: 12 | G50: 89.33333333 | J50: 171 | K50: 274 | L50: 171 | M50: 137 | O50: 202 | Q50: 198 | R50: 141 | S50: 209 | T50: 220 | U50: 171 | W50: 121 | Y50: 129 | AA50: 18 | AB50: - | AC50: - | AD50: - | AE50: 46 | AF50: 46 | AG50: 46 | AH50: 46 | AK50: 1 | AL50: 2 | AM50: 3 | AN50: 3 | AO50: 3 | AP50: 2 | AQ50: 2 | AR50: 2 | AS50: 2 | AT50: 3 | AU50: 3 | AV50: 3 | AW50: 3 | AX50: 2 | AY50: 2 | AZ50: 2 | BA50: 2 | BB50: 2 | BE50: 2 | BH50: 274 | BI50: 220 | BJ50: 209 | BK50: 202 | BL50: 198 | BM50: 171 | BN50: 171 | BO50: 171 | BP50: 141 | BQ50: 137 | BR50: 129 | BS50: 121 | BX50: - | BY50: - | BZ50: - | CA50: 4 | CC50: 2144 | EN50: 46 | EP50: 46 | EQ50: (46)
A51: 47 (47) | B51: Ronny Lundberg | C51: Lanternan | D51: 2071 | F51: 10 | G51: 103.55 | J51: 240 | K51: 237 | L51: 154 | M51: 259 | Q51: 130 | R51: 176 | S51: 186 | T51: 146 | U51: 282 | Z51: 261 | AA51: 18 | AB51: - | AC51: - | AD51: - | AE51: 47 | AF51: 47 | AG51: 47 | AH51: 47 | AK51: 1 | AL51: 2 | AM51: 3 | AN51: 3 | AO51: 3 | AP51: 2 | AQ51: 1 | AR51: 1 | AS51: 2 | AT51: 3 | AU51: 3 | AV51: 3 | AW51: 3 | AX51: 2 | AY51: 1 | AZ51: 1 | BA51: 1 | BB51: 2 | BE51: 2 | BH51: 282 | BI51: 261 | BJ51: 259 | BK51: 240 | BL51: 237 | BM51: 186 | BN51: 176 | BO51: 154 | BP51: 146 | BQ51: 130 | BX51: - | BY51: - | BZ51: - | CA51: 6 | CC51: 2071 | EN51: 47 | EP51: 47 | EQ51: (47)
A52: 48 (48) | B52: Bernt Olsson | C52: Jämjö Hsk | D52: 2031 | F52: 10 | G52: 101.55 | J52: 156 | K52: 255 | L52: 284 | M52: 211 | P52: 209 | Q52: 215 | U52: 121 | X52: 282 | Y52: 135 | Z52: 163 | AA52: 18 | AB52: - | AC52: - | AD52: - | AE52: 48 | AF52: 48 | AG52: 48 | AH52: 48 | AK52: 1 | AL52: 2 | AM52: 3 | AN52: 3 | AO52: 3 | AP52: 2 | AQ52: 1 | AR52: 2 | AS52: 3 | AT52: 2 | AU52: 1 | AV52: 1 | AW52: 2 | AX52: 2 | AY52: 1 | AZ52: 2 | BA52: 3 | BB52: 3 | BE52: 2 | BH52: 284 | BI52: 282 | BJ52: 255 | BK52: 215 | BL52: 211 | BM52: 209 | BN52: 163 | BO52: 156 | BP52: 135 | BQ52: 121 | BX52: - | BY52: - | BZ52: - | CA52: 6 | CC52: 2031 | EN52: 48 | EP52: 48 | EQ52: (48)
A53: 49 (49) | B53: Marianne Karlsson | C53: Jämjö Hsk | D53: 2010 | F53: 9 | G53: 111.6666667 | J53: 123 | K53: 254 | L53: 252 | M53: 209 | P53: 250 | Q53: 162 | U53: 215 | X53: 302 | Z53: 243 | AA53: 18 | AB53: - | AC53: - | AD53: - | AE53: 49 | AF53: 49 | AG53: 49 | AH53: 49 | AK53: 1 | AL53: 2 | AM53: 3 | AN53: 3 | AO53: 3 | AP53: 2 | AQ53: 1 | AR53: 2 | AS53: 3 | AT53: 2 | AU53: 1 | AV53: 1 | AW53: 2 | AX53: 2 | AY53: 1 | AZ53: 2 | BA53: 2 | BB53: 2 | BE53: 2 | BH53: 302 | BI53: 254 | BJ53: 252 | BK53: 250 | BL53: 243 | BM53: 215 | BN53: 209 | BO53: 162 | BP53: 123 | BX53: - | BY53: - | BZ53: - | CA53: 7 | CC53: 2010 | EN53: 49 | EP53: 49 | EQ53: (49)
A54: 50 (50) | B54: Sune Olsson | C54: Korpen Nybro | D54: 1988 | F54: 9 | G54: 110.4444444 | J54: 252 | K54: 251 | M54: 157 | R54: 226 | S54: 178 | T54: 228 | W54: 221 | Y54: 245 | Z54: 230 | AA54: 18 | AB54: - | AC54: - | AD54: - | AE54: 50 | AF54: 50 | AG54: 50 | AH54: 50 | AK54: 1 | AL54: 2 | AM54: 3 | AN54: 2 | AO54: 2 | AP54: 2 | AQ54: 1 | AR54: 1 | AS54: 1 | AT54: 2 | AU54: 3 | AV54: 3 | AW54: 2 | AX54: 1 | AY54: 2 | AZ54: 2 | BA54: 2 | BB54: 3 | BE54: 2 | BH54: 252 | BI54: 251 | BJ54: 245 | BK54: 230 | BL54: 228 | BM54: 226 | BN54: 221 | BO54: 178 | BP54: 157 | BX54: - | BY54: - | BZ54: - | CA54: 7 | CC54: 1988 | EN54: 50 | EP54: 50 | EQ54: (50)
A55: 51 (51) | B55: Elin Olsson | C55: Dynapac | D55: 1917 | F55: 10 | G55: 95.85 | J55: 142 | K55: 181 | L55: 128 | M55: 234 | P55: 235 | Q55: 184 | S55: 230 | T55: 244 | X55: 169 | Y55: 170 | AA55: 18 | AB55: - | AC55: - | AD55: - | AE55: 51 | AF55: 51 | AG55: 51 | AH55: 51 | AK55: 1 | AL55: 2 | AM55: 3 | AN55: 3 | AO55: 3 | AP55: 2 | AQ55: 1 | AR55: 2 | AS55: 3 | AT55: 2 | AU55: 2 | AV55: 3 | AW55: 2 | AX55: 1 | AY55: 1 | AZ55: 2 | BA55: 3 | BB55: 2 | BE55: 2 | BH55: 244 | BI55: 235 | BJ55: 234 | BK55: 230 | BL55: 184 | BM55: 181 | BN55: 170 | BO55: 169 | BP55: 142 | BQ55: 128 | BX55: - | BY55: - | BZ55: - | CA55: 6 | CC55: 1917 | EN55: 51 | EP55: 51 | EQ55: (51)
A56: 52 (52) | B56: Daniel Mårtensson | C56: Jämjö Hsk | D56: 1905 | F56: 10 | G56: 95.25 | J56: 158 | K56: 254 | L56: 135 | M56: 115 | P56: 173 | T56: 210 | U56: 236 | X56: 302 | Y56: 158 | Z56: 164 | AA56: 18 | AB56: - | AC56: - | AD56: - | AE56: 52 | AF56: 52 | AG56: 52 | AH56: 52 | AK56: 1 | AL56: 2 | AM56: 3 | AN56: 3 | AO56: 3 | AP56: 2 | AQ56: 1 | AR56: 2 | AS56: 2 | AT56: 1 | AU56: 1 | AV56: 2 | AW56: 3 | AX56: 2 | AY56: 1 | AZ56: 2 | BA56: 3 | BB56: 3 | BE56: 2 | BH56: 302 | BI56: 254 | BJ56: 236 | BK56: 210 | BL56: 173 | BM56: 164 | BN56: 158 | BO56: 158 | BP56: 135 | BQ56: 115 | BX56: - | BY56: - | BZ56: - | CA56: 6 | CC56: 1905 | EN56: 52 | EP56: 52 | EQ56: (52)
A57: 53 (53) | B57: Anders Johansson | C57: Dynapac | D57: 1887 | F57: 9 | G57: 104.8333333 | J57: 169 | K57: 133 | L57: 295 | M57: 248 | N57: 166 | P57: 248 | Q57: 172 | Y57: 230 | Z57: 226 | AA57: 18 | AB57: - | AC57: - | AD57: - | AE57: 53 | AF57: 53 | AG57: 53 | AH57: 53 | AK57: 1 | AL57: 2 | AM57: 3 | AN57: 3 | AO57: 3 | AP57: 3 | AQ57: 2 | AR57: 2 | AS57: 3 | AT57: 2 | AU57: 1 | AV57: 1 | AW57: 1 | AX57: 1 | AY57: 1 | AZ57: 1 | BA57: 2 | BB57: 3 | BE57: 2 | BH57: 295 | BI57: 248 | BJ57: 248 | BK57: 230 | BL57: 226 | BM57: 172 | BN57: 169 | BO57: 166 | BP57: 133 | BX57: - | BY57: - | BZ57: - | CA57: 7 | CC57: 1887 | EN57: 53 | EP57: 53 | EQ57: (53)
A58: 54 (54) | B58: Bertil Westergren | C58: Växjö Hsk | D58: 1868 | F58: 10 | G58: 93.4 | I58: 198 | L58: 220 | M58: 198 | N58: 185 | O58: 166 | Q58: 176 | R58: 129 | S58: 186 | T58: 179 | Z58: 231 | AA58: 18 | AB58: - | AC58: - | AD58: - | AE58: 54 | AF58: 54 | AG58: 54 | AH58: 54 | AK58: 2 | AL58: 2 | AM58: 1 | AN58: 2 | AO58: 3 | AP58: 3 | AQ58: 3 | AR58: 2 | AS58: 2 | AT58: 3 | AU58: 3 | AV58: 3 | AW58: 2 | AX58: 1 | AY58: 1 | AZ58: 1 | BA58: 1 | BB58: 2 | BE58: 2 | BH58: 231 | BI58: 220 | BJ58: 198 | BK58: 198 | BL58: 186 | BM58: 185 | BN58: 179 | BO58: 176 | BP58: 166 | BQ58: 129 | BX58: - | BY58: - | BZ58: - | CA58: 6 | CC58: 1868 | EN58: 54 | EP58: 54 | EQ58: (54)
A59: 55 (55) | B59: Åke Bergqvist | C59: Tingsryd | D59: 1831 | F59: 11 | G59: 83.22727273 | I59: 156 | J59: 193 | K59: 118 | L59: 188 | M59: 168 | R59: 164 | S59: 162 | T59: 136 | W59: 175 | Y59: 181 | Z59: 190 | AA59: 18 | AB59: - | AC59: - | AD59: - | AE59: 55 | AF59: 55 | AG59: 55 | AH59: 55 | AK59: 2 | AL59: 3 | AM59: 3 | AN59: 3 | AO59: 3 | AP59: 2 | AQ59: 1 | AR59: 1 | AS59: 1 | AT59: 2 | AU59: 3 | AV59: 3 | AW59: 2 | AX59: 1 | AY59: 2 | AZ59: 2 | BA59: 2 | BB59: 3 | BE59: 2 | BH59: 193 | BI59: 190 | BJ59: 188 | BK59: 181 | BL59: 175 | BM59: 168 | BN59: 164 | BO59: 162 | BP59: 156 | BQ59: 136 | BR59: 118 | BX59: - | BY59: - | BZ59: - | CA59: 5 | CC59: 1831 | EN59: 55 | EP59: 55 | EQ59: (55)
A60: 56 (56) | B60: Inge Skoglöv | C60: Jämjö Hsk | D60: 1827 | F60: 9 | G60: 101.5 | K60: 283 | L60: 138 | M60: 255 | Q60: 232 | R60: 141 | U60: 210 | X60: 228 | Y60: 183 | Z60: 157 | AA60: 18 | AB60: - | AC60: - | AD60: - | AE60: 56 | AF60: 56 | AG60: 56 | AH60: 56 | AK60: 1 | AL60: 1 | AM60: 2 | AN60: 3 | AO60: 3 | AP60: 2 | AQ60: 1 | AR60: 1 | AS60: 2 | AT60: 3 | AU60: 2 | AV60: 1 | AW60: 2 | AX60: 2 | AY60: 1 | AZ60: 2 | BA60: 3 | BB60: 3 | BE60: 2 | BH60: 283 | BI60: 255 | BJ60: 232 | BK60: 228 | BL60: 210 | BM60: 183 | BN60: 157 | BO60: 141 | BP60: 138 | BX60: - | BY60: - | BZ60: - | CA60: 7 | CC60: 1827 | EN60: 56 | EP60: 56 | EQ60: (56)
A61: 57 (57) | B61: Leif Sundahl | C61: Carlskrona | D61: 1738 | F61: 9 | G61: 96.55555556 | I61: 259 | K61: 221 | L61: 171 | M61: 242 | P61: 177 | S61: 156 | T61: 153 | U61: 187 | X61: 172 | AA61: 18 | AB61: - | AC61: - | AD61: - | AE61: 57 | AF61: 57 | AG61: 57 | AH61: 57 | AK61: 2 | AL61: 2 | AM61: 2 | AN61: 3 | AO61: 3 | AP61: 2 | AQ61: 1 | AR61: 2 | AS61: 2 | AT61: 1 | AU61: 2 | AV61: 3 | AW61: 3 | AX61: 2 | AY61: 1 | AZ61: 2 | BA61: 2 | BB61: 1 | BE61: 2 | BH61: 259 | BI61: 242 | BJ61: 221 | BK61: 187 | BL61: 177 | BM61: 172 | BN61: 171 | BO61: 156 | BP61: 153 | BX61: - | BY61: - | BZ61: - | CA61: 7 | CC61: 1738 | EN61: 57 | EP61: 57 | EQ61: (57)
A62: 58 (58) | B62: Louise Tollstam | C62: Dynapac | D62: 1714 | F62: 9 | G62: 95.22222222 | J62: 189 | K62: 257 | L62: 205 | M62: 208 | P62: 197 | Q62: 105 | T62: 190 | U62: 153 | X62: 210 | AA62: 18 | AB62: - | AC62: - | AD62: - | AE62: 58 | AF62: 58 | AG62: 58 | AH62: 58 | AK62: 1 | AL62: 2 | AM62: 3 | AN62: 3 | AO62: 3 | AP62: 2 | AQ62: 1 | AR62: 2 | AS62: 3 | AT62: 2 | AU62: 1 | AV62: 2 | AW62: 3 | AX62: 2 | AY62: 1 | AZ62: 2 | BA62: 2 | BB62: 1 | BE62: 2 | BH62: 257 | BI62: 210 | BJ62: 208 | BK62: 205 | BL62: 197 | BM62: 190 | BN62: 189 | BO62: 153 | BP62: 105 | BX62: - | BY62: - | BZ62: - | CA62: 7 | CC62: 1714 | EN62: 58 | EP62: 58 | EQ62: (58)
A63: 59 (59) | B63: Lars-Åke Karlsson | C63: Jämjö Hsk | D63: 1707 | F63: 9 | G63: 94.83333333 | J63: 193 | K63: 212 | L63: 119 | M63: 198 | P63: 210 | Q63: 216 | R63: 196 | Y63: 201 | Z63: 162 | AA63: 18 | AB63: - | AC63: - | AD63: - | AE63: 59 | AF63: 59 | AG63: 59 | AH63: 59 | AK63: 1 | AL63: 2 | AM63: 3 | AN63: 3 | AO63: 3 | AP63: 2 | AQ63: 1 | AR63: 2 | AS63: 3 | AT63: 3 | AU63: 2 | AV63: 1 | AW63: 1 | AX63: 1 | AY63: 1 | AZ63: 1 | BA63: 2 | BB63: 3 | BE63: 2 | BH63: 216 | BI63: 212 | BJ63: 210 | BK63: 201 | BL63: 198 | BM63: 196 | BN63: 193 | BO63: 162 | BP63: 119 | BX63: - | BY63: - | BZ63: - | CA63: 7 | CC63: 1707 | EN63: 59 | EP63: 59 | EQ63: (59)
A64: 60 (60) | B64: Nils-Åke Hansson | C64: Korpen Nybro | D64: 1688 | F64: 11 | G64: 76.72727273 | I64: 134 | J64: 132 | K64: 265 | L64: 112 | M64: 116 | S64: 134 | T64: 207 | U64: 130 | W64: 95 | Y64: 214 | Z64: 149 | AA64: 18 | AB64: - | AC64: - | AD64: - | AE64: 60 | AF64: 60 | AG64: 60 | AH64: 60 | AK64: 2 | AL64: 3 | AM64: 3 | AN64: 3 | AO64: 3 | AP64: 2 | AQ64: 1 | AR64: 1 | AS64: 1 | AT64: 1 | AU64: 2 | AV64: 3 | AW64: 3 | AX64: 2 | AY64: 2 | AZ64: 2 | BA64: 2 | BB64: 3 | BE64: 2 | BH64: 265 | BI64: 214 | BJ64: 207 | BK64: 149 | BL64: 134 | BM64: 134 | BN64: 132 | BO64: 130 | BP64: 116 | BQ64: 112 | BR64: 95 | BX64: - | BY64: - | BZ64: - | CA64: 5 | CC64: 1688 | EN64: 60 | EP64: 60 | EQ64: (60)
A65: 61 (61) | B65: Christer Lööv | C65: Värends Hsk | D65: 1671 | F65: 7 | G65: 119.3571429 | I65: 280 | K65: 268 | L65: 229 | S65: 248 | U65: 210 | W65: 213 | Y65: 223 | AA65: 18 | AB65: - | AC65: - | AD65: - | AE65: 61 | AF65: 61 | AG65: 61 | AH65: 61 | AK65: 2 | AL65: 2 | AM65: 2 | AN65: 3 | AO65: 2 | AP65: 1 | AQ65: 1 | AR65: 1 | AS65: 1 | AT65: 1 | AU65: 2 | AV65: 2 | AW65: 2 | AX65: 2 | AY65: 2 | AZ65: 2 | BA65: 2 | BB65: 2 | BE65: 2 | BH65: 280 | BI65: 268 | BJ65: 248 | BK65: 229 | BL65: 223 | BM65: 213 | BN65: 210 | BX65: - | BY65: - | BZ65: - | CA65: 9 | CC65: 1671 | EN65: 61 | EP65: 61 | EQ65: (61)
A66: 62 (65) | B66: Björn Landberg | C66: Vaxholm Hsk | D66: 1567 | F66: 6 | G66: 130.5833333 | L66: 322 | M66: 302 | N66: 259 | U66: 304 | V66: 158 | Y66: 222 | AA66: 18 | AB66: - | AC66: - | AD66: - | AE66: 65 | AF66: 62 | AG66: 62 | AH66: 62 | AK66: 1 | AL66: 1 | AM66: 1 | AN66: 2 | AO66: 3 | AP66: 3 | AQ66: 2 | AR66: 1 | AS66: 1 | AT66: 1 | AU66: 1 | AV66: 1 | AW66: 2 | AX66: 3 | AY66: 2 | AZ66: 1 | BA66: 2 | BB66: 2 | BE66: 2 | BH66: 322 | BI66: 304 | BJ66: 302 | BK66: 259 | BL66: 222 | BM66: 158 | BX66: - | BY66: - | BZ66: - | CA66: 10 | CC66: 1567 | EN66: 62 | EP66: 62 | EQ66: (65)
A67: 63 (62) | B67: Anne-Marie Larsson | C67: Tingsryd | D67: 1538 | F67: 8 | G67: 96.125 | I67: 257 | J67: 234 | K67: 112 | R67: 149 | S67: 241 | W67: 112 | Y67: 224 | Z67: 209 | AA67: 18 | AB67: - | AC67: - | AD67: - | AE67: 62 | AF67: 63 | AG67: 63 | AH67: 63 | AK67: 2 | AL67: 3 | AM67: 3 | AN67: 2 | AO67: 1 | AP67: 1 | AQ67: 1 | AR67: 1 | AS67: 1 | AT67: 2 | AU67: 3 | AV67: 2 | AW67: 1 | AX67: 1 | AY67: 2 | AZ67: 2 | BA67: 2 | BB67: 3 | BE67: 2 | BH67: 257 | BI67: 241 | BJ67: 234 | BK67: 224 | BL67: 209 | BM67: 149 | BN67: 112 | BO67: 112 | BX67: - | BY67: - | BZ67: - | CA67: 8 | CC67: 1538 | EN67: 63 | EP67: 63 | EQ67: (62)
A68: 64 (63) | B68: Solveig Axelsson | C68: Växjö Hsk | D68: 1511 | F68: 11 | G68: 68.68181818 | I68: 140 | J68: 141 | K68: 243 | L68: 50 | M68: 120 | N68: 139 | O68: 113 | Q68: 72 | R68: 150 | Y68: 133 | Z68: 210 | AA68: 18 | AB68: - | AC68: - | AD68: - | AE68: 63 | AF68: 64 | AG68: 64 | AH68: 64 | AK68: 2 | AL68: 3 | AM68: 3 | AN68: 3 | AO68: 3 | AP68: 3 | AQ68: 3 | AR68: 2 | AS68: 2 | AT68: 3 | AU68: 2 | AV68: 1 | AW68: 1 | AX68: 1 | AY68: 1 | AZ68: 1 | BA68: 2 | BB68: 3 | BE68: 2 | BH68: 243 | BI68: 210 | BJ68: 150 | BK68: 141 | BL68: 140 | BM68: 139 | BN68: 133 | BO68: 120 | BP68: 113 | BQ68: 72 | BR68: 50 | BX68: - | BY68: - | BZ68: - | CA68: 5 | CC68: 1511 | EN68: 64 | EP68: 64 | EQ68: (63)
A69: =IF(BE69>1,AF69&" ("&AE69&")",AF69&" ("&AG69&")") -> 65 (64) | B69: Mathias Karlberg | C69: Jämjö Hsk | D69: =SUM(BH69:BS69) -> 1504 | F69: =COUNT(I69:Z69) -> 5 | G69: =SUM((CC69)/(F69*2)) -> 150.4 | J69: 325 | Q69: 268 | T69: 251 | U69: 328 | X69: 332 | AA69: =SUM($I$3:$Z$3) -> 18 | AB69: =BX69 -> - | AC69: =BY69 -> - | AD69: =BZ69 -> - | AE69: 64 | AF69: =IF(D69<D68,AH69,AF68) -> 65 | AG69: =IF(F69>1,ROW(65:65),"-") -> 65 | AH69: 65 | AK69: 1 | AL69: 2 | AM69: 2 | AN69: 1 | AO69: 1 | AP69: 1 | AQ69: 1 | AR69: 1 | AS69: 2 | AT69: 2 | AU69: 1 | AV69: 2 | AW69: 3 | AX69: 2 | AY69: 1 | AZ69: 2 | BA69: 2 | BB69: 1 | BE69: =IF(H69="x",1,2) -> 2 | BH69: =IF($F69>0,LARGE($I69:$Z69,1),"") -> 332 | BI69: =IF($F69>1,LARGE($I69:$Z69,2),"") -> 328 | BJ69: =IF($F69>2,LARGE($I69:$Z69,3),"") -> 325 | BK69: =IF($F69>3,LARGE($I69:$Z69,4),"") -> 268 | BL69: =IF($F69>4,LARGE($I69:$Z69,5),"") -> 251 | BM69: =IF($F69>5,LARGE($I69:$Z69,6),"") ->  | BN69: =IF($F69>6,LARGE($I69:$Z69,7),"") ->  | BO69: =IF($F69>7,LARGE($I69:$Z69,8),"") ->  | BP69: =IF($F69>8,LARGE($I69:$Z69,9),"") ->  | BQ69: =IF($F69>9,LARGE($I69:$Z69,10),"") ->  | BR69: =IF($F69>10,LARGE($I69:$Z69,11),"") ->  | BS69: =IF($F69>11,LARGE($I69:$Z69,12),"") ->  | BT69: =IF($F69>12,LARGE($I69:$Z69,13),"") ->  | BU69: =IF($F69>13,LARGE($I69:$Z69,14),"") ->  | BV69: =IF($F69>14,LARGE($I69:$Z69,15),"") ->  | BW69: =IF($F69>15,LARGE($I69:$Z69,16),"") ->  | BX69: =IF($F69>12,LARGE($I69:$Z69,13),"-") -> - | BY69: =IF($F69>13,LARGE($I69:$Z69,14),"-") -> - | BZ69: =IF($F69>14,LARGE($I69:$Z69,15),"-") -> - | CA69: =SUM(AA69-F69)-2 -> 11 | CC69: =SUM(BH69:BW69) -> 1504 | EN69: 65 | EP69: =IF(BE69>=1,AF69,"") -> 65 | EQ69: =IF(BE69>1,"("&AE69&")","("&AG69&")") -> (64)
A70: 66 (65) | B70: Lars Johanesson | C70: Jämjö Hsk | D70: 1412 | F70: 7 | G70: 100.8571429 | J70: 283 | K70: 265 | L70: 246 | P70: 129 | T70: 135 | X70: 235 | Y70: 119 | AA70: 18 | AB70: - | AC70: - | AD70: - | AE70: 65 | AF70: 66 | AG70: 66 | AH70: 66 | AK70: =COUNT($I$3,I70,H70) -> 1 | AL70: =COUNT($J$3,J70,I70) -> 2 | AM70: =COUNT($K$3,K70,J70) -> 3 | AN70: =COUNT($L$3,L70,K70) -> 3 | AO70: =COUNT($M$3,M70,L70) -> 2 | AP70: =COUNT($N$3,N70,M70) -> 1 | AQ70: =COUNT($O$3,O70,N70) -> 1 | AR70: =COUNT($P$3,P70,O70) -> 2 | AS70: =COUNT($Q$3,Q70,P70) -> 2 | AT70: =COUNT($R$3,R70,Q70) -> 1 | AU70: =COUNT($S$3,S70,R70) -> 1 | AV70: =COUNT($T$3,T70,S70) -> 2 | AW70: =COUNT($U$3,U70,T70) -> 2 | AX70: =COUNT($V$3,V70,U70) -> 1 | AY70: =COUNT($W$3,W70,V70) -> 1 | AZ70: =COUNT($X$3,X70,W70) -> 2 | BA70: =COUNT($Y$3,Y70,X70) -> 3 | BB70: =COUNT($Z$3,Z70,Y70) -> 2 | BE70: 2 | BH70: 283 | BI70: 265 | BJ70: 246 | BK70: 235 | BL70: 135 | BM70: 129 | BN70: 119 | BX70: - | BY70: - | BZ70: - | CA70: 9 | CC70: 1412 | EN70: 66 | EP70: 66 | EQ70: (65)
A71: 67 (67) | B71: Maj-Britt Jarl | C71: Växjö | D71: 1375 | F71: 6 | G71: 114.5833333 | I71: 307 | J71: 240 | K71: 223 | O71: 147 | W71: 161 | Z71: 297 | AA71: 18 | AB71: - | AC71: - | AD71: - | AE71: 67 | AF71: 67 | AG71: 67 | AH71: 67 | AK71: 2 | AL71: 3 | AM71: 3 | AN71: 2 | AO71: 1 | AP71: 1 | AQ71: 2 | AR71: 2 | AS71: 1 | AT71: 1 | AU71: 1 | AV71: 1 | AW71: 1 | AX71: 1 | AY71: 2 | AZ71: 2 | BA71: 1 | BB71: 2 | BE71: 2 | BH71: 307 | BI71: 297 | BJ71: 240 | BK71: 223 | BL71: 161 | BM71: 147 | BX71: - | BY71: - | BZ71: - | CA71: 10 | CC71: 1375 | EN71: 67 | EP71: 67 | EQ71: (67)
A72: 68 (73) | B72: Kristian Jältsäter | C72: Vaxholm Hsk | D72: 1303 | F72: 6 | G72: 108.5833333 | L72: 262 | M72: 246 | N72: 180 | U72: 213 | V72: 221 | Y72: 181 | AA72: 18 | AB72: - | AC72: - | AD72: - | AE72: 73 | AF72: 68 | AG72: 68 | AH72: 68 | AK72: 1 | AL72: 1 | AM72: 1 | AN72: 2 | AO72: 3 | AP72: 3 | AQ72: 2 | AR72: 1 | AS72: 1 | AT72: 1 | AU72: 1 | AV72: 1 | AW72: 2 | AX72: 3 | AY72: 2 | AZ72: 1 | BA72: 2 | BB72: 2 | BE72: 2 | BH72: 262 | BI72: 246 | BJ72: 221 | BK72: 213 | BL72: 181 | BM72: 180 | BX72: - | BY72: - | BZ72: - | CA72: 10 | CC72: 1303 | EN72: 68 | EP72: 68 | EQ72: (73)
A73: 69 (68) | B73: Marcus Karlsson | C73: Jämjö Hsk | D73: 1301 | F73: 6 | G73: 108.4166667 | J73: 342 | P73: 146 | Q73: 146 | U73: 208 | X73: 253 | Z73: 206 | AA73: 18 | AB73: - | AC73: - | AD73: - | AE73: 68 | AF73: 69 | AG73: 69 | AH73: 69 | AK73: 1 | AL73: 2 | AM73: 2 | AN73: 1 | AO73: 1 | AP73: 1 | AQ73: 1 | AR73: 2 | AS73: 3 | AT73: 2 | AU73: 1 | AV73: 1 | AW73: 2 | AX73: 2 | AY73: 1 | AZ73: 2 | BA73: 2 | BB73: 2 | BE73: 2 | BH73: 342 | BI73: 253 | BJ73: 208 | BK73: 206 | BL73: 146 | BM73: 146 | BX73: - | BY73: - | BZ73: - | CA73: 10 | CC73: 1301 | EN73: 69 | EP73: 69 | EQ73: (68)
A74: 70 (69) | B74: Björn Gabrielsson | C74: Vaxholm Hsk | D74: 1172 | F74: 5 | G74: 117.2 | L74: 237 | M74: 215 | N74: 257 | U74: 220 | Y74: 243 | AA74: 18 | AB74: - | AC74: - | AD74: - | AE74: 69 | AF74: 70 | AG74: 70 | AH74: 70 | AK74: 1 | AL74: 1 | AM74: 1 | AN74: 2 | AO74: 3 | AP74: 3 | AQ74: 2 | AR74: 1 | AS74: 1 | AT74: 1 | AU74: 1 | AV74: 1 | AW74: 2 | AX74: 2 | AY74: 1 | AZ74: 1 | BA74: 2 | BB74: 2 | BE74: 2 | BH74: 257 | BI74: 243 | BJ74: 237 | BK74: 220 | BL74: 215 | BX74: - | BY74: - | BZ74: - | CA74: 11 | CC74: 1172 | EN74: 70 | EP74: 70 | EQ74: (69)
A75: 71 (70) | B75: Christer Brincner | C75: Värends Hsk | D75: 1149 | F75: 6 | G75: 95.75 | I75: 187 | L75: 236 | M75: 270 | N75: 127 | O75: 198 | R75: 131 | AA75: 18 | AB75: - | AC75: - | AD75: - | AE75: 70 | AF75: 71 | AG75: 71 | AH75: 71 | AK75: 2 | AL75: 2 | AM75: 1 | AN75: 2 | AO75: 3 | AP75: 3 | AQ75: 3 | AR75: 2 | AS75: 1 | AT75: 2 | AU75: 2 | AV75: 1 | AW75: 1 | AX75: 1 | AY75: 1 | AZ75: 1 | BA75: 1 | BB75: 1 | BE75: 2 | BH75: 270 | BI75: 236 | BJ75: 198 | BK75: 187 | BL75: 131 | BM75: 127 | BX75: - | BY75: - | BZ75: - | CA75: 10 | CC75: 1149 | EN75: 71 | EP75: 71 | EQ75: (70)
A76: 72 (71) | B76: Irené Pettersson | C76: Lanternan | D76: 1111 | F76: 6 | G76: 92.58333333 | J76: 186 | K76: 180 | T76: 179 | U76: 173 | X76: 246 | Y76: 147 | AA76: 18 | AB76: - | AC76: - | AD76: - | AE76: 71 | AF76: 72 | AG76: 72 | AH76: 72 | AK76: 1 | AL76: 2 | AM76: 3 | AN76: 2 | AO76: 1 | AP76: 1 | AQ76: 1 | AR76: 1 | AS76: 1 | AT76: 1 | AU76: 1 | AV76: 2 | AW76: 3 | AX76: 2 | AY76: 1 | AZ76: 2 | BA76: 3 | BB76: 2 | BE76: 2 | BH76: 246 | BI76: 186 | BJ76: 180 | BK76: 179 | BL76: 173 | BM76: 147 | BX76: - | BY76: - | BZ76: - | CA76: 10 | CC76: 1111 | EN76: 72 | EP76: 72 | EQ76: (71)
A77: 73 (72) | B77: Gilbert Pettersson | C77: Lanternan | D77: 1106 | F77: 5 | G77: 110.6 | K77: 181 | Q77: 207 | S77: 221 | T77: 242 | U77: 255 | AA77: 18 | AB77: - | AC77: - | AD77: - | AE77: 72 | AF77: 73 | AG77: 73 | AH77: 73 | AK77: 1 | AL77: 1 | AM77: 2 | AN77: 2 | AO77: 1 | AP77: 1 | AQ77: 1 | AR77: 1 | AS77: 2 | AT77: 2 | AU77: 2 | AV77: 3 | AW77: 3 | AX77: 2 | AY77: 1 | AZ77: 1 | BA77: 1 | BB77: 1 | BE77: 2 | BH77: 255 | BI77: 242 | BJ77: 221 | BK77: 207 | BL77: 181 | BX77: - | BY77: - | BZ77: - | CA77: 11 | CC77: 1106 | EN77: 73 | EP77: 73 | EQ77: (72)
A78: 74 (73) | B78: Lars-Erik Ottosson | C78: Lanternan | D78: 1098 | F78: 5 | G78: 109.8 | P78: 201 | Q78: 188 | T78: 197 | U78: 188 | X78: 324 | AA78: 18 | AB78: - | AC78: - | AD78: - | AE78: 73 | AF78: 74 | AG78: 74 | AH78: 74 | AK78: 1 | AL78: 1 | AM78: 1 | AN78: 1 | AO78: 1 | AP78: 1 | AQ78: 1 | AR78: 2 | AS78: 3 | AT78: 2 | AU78: 1 | AV78: 2 | AW78: 3 | AX78: 2 | AY78: 1 | AZ78: 2 | BA78: 2 | BB78: 1 | BE78: 2 | BH78: 324 | BI78: 201 | BJ78: 197 | BK78: 188 | BL78: 188 | BX78: - | BY78: - | BZ78: - | CA78: 11 | CC78: 1098 | EN78: 74 | EP78: 74 | EQ78: (73)
A79: 75 (75) | B79: Anders Karlsson | C79: Värends Hsk | D79: 1055 | F79: 6 | G79: 87.91666667 | I79: 147 | J79: 195 | M79: 247 | O79: 120 | U79: 187 | Y79: 159 | AA79: 18 | AB79: - | AC79: - | AD79: - | AE79: 75 | AF79: 75 | AG79: 75 | AH79: 75 | AK79: 2 | AL79: 3 | AM79: 2 | AN79: 1 | AO79: 2 | AP79: 2 | AQ79: 2 | AR79: 2 | AS79: 1 | AT79: 1 | AU79: 1 | AV79: 1 | AW79: 2 | AX79: 2 | AY79: 1 | AZ79: 1 | BA79: 2 | BB79: 2 | BE79: 2 | BH79: 247 | BI79: 195 | BJ79: 187 | BK79: 159 | BL79: 147 | BM79: 120 | BX79: - | BY79: - | BZ79: - | CA79: 10 | CC79: 1055 | EN79: 75 | EP79: 75 | EQ79: (75)
A80: 76 (76) | B80: Morgan Atle | C80: Dynapac | D80: 1043 | F80: 6 | G80: 86.91666667 | K80: 207 | L80: 230 | M80: 197 | Q80: 143 | T80: 86 | X80: 180 | AA80: 18 | AB80: - | AC80: - | AD80: - | AE80: 76 | AF80: 76 | AG80: 76 | AH80: 76 | AK80: 1 | AL80: 1 | AM80: 2 | AN80: 3 | AO80: 3 | AP80: 2 | AQ80: 1 | AR80: 1 | AS80: 2 | AT80: 2 | AU80: 1 | AV80: 2 | AW80: 2 | AX80: 1 | AY80: 1 | AZ80: 2 | BA80: 2 | BB80: 1 | BE80: 2 | BH80: 230 | BI80: 207 | BJ80: 197 | BK80: 180 | BL80: 143 | BM80: 86 | BX80: - | BY80: - | BZ80: - | CA80: 10 | CC80: 1043 | EN80: 76 | EP80: 76 | EQ80: (76)
A81: 77 (77) | B81: Jonas Klarström | C81: Team Småland Hsk | D81: 1020 | F81: 7 | G81: 72.85714286 | J81: 200 | L81: 188 | M81: 149 | Q81: 71 | S81: 148 | W81: 129 | Z81: 135 | AA81: 18 | AB81: - | AC81: - | AD81: - | AE81: 77 | AF81: 77 | AG81: 77 | AH81: 77 | AK81: 1 | AL81: 2 | AM81: 2 | AN81: 2 | AO81: 3 | AP81: 2 | AQ81: 1 | AR81: 1 | AS81: 2 | AT81: 2 | AU81: 2 | AV81: 2 | AW81: 1 | AX81: 1 | AY81: 2 | AZ81: 2 | BA81: 1 | BB81: 2 | BE81: 2 | BH81: 200 | BI81: 188 | BJ81: 149 | BK81: 148 | BL81: 135 | BM81: 129 | BN81: 71 | BX81: - | BY81: - | BZ81: - | CA81: 9 | CC81: 1020 | EN81: 77 | EP81: 77 | EQ81: (77)
A82: 78 (78) | B82: Gunnar Lundbeck | C82: Tingsryd | D82: 995 | F82: 7 | G82: 71.07142857 | K82: 168 | L82: 115 | M82: 124 | R82: 141 | S82: 201 | T82: 63 | W82: 183 | AA82: 18 | AB82: - | AC82: - | AD82: - | AE82: 78 | AF82: 78 | AG82: 78 | AH82: 78 | AK82: 1 | AL82: 1 | AM82: 2 | AN82: 3 | AO82: 3 | AP82: 2 | AQ82: 1 | AR82: 1 | AS82: 1 | AT82: 2 | AU82: 3 | AV82: 3 | AW82: 2 | AX82: 1 | AY82: 2 | AZ82: 2 | BA82: 1 | BB82: 1 | BE82: 2 | BH82: 201 | BI82: 183 | BJ82: 168 | BK82: 141 | BL82: 124 | BM82: 115 | BN82: 63 | BX82: - | BY82: - | BZ82: - | CA82: 9 | CC82: 995 | EN82: 78 | EP82: 78 | EQ82: (78)
A83: 79 (79) | B83: Arne Blihd | C83: Lanternan | D83: 986 | F83: 6 | G83: 82.16666667 | J83: 208 | K83: 153 | Q83: 164 | S83: 112 | T83: 162 | X83: 187 | AA83: 18 | AB83: - | AC83: - | AD83: - | AE83: 79 | AF83: 79 | AG83: 79 | AH83: 79 | AK83: 1 | AL83: 2 | AM83: 3 | AN83: 2 | AO83: 1 | AP83: 1 | AQ83: 1 | AR83: 1 | AS83: 2 | AT83: 2 | AU83: 2 | AV83: 3 | AW83: 2 | AX83: 1 | AY83: 1 | AZ83: 2 | BA83: 2 | BB83: 1 | BE83: 2 | BH83: 208 | BI83: 187 | BJ83: 164 | BK83: 162 | BL83: 153 | BM83: 112 | BX83: - | BY83: - | BZ83: - | CA83: 10 | CC83: 986 | EN83: 79 | EP83: 79 | EQ83: (79)
A84: 80 (80) | B84: Stefan Olofsson | C84: Korpen Nybro | D84: 977 | F84: 4 | G84: 122.125 | L84: 242 | O84: 295 | R84: 255 | S84: 185 | AA84: 18 | AB84: - | AC84: - | AD84: - | AE84: 80 | AF84: 80 | AG84: 80 | AH84: 80 | AK84: 1 | AL84: 1 | AM84: 1 | AN84: 2 | AO84: 2 | AP84: 1 | AQ84: 2 | AR84: 2 | AS84: 1 | AT84: 2 | AU84: 3 | AV84: 2 | AW84: 1 | AX84: 1 | AY84: 1 | AZ84: 1 | BA84: 1 | BB84: 1 | BE84: 2 | BH84: 295 | BI84: 255 | BJ84: 242 | BK84: 185 | BX84: - | BY84: - | BZ84: - | CA84: 12 | CC84: 977 | EN84: 80 | EP84: 80 | EQ84: (80)
A85: 81 (81) | B85: Lisbeth Blihd | C85: Lanternan | D85: 963 | F85: 6 | G85: 80.25 | J85: 160 | K85: 130 | Q85: 143 | S85: 153 | T85: 224 | X85: 153 | AA85: 18 | AB85: - | AC85: - | AD85: - | AE85: 81 | AF85: 81 | AG85: 81 | AH85: 81 | AK85: 1 | AL85: 2 | AM85: 3 | AN85: 2 | AO85: 1 | AP85: 1 | AQ85: 1 | AR85: 1 | AS85: 2 | AT85: 2 | AU85: 2 | AV85: 3 | AW85: 2 | AX85: 1 | AY85: 1 | AZ85: 2 | BA85: 2 | BB85: 1 | BE85: 2 | BH85: 224 | BI85: 160 | BJ85: 153 | BK85: 153 | BL85: 143 | BM85: 130 | BX85: - | BY85: - | BZ85: - | CA85: 10 | CC85: 963 | EN85: 81 | EP85: 81 | EQ85: (81)
A86: 82 (82) | B86: Sebastian Israelsson | C86: Sibbamåla | D86: 956 | F86: 4 | G86: 119.5 | L86: 219 | P86: 314 | Q86: 190 | T86: 233 | AA86: 18 | AB86: - | AC86: - | AD86: - | AE86: 82 | AF86: 82 | AG86: 82 | AH86: 82 | AK86: 1 | AL86: 1 | AM86: 1 | AN86: 2 | AO86: 2 | AP86: 1 | AQ86: 1 | AR86: 2 | AS86: 3 | AT86: 2 | AU86: 1 | AV86: 2 | AW86: 2 | AX86: 1 | AY86: 1 | AZ86: 1 | BA86: 1 | BB86: 1 | BE86: 2 | BH86: 314 | BI86: 233 | BJ86: 219 | BK86: 190 | BX86: - | BY86: - | BZ86: - | CA86: 12 | CC86: 956 | EN86: 82 | EP86: 82 | EQ86: (82)
A87: 83 (83) | B87: Mikael Grönskog | C87: Sibbamåla | D87: 920 | F87: 5 | G87: 92 | Q87: 175 | T87: 171 | U87: 228 | X87: 201 | Y87: 145 | AA87: 18 | AB87: - | AC87: - | AD87: - | AE87: 83 | AF87: 83 | AG87: 83 | AH87: 83 | AK87: 1 | AL87: 1 | AM87: 1 | AN87: 1 | AO87: 1 | AP87: 1 | AQ87: 1 | AR87: 1 | AS87: 2 | AT87: 2 | AU87: 1 | AV87: 2 | AW87: 3 | AX87: 2 | AY87: 1 | AZ87: 2 | BA87: 3 | BB87: 2 | BE87: 2 | BH87: 228 | BI87: 201 | BJ87: 175 | BK87: 171 | BL87: 145 | BX87: - | BY87: - | BZ87: - | CA87: 11 | CC87: 920 | EN87: 83 | EP87: 83 | EQ87: (83)
A88: 84 (84) | B88: Alf Johansson | C88: Värends Hsk | D88: 912 | F88: 9 | G88: 50.66666667 | I88: 122 | J88: 118 | K88: 94 | L88: 116 | M88: 146 | O88: 59 | R88: 104 | Y88: 44 | Z88: 109 | AA88: 18 | AB88: - | AC88: - | AD88: - | AE88: 84 | AF88: 84 | AG88: 84 | AH88: 84 | AK88: 2 | AL88: 3 | AM88: 3 | AN88: 3 | AO88: 3 | AP88: 2 | AQ88: 2 | AR88: 2 | AS88: 1 | AT88: 2 | AU88: 2 | AV88: 1 | AW88: 1 | AX88: 1 | AY88: 1 | AZ88: 1 | BA88: 2 | BB88: 3 | BE88: 2 | BH88: 146 | BI88: 122 | BJ88: 118 | BK88: 116 | BL88: 109 | BM88: 104 | BN88: 94 | BO88: 59 | BP88: 44 | BX88: - | BY88: - | BZ88: - | CA88: 7 | CC88: 912 | EN88: 84 | EP88: 84 | EQ88: (84)
A89: 85 (85) | B89: Hans Johansson | C89: Tingsryd | D89: 894 | F89: 4 | G89: 111.75 | L89: 215 | M89: 206 | Y89: 265 | Z89: 208 | AA89: 18 | AB89: - | AC89: - | AD89: - | AE89: 85 | AF89: 85 | AG89: 85 | AH89: 85 | AK89: 1 | AL89: 1 | AM89: 1 | AN89: 2 | AO89: 3 | AP89: 2 | AQ89: 1 | AR89: 1 | AS89: 1 | AT89: 1 | AU89: 1 | AV89: 1 | AW89: 1 | AX89: 1 | AY89: 1 | AZ89: 1 | BA89: 2 | BB89: 3 | BE89: 2 | BH89: 265 | BI89: 215 | BJ89: 208 | BK89: 206 | BX89: - | BY89: - | BZ89: - | CA89: 12 | CC89: 894 | EN89: 85 | EP89: 85 | EQ89: (85)
A90: 86 (86) | B90: Maria Andersson | C90: Team Småland Hsk | D90: 867 | F90: 5 | G90: 86.7 | J90: 193 | L90: 222 | M90: 163 | Q90: 104 | Z90: 185 | AA90: 18 | AB90: - | AC90: - | AD90: - | AE90: 86 | AF90: 86 | AG90: 86 | AH90: 86 | AK90: 1 | AL90: 2 | AM90: 2 | AN90: 2 | AO90: 3 | AP90: 2 | AQ90: 1 | AR90: 1 | AS90: 2 | AT90: 2 | AU90: 1 | AV90: 1 | AW90: 1 | AX90: 1 | AY90: 1 | AZ90: 1 | BA90: 1 | BB90: 2 | BE90: 2 | BH90: 222 | BI90: 193 | BJ90: 185 | BK90: 163 | BL90: 104 | BX90: - | BY90: - | BZ90: - | CA90: 11 | CC90: 867 | EN90: 86 | EP90: 86 | EQ90: (86)
A91: 87 (87) | B91: Janne Johansson | C91: Tingsryd | D91: 753 | F91: 3 | G91: 125.5 | M91: 290 | T91: 178 | W91: 285 | AA91: 18 | AB91: - | AC91: - | AD91: - | AE91: 87 | AF91: 87 | AG91: 87 | AH91: 87 | AK91: 1 | AL91: 1 | AM91: 1 | AN91: 1 | AO91: 2 | AP91: 2 | AQ91: 1 | AR91: 1 | AS91: 1 | AT91: 1 | AU91: 1 | AV91: 2 | AW91: 2 | AX91: 1 | AY91: 2 | AZ91: 2 | BA91: 1 | BB91: 1 | BE91: 2 | BH91: 290 | BI91: 285 | BJ91: 178 | BX91: - | BY91: - | BZ91: - | CA91: 13 | CC91: 753 | EN91: 87 | EP91: 87 | EQ91: (87)
A92: 88 (88) | B92: Mattias Olsson | C92: Dynapac | D92: 727 | F92: 3 | G92: 121.1666667 | Q92: 238 | U92: 230 | X92: 259 | AA92: 18 | AB92: - | AC92: - | AD92: - | AE92: 88 | AF92: 88 | AG92: 88 | AH92: 88 | AK92: 1 | AL92: 1 | AM92: 1 | AN92: 1 | AO92: 1 | AP92: 1 | AQ92: 1 | AR92: 1 | AS92: 2 | AT92: 2 | AU92: 1 | AV92: 1 | AW92: 2 | AX92: 2 | AY92: 1 | AZ92: 2 | BA92: 2 | BB92: 1 | BE92: 2 | BH92: 259 | BI92: 238 | BJ92: 230 | BX92: - | BY92: - | BZ92: - | CA92: 13 | CC92: 727 | EN92: 88 | EP92: 88 | EQ92: (88)
A93: 89 (89) | B93: Tommy Svensson | C93: Värends Hsk | D93: 679 | F93: 5 | G93: 67.9 | I93: 229 | J93: 127 | M93: 89 | R93: 130 | T93: 104 | AA93: 18 | AB93: - | AC93: - | AD93: - | AE93: 89 | AF93: 89 | AG93: 89 | AH93: 89 | AK93: 2 | AL93: 3 | AM93: 2 | AN93: 1 | AO93: 2 | AP93: 2 | AQ93: 1 | AR93: 1 | AS93: 1 | AT93: 2 | AU93: 2 | AV93: 2 | AW93: 2 | AX93: 1 | AY93: 1 | AZ93: 1 | BA93: 1 | BB93: 1 | BE93: 2 | BH93: 229 | BI93: 130 | BJ93: 127 | BK93: 104 | BL93: 89 | BX93: - | BY93: - | BZ93: - | CA93: 11 | CC93: 679 | EN93: 90 | EP93: 89 | EQ93: (89)
A94: 90 (90) | B94: Kerstin Petersen | C94: Växjö Hsk | D94: 678 | F94: 4 | G94: 84.75 | K94: 170 | L94: 194 | O94: 152 | Z94: 162 | AA94: 18 | AB94: - | AC94: - | AD94: - | AE94: 90 | AF94: 90 | AG94: 90 | AH94: 90 | AK94: 1 | AL94: 1 | AM94: 2 | AN94: 3 | AO94: 2 | AP94: 1 | AQ94: 2 | AR94: 2 | AS94: 1 | AT94: 1 | AU94: 1 | AV94: 1 | AW94: 1 | AX94: 1 | AY94: 1 | AZ94: 1 | BA94: 1 | BB94: 2 | BE94: 2 | BH94: 194 | BI94: 170 | BJ94: 162 | BK94: 152 | BX94: - | BY94: - | BZ94: - | CA94: 12 | CC94: 678 | EN94: 91 | EP94: 90 | EQ94: (90)
A95: 91 (91) | B95: Ingegärd Holmqvist | C95: Lanternan | D95: 676 | F95: 5 | G95: 67.6 | J95: 124 | K95: 144 | L95: 130 | M95: 131 | X95: 147 | AA95: 18 | AB95: - | AC95: - | AD95: - | AE95: 91 | AF95: 91 | AG95: 91 | AH95: 91 | AK95: 1 | AL95: 2 | AM95: 3 | AN95: 3 | AO95: 3 | AP95: 2 | AQ95: 1 | AR95: 1 | AS95: 1 | AT95: 1 | AU95: 1 | AV95: 1 | AW95: 1 | AX95: 1 | AY95: 1 | AZ95: 2 | BA95: 2 | BB95: 1 | BE95: 2 | BH95: 147 | BI95: 144 | BJ95: 131 | BK95: 130 | BL95: 124 | BX95: - | BY95: - | BZ95: - | CA95: 11 | CC95: 676 | EN95: 92 | EP95: 91 | EQ95: (91)
A96: 92 (92) | B96: Tony Borgström | C96: Carlskrona | D96: 669 | F96: 3 | G96: 111.5 | L96: 213 | M96: 274 | Q96: 182 | AA96: 18 | AB96: - | AC96: - | AD96: - | AE96: 92 | AF96: 92 | AG96: 92 | AH96: 92 | AK96: 1 | AL96: 1 | AM96: 1 | AN96: 2 | AO96: 3 | AP96: 2 | AQ96: 1 | AR96: 1 | AS96: 2 | AT96: 2 | AU96: 1 | AV96: 1 | AW96: 1 | AX96: 1 | AY96: 1 | AZ96: 1 | BA96: 1 | BB96: 1 | BE96: 2 | BH96: 274 | BI96: 213 | BJ96: 182 | BX96: - | BY96: - | BZ96: - | CA96: 13 | CC96: 669 | EN96: 93 | EP96: 92 | EQ96: (92)
A97: 93 (93) | B97: Christian Balsiger | C97: Värends Hsk | D97: 663 | F97: 3 | G97: 110.5 | I97: 201 | L97: 210 | M97: 252 | AA97: 18 | AB97: - | AC97: - | AD97: - | AE97: 93 | AF97: 93 | AG97: 93 | AH97: 93 | AK97: 2 | AL97: 2 | AM97: 1 | AN97: 2 | AO97: 3 | AP97: 2 | AQ97: 1 | AR97: 1 | AS97: 1 | AT97: 1 | AU97: 1 | AV97: 1 | AW97: 1 | AX97: 1 | AY97: 1 | AZ97: 1 | BA97: 1 | BB97: 1 | BE97: 2 | BH97: 252 | BI97: 210 | BJ97: 201 | BX97: - | BY97: - | BZ97: - | CA97: 13 | CC97: 663 | EN97: 89 | EP97: 93 | EQ97: (93)
A98: 94 (94) | B98: Annika Milsten | C98: Tingsryd | D98: 662 | F98: 3 | G98: 110.3333333 | L98: 232 | M98: 237 | Z98: 193 | AA98: 18 | AB98: - | AC98: - | AD98: - | AE98: 94 | AF98: 94 | AG98: 94 | AH98: 94 | AK98: 1 | AL98: 1 | AM98: 1 | AN98: 2 | AO98: 3 | AP98: 2 | AQ98: 1 | AR98: 1 | AS98: 1 | AT98: 1 | AU98: 1 | AV98: 1 | AW98: 1 | AX98: 1 | AY98: 1 | AZ98: 1 | BA98: 1 | BB98: 2 | BE98: 2 | BH98: 237 | BI98: 232 | BJ98: 193 | BX98: - | BY98: - | BZ98: - | CA98: 13 | CC98: 662 | EN98: 94 | EP98: 94 | EQ98: (94)
A99: 95 (95) | B99: Julius Gneupel | C99: Sibbamåla | D99: 606 | F99: 4 | G99: 75.75 | L99: 151 | M99: 123 | Q99: 158 | U99: 174 | AA99: 18 | AB99: - | AC99: - | AD99: - | AE99: 95 | AF99: 95 | AG99: 95 | AH99: 95 | AK99: 1 | AL99: 1 | AM99: 1 | AN99: 2 | AO99: 3 | AP99: 2 | AQ99: 1 | AR99: 1 | AS99: 2 | AT99: 2 | AU99: 1 | AV99: 1 | AW99: 2 | AX99: 2 | AY99: 1 | AZ99: 1 | BA99: 1 | BB99: 1 | BE99: 2 | BH99: 174 | BI99: 158 | BJ99: 151 | BK99: 123 | BX99: - | BY99: - | BZ99: - | CA99: 12 | CC99: 606 | EN99: 95 | EP99: 95 | EQ99: (95)
A100: 96 (96) | B100: Kjell Åkesson | C100: Lanternan | D100: 603 | F100: 3 | G100: 100.5 | K100: 187 | Q100: 187 | T100: 229 | AA100: 18 | AB100: - | AC100: - | AD100: - | AE100: 96 | AF100: 96 | AG100: 96 | AH100: 96 | AK100: 1 | AL100: 1 | AM100: 2 | AN100: 2 | AO100: 1 | AP100: 1 | AQ100: 1 | AR100: 1 | AS100: 2 | AT100: 2 | AU100: 1 | AV100: 2 | AW100: 2 | AX100: 1 | AY100: 1 | AZ100: 1 | BA100: 1 | BB100: 1 | BE100: 2 | BH100: 229 | BI100: 187 | BJ100: 187 | BX100: - | BY100: - | BZ100: - | CA100: 13 | CC100: 603 | EN100: 96 | EP100: 96 | EQ100: (96)
A101: 97 (97) | B101: Hernan Hernandez | C101: Jämjö Hsk | D101: 577 | F101: 4 | G101: 72.125 | J101: 188 | Q101: 76 | U101: 158 | X101: 155 | AA101: 18 | AB101: - | AC101: - | AD101: - | AE101: 97 | AF101: 97 | AG101: 97 | AH101: 97 | AK101: 1 | AL101: 2 | AM101: 2 | AN101: 1 | AO101: 1 | AP101: 1 | AQ101: 1 | AR101: 1 | AS101: 2 | AT101: 2 | AU101: 1 | AV101: 1 | AW101: 2 | AX101: 2 | AY101: 1 | AZ101: 2 | BA101: 2 | BB101: 1 | BE101: =IF(H101="x",1,2) -> 2 | BH101: =IF($F101>0,LARGE($I101:$Z101,1),"") -> 188 | BI101: =IF($F101>1,LARGE($I101:$Z101,2),"") -> 158 | BJ101: =IF($F101>2,LARGE($I101:$Z101,3),"") -> 155 | BK101: =IF($F101>3,LARGE($I101:$Z101,4),"") -> 76 | BL101: =IF($F101>4,LARGE($I101:$Z101,5),"") ->  | BM101: =IF($F101>5,LARGE($I101:$Z101,6),"") ->  | BN101: =IF($F101>6,LARGE($I101:$Z101,7),"") ->  | BO101: =IF($F101>7,LARGE($I101:$Z101,8),"") ->  | BP101: =IF($F101>8,LARGE($I101:$Z101,9),"") ->  | BQ101: =IF($F101>9,LARGE($I101:$Z101,10),"") ->  | BR101: =IF($F101>10,LARGE($I101:$Z101,11),"") ->  | BS101: =IF($F101>11,LARGE($I101:$Z101,12),"") ->  | BT101: =IF($F101>12,LARGE($I101:$Z101,13),"") ->  | BU101: =IF($F101>13,LARGE($I101:$Z101,14),"") ->  | BV101: =IF($F101>14,LARGE($I101:$Z101,15),"") ->  | BW101: =IF($F101>15,LARGE($I101:$Z101,16),"") ->  | BX101: =IF($F101>12,LARGE($I101:$Z101,13),"-") -> - | BY101: =IF($F101>13,LARGE($I101:$Z101,14),"-") -> - | BZ101: =IF($F101>14,LARGE($I101:$Z101,15),"-") -> - | CA101: =SUM(AA101-F101)-2 -> 12 | CC101: 577 | EN101: 97 | EP101: =IF(BE101>=1,AF101,"") -> 97 | EQ101: (97)
A102: 98 (98) | B102: Ulrika Rydell | C102: Värends Hsk | D102: 569 | F102: 3 | G102: 94.83333333 | K102: 226 | R102: 137 | U102: 206 | AA102: 18 | AB102: - | AC102: - | AD102: - | AE102: 98 | AF102: 98 | AG102: 98 | AH102: 98 | AK102: 1 | AL102: 1 | AM102: 2 | AN102: 2 | AO102: 1 | AP102: 1 | AQ102: 1 | AR102: 1 | AS102: 1 | AT102: 2 | AU102: 2 | AV102: 1 | AW102: 2 | AX102: 2 | AY102: 1 | AZ102: 1 | BA102: 1 | BB102: 1 | BE102: 2 | BH102: 226 | BI102: 206 | BJ102: 137 | BX102: - | BY102: - | BZ102: - | CA102: 13 | CC102: 569 | EN102: 98 | EP102: 98 | EQ102: (98)
A103: 99 (99) | B103: Åke Bjaerregard | C103: Tingsryd | D103: 506 | F103: 3 | G103: 84.33333333 | I103: 186 | Y103: 130 | Z103: 190 | AA103: 18 | AB103: - | AC103: - | AD103: - | AE103: 99 | AF103: 99 | AG103: 99 | AH103: 99 | AK103: 2 | AL103: 2 | AM103: 1 | AN103: 1 | AO103: 1 | AP103: 1 | AQ103: 1 | AR103: 1 | AS103: 1 | AT103: 1 | AU103: 1 | AV103: 1 | AW103: 1 | AX103: 1 | AY103: 1 | AZ103: 1 | BA103: 2 | BB103: 3 | BE103: 2 | BH103: 190 | BI103: 186 | BJ103: 130 | BX103: - | BY103: - | BZ103: - | CA103: 13 | CC103: 506 | EN103: 99 | EP103: 99 | EQ103: (99)
A104: 100 (100) | B104: Johanna Hyväinen/Johansson | C104: Rävemåla | D104: 471 | F104: 2 | G104: 117.75 | L104: 254 | M104: 217 | AA104: 18 | AB104: - | AC104: - | AD104: - | AE104: 100 | AF104: 100 | AG104: 100 | AH104: 100 | AK104: 1 | AL104: 1 | AM104: 1 | AN104: 2 | AO104: 3 | AP104: 2 | AQ104: 1 | AR104: 1 | AS104: 1 | AT104: 1 | AU104: 1 | AV104: 1 | AW104: 1 | AX104: 1 | AY104: 1 | AZ104: 1 | BA104: 1 | BB104: 1 | BE104: 2 | BH104: 254 | BI104: 217 | BX104: - | BY104: - | BZ104: - | CA104: 14 | CC104: 471 | EN104: 100 | EP104: 100 | EQ104: (100)
A105: 101 (101) | B105: Roland Andreasson | C105: Lanternan | D105: 442 | F105: 2 | G105: 110.5 | K105: 220 | Q105: 222 | AA105: 18 | AB105: - | AC105: - | AD105: - | AE105: 101 | AF105: 101 | AG105: 101 | AH105: 101 | AK105: 1 | AL105: 1 | AM105: 2 | AN105: 2 | AO105: 1 | AP105: 1 | AQ105: 1 | AR105: 1 | AS105: 2 | AT105: 2 | AU105: 1 | AV105: 1 | AW105: 1 | AX105: 1 | AY105: 1 | AZ105: 1 | BA105: 1 | BB105: 1 | BE105: 2 | BH105: 222 | BI105: 220 | BX105: - | BY105: - | BZ105: - | CA105: 14 | CC105: 442 | EN105: 101 | EP105: 101 | EQ105: (101)
A106: 102 (102) | B106: Mats Mårtensson | C106: Jämjö Hsk | D106: 439 | F106: 2 | G106: 109.75 | J106: 273 | T106: 166 | AA106: 18 | AB106: - | AC106: - | AD106: - | AE106: 102 | AF106: 102 | AG106: 102 | AH106: 102 | AK106: 1 | AL106: 2 | AM106: 2 | AN106: 1 | AO106: 1 | AP106: 1 | AQ106: 1 | AR106: 1 | AS106: 1 | AT106: 1 | AU106: 1 | AV106: 2 | AW106: 2 | AX106: 1 | AY106: 1 | AZ106: 1 | BA106: 1 | BB106: 1 | BE106: 2 | BH106: 273 | BI106: 166 | BX106: - | BY106: - | BZ106: - | CA106: 14 | CC106: 439 | EN106: 103 | EP106: 102 | EQ106: (102)
A107: 103 (103) | B107: Joakim Strand | C107: Korpen Åseda | D107: 435 | F107: 3 | G107: 72.5 | R107: 184 | S107: 112 | Y107: 139 | AA107: 18 | AB107: - | AC107: - | AD107: - | AE107: 103 | AF107: 103 | AG107: 103 | AH107: 103 | AK107: 1 | AL107: 1 | AM107: 1 | AN107: 1 | AO107: 1 | AP107: 1 | AQ107: 1 | AR107: 1 | AS107: 1 | AT107: 2 | AU107: 3 | AV107: 2 | AW107: 1 | AX107: 1 | AY107: 1 | AZ107: 1 | BA107: 2 | BB107: 2 | BE107: 2 | BH107: 184 | BI107: 139 | BJ107: 112 | BX107: - | BY107: - | BZ107: - | CA107: 13 | CC107: 435 | EN107: 104 | EP107: 103 | EQ107: (103)
A108: 104 (104) | B108: Mona Andersson | C108: Carlskrona | D108: 428 | F108: 4 | G108: 53.5 | L108: 147 | M108: 106 | Q108: 102 | T108: 73 | AA108: 18 | AB108: - | AC108: - | AD108: - | AE108: 104 | AF108: 104 | AG108: 104 | AH108: 104 | AK108: 1 | AL108: 1 | AM108: 1 | AN108: 2 | AO108: 3 | AP108: 2 | AQ108: 1 | AR108: 1 | AS108: 2 | AT108: 2 | AU108: 1 | AV108: 2 | AW108: 2 | AX108: 1 | AY108: 1 | AZ108: 1 | BA108: 1 | BB108: 1 | BE108: 2 | BH108: 147 | BI108: 106 | BJ108: 102 | BK108: 73 | BX108: - | BY108: - | BZ108: - | CA108: 12 | CC108: 428 | EN108: 105 | EP108: 104 | EQ108: (104)
A109: 105 (105) | B109: Emil Rehn | C109: Korpen Åseda | D109: 419 | F109: 2 | G109: 104.75 | S109: 152 | T109: 267 | AA109: 18 | AB109: - | AC109: - | AD109: - | AE109: 105 | AF109: 105 | AG109: 105 | AH109: 105 | AK109: 1 | AL109: 1 | AM109: 1 | AN109: 1 | AO109: 1 | AP109: 1 | AQ109: 1 | AR109: 1 | AS109: 1 | AT109: 1 | AU109: 2 | AV109: 3 | AW109: 2 | AX109: 1 | AY109: 1 | AZ109: 1 | BA109: 1 | BB109: 1 | BE109: 2 | BH109: 267 | BI109: 152 | BX109: - | BY109: - | BZ109: - | CA109: 14 | CC109: 419 | EN109: 106 | EP109: 105 | EQ109: (105)
A110: 106 (106) | B110: Karin Gullbrand | C110: Värends Hsk | D110: 415 | F110: 4 | G110: 51.875 | J110: 157 | N110: 110 | T110: 62 | Z110: 86 | AA110: 18 | AB110: - | AC110: - | AD110: - | AE110: 106 | AF110: 106 | AG110: 106 | AH110: 106 | AK110: 1 | AL110: 2 | AM110: 2 | AN110: 1 | AO110: 1 | AP110: 2 | AQ110: 2 | AR110: 1 | AS110: 1 | AT110: 1 | AU110: 1 | AV110: 2 | AW110: 2 | AX110: 1 | AY110: 1 | AZ110: 1 | BA110: 1 | BB110: 2 | BE110: 2 | BH110: 157 | BI110: 110 | BJ110: 86 | BK110: 62 | BX110: - | BY110: - | BZ110: - | CA110: 12 | CC110: 415 | EN110: 107 | EP110: 106 | EQ110: (106)
A111: 107 (107) | B111: Christoffer Cederholm | C111: Tingsryd | D111: 409 | F111: 3 | G111: 68.16666667 | I111: 158 | L111: 110 | Z111: 141 | AA111: 18 | AB111: - | AC111: - | AD111: - | AE111: 107 | AF111: 107 | AG111: 107 | AH111: 107 | AK111: 2 | AL111: 2 | AM111: 1 | AN111: 2 | AO111: 2 | AP111: 1 | AQ111: 1 | AR111: 1 | AS111: 1 | AT111: 1 | AU111: 1 | AV111: 1 | AW111: 1 | AX111: 1 | AY111: 1 | AZ111: 1 | BA111: 1 | BB111: 2 | BE111: 2 | BH111: 158 | BI111: 141 | BJ111: 110 | BX111: - | BY111: - | BZ111: - | CA111: 13 | CC111: 409 | EN111: 108 | EP111: 107 | EQ111: (107)
A112: 108 (108) | B112: Joseph Attenberger | C112: Tingsryd | D112: 402 | F112: 2 | G112: 100.5 | I112: 190 | Z112: 212 | AA112: 18 | AB112: - | AC112: - | AD112: - | AE112: 108 | AF112: 108 | AG112: 108 | AH112: 108 | AK112: 2 | AL112: 2 | AM112: 1 | AN112: 1 | AO112: 1 | AP112: 1 | AQ112: 1 | AR112: 1 | AS112: 1 | AT112: 1 | AU112: 1 | AV112: 1 | AW112: 1 | AX112: 1 | AY112: 1 | AZ112: 1 | BA112: 1 | BB112: 2 | BE112: 2 | BH112: 212 | BI112: 190 | BX112: - | BY112: - | BZ112: - | CA112: 14 | CC112: 402 | EN112: 102 | EP112: 108 | EQ112: (108)
A113: 109 (109) | B113: Fredrik Lundin | C113: Lanternan | D113: 399 | F113: 2 | G113: 99.75 | J113: 217 | Q113: 182 | AA113: 18 | AB113: - | AC113: - | AD113: - | AE113: 109 | AF113: 109 | AG113: 109 | AH113: 109 | AK113: 1 | AL113: 2 | AM113: 2 | AN113: 1 | AO113: 1 | AP113: 1 | AQ113: 1 | AR113: 1 | AS113: 2 | AT113: 2 | AU113: 1 | AV113: 1 | AW113: 1 | AX113: 1 | AY113: 1 | AZ113: 1 | BA113: 1 | BB113: 1 | BE113: 2 | BH113: 217 | BI113: 182 | BX113: - | BY113: - | BZ113: - | CA113: 14 | CC113: 399 | EN113: 109 | EP113: 109 | EQ113: (109)
A114: 110 (110) | B114: Armin Sisic | C114: Värends Hsk | D114: 392 | F114: 1 | G114: 196 | M114: 392 | AA114: 18 | AB114: - | AC114: - | AD114: - | AE114: 110 | AF114: 110 | AG114: - | AH114: 110 | AK114: 1 | AL114: 1 | AM114: 1 | AN114: 1 | AO114: 2 | AP114: 2 | AQ114: 1 | AR114: 1 | AS114: 1 | AT114: 1 | AU114: 1 | AV114: 1 | AW114: 1 | AX114: 1 | AY114: 1 | AZ114: 1 | BA114: 1 | BB114: 1 | BE114: 2 | BH114: 392 | BX114: - | BY114: - | BZ114: - | CA114: 15 | CC114: 392 | EN114: 110 | EP114: 110 | EQ114: (110)
A115: 111 (111) | B115: Jörgen Holmqvist | C115: Lessebo Hsk | D115: 381 | F115: 1 | G115: 190.5 | L115: 381 | AA115: 18 | AB115: - | AC115: - | AD115: - | AE115: 111 | AF115: 111 | AG115: - | AH115: 111 | AK115: 1 | AL115: 1 | AM115: 1 | AN115: 2 | AO115: 2 | AP115: 1 | AQ115: 1 | AR115: 1 | AS115: 1 | AT115: 1 | AU115: 1 | AV115: 1 | AW115: 1 | AX115: 1 | AY115: 1 | AZ115: 1 | BA115: 1 | BB115: 1 | BE115: 2 | BH115: 381 | BX115: - | BY115: - | BZ115: - | CA115: 15 | CC115: 381 | EN115: 116 | EP115: 111 | EQ115: (111)
A116: 112 (135) | B116: Pascal Letter | C116: Balders HSK | D116: 372 | F116: 2 | G116: 93 | U116: 189 | V116: 183 | AA116: 18 | AB116: - | AC116: - | AD116: - | AE116: 135 | AF116: 112 | AG116: 112 | AH116: 112 | AK116: 1 | AL116: 1 | AM116: 1 | AN116: 1 | AO116: 1 | AP116: 1 | AQ116: 1 | AR116: 1 | AS116: 1 | AT116: 1 | AU116: 1 | AV116: 1 | AW116: 2 | AX116: 3 | AY116: 2 | AZ116: 1 | BA116: 1 | BB116: 1 | BE116: 2 | BH116: 189 | BI116: 183 | BX116: - | BY116: - | BZ116: - | CA116: 14 | CC116: 372 | EN116: 111 | EP116: 112 | EQ116: (135)
A117: 113 (145) | B117: Victor Bengtsson | C117: Vaxholm | D117: 367 | F117: 2 | G117: 91.75 | N117: 164 | V117: 203 | AA117: 18 | AB117: - | AC117: - | AD117: - | AE117: 145 | AF117: 113 | AG117: 113 | AH117: 113 | AK117: 1 | AL117: 1 | AM117: 1 | AN117: 1 | AO117: 1 | AP117: 2 | AQ117: 2 | AR117: 1 | AS117: 1 | AT117: 1 | AU117: 1 | AV117: 1 | AW117: 1 | AX117: 2 | AY117: 2 | AZ117: 1 | BA117: 1 | BB117: 1 | BE117: 2 | BH117: 203 | BI117: 164 | BX117: - | BY117: - | BZ117: - | CA117: 14 | CC117: 367 | EN117: 112 | EP117: 113 | EQ117: (145)
A118: 114 (141) | B118: Andreas Gundersen | C118: Vaxholm Hsk | D118: 357 | F118: 2 | G118: 89.25 | N118: 180 | V118: 177 | AA118: 18 | AB118: - | AC118: - | AD118: - | AE118: 141 | AF118: 114 | AG118: 114 | AH118: 114 | AK118: 1 | AL118: 1 | AM118: 1 | AN118: 1 | AO118: 1 | AP118: 2 | AQ118: 2 | AR118: 1 | AS118: 1 | AT118: 1 | AU118: 1 | AV118: 1 | AW118: 1 | AX118: 2 | AY118: 2 | AZ118: 1 | BA118: 1 | BB118: 1 | BE118: 2 | BH118: 180 | BI118: 177 | BX118: - | BY118: - | BZ118: - | CA118: 14 | CC118: 357 | EN118: 114 | EP118: 114 | EQ118: (141)
A119: 115 (147) | B119: Mikael Klaving | C119: Vaxholm Hsk | D119: 353 | F119: 2 | G119: 88.25 | N119: 153 | V119: 200 | AA119: 18 | AB119: - | AC119: - | AD119: - | AE119: 147 | AF119: 115 | AG119: 115 | AH119: 115 | AK119: 1 | AL119: 1 | AM119: 1 | AN119: 1 | AO119: 1 | AP119: 2 | AQ119: 2 | AR119: 1 | AS119: 1 | AT119: 1 | AU119: 1 | AV119: 1 | AW119: 1 | AX119: 2 | AY119: 2 | AZ119: 1 | BA119: 1 | BB119: 1 | BE119: 2 | BH119: 200 | BI119: 153 | BX119: - | BY119: - | BZ119: - | CA119: 14 | CC119: 353 | EN119: 115 | EP119: 115 | EQ119: (147)
A120: 116 (143) | B120: Thomas Diedrichs | C120: Vaxholm Hsk | D120: 349 | F120: 2 | G120: 87.25 | N120: 179 | V120: 170 | AA120: 18 | AB120: - | AC120: - | AD120: - | AE120: 143 | AF120: 116 | AG120: 116 | AH120: 116 | AK120: 1 | AL120: 1 | AM120: 1 | AN120: 1 | AO120: 1 | AP120: 2 | AQ120: 2 | AR120: 1 | AS120: 1 | AT120: 1 | AU120: 1 | AV120: 1 | AW120: 1 | AX120: 2 | AY120: 2 | AZ120: 1 | BA120: 1 | BB120: 1 | BE120: 2 | BH120: 179 | BI120: 170 | BX120: - | BY120: - | BZ120: - | CA120: 14 | CC120: 349 | EN120: 117 | EP120: 116 | EQ120: (143)
A121: 117 (112) | B121: Leif Ahlex | C121: Lessebo | D121: 341 | F121: 1 | G121: 170.5 | L121: 341 | AA121: 18 | AB121: - | AC121: - | AD121: - | AE121: 112 | AF121: 117 | AG121: - | AH121: 117 | AK121: 1 | AL121: 1 | AM121: 1 | AN121: 2 | AO121: 2 | AP121: 1 | AQ121: 1 | AR121: 1 | AS121: 1 | AT121: 1 | AU121: 1 | AV121: 1 | AW121: 1 | AX121: 1 | AY121: 1 | AZ121: 1 | BA121: 1 | BB121: 1 | BE121: 2 | BH121: 341 | BX121: - | BY121: - | BZ121: - | CA121: 15 | CC121: 341 | EN121: 118 | EP121: 117 | EQ121: (112)
A122: 118 (113) | B122: Eva Åkesson | C122: Lanternan | D122: 334 | F122: 3 | G122: 55.66666667 | K122: 99 | Q122: 90 | T122: 145 | AA122: 18 | AB122: - | AC122: - | AD122: - | AE122: 113 | AF122: 118 | AG122: 118 | AH122: 118 | AK122: 1 | AL122: 1 | AM122: 2 | AN122: 2 | AO122: 1 | AP122: 1 | AQ122: 1 | AR122: 1 | AS122: 2 | AT122: 2 | AU122: 1 | AV122: 2 | AW122: 2 | AX122: 1 | AY122: 1 | AZ122: 1 | BA122: 1 | BB122: 1 | BE122: 2 | BH122: 145 | BI122: 99 | BJ122: 90 | BX122: - | BY122: - | BZ122: - | CA122: 13 | CC122: 334 | EN122: 119 | EP122: 118 | EQ122: (113)
A123: 119 (114) | B123: Christina Holmberg | C123: Tingsryd | D123: 327 | F123: 2 | G123: 81.75 | L123: 127 | N123: 200 | AA123: 18 | AB123: - | AC123: - | AD123: - | AE123: 114 | AF123: 119 | AG123: 119 | AH123: 119 | AK123: 1 | AL123: 1 | AM123: 1 | AN123: 2 | AO123: 2 | AP123: 2 | AQ123: 2 | AR123: 1 | AS123: 1 | AT123: 1 | AU123: 1 | AV123: 1 | AW123: 1 | AX123: 1 | AY123: 1 | AZ123: 1 | BA123: 1 | BB123: 1 | BE123: 2 | BH123: 200 | BI123: 127 | BX123: - | BY123: - | BZ123: - | CA123: 14 | CC123: 327 | EN123: 120 | EP123: 119 | EQ123: (114)
A124: 120 (115) | B124: Kjell Rydh | C124: Korpen Nybro | D124: 322 | F124: 2 | G124: 80.5 | S124: 144 | W124: 178 | AA124: 18 | AB124: - | AC124: - | AD124: - | AE124: 115 | AF124: 120 | AG124: 120 | AH124: 120 | AK124: 1 | AL124: 1 | AM124: 1 | AN124: 1 | AO124: 1 | AP124: 1 | AQ124: 1 | AR124: 1 | AS124: 1 | AT124: 1 | AU124: 2 | AV124: 2 | AW124: 1 | AX124: 1 | AY124: 2 | AZ124: 2 | BA124: 1 | BB124: 1 | BE124: 2 | BH124: 178 | BI124: 144 | BX124: - | BY124: - | BZ124: - | CA124: 14 | CC124: 322 | EN124: 121 | EP124: 120 | EQ124: (115)
A125: 121 (116) | B125: Kasper Sjöberg | C125: Sketnabäck | D125: 301 | F125: 1 | G125: 150.5 | Q125: 301 | AA125: 18 | AB125: - | AC125: - | AD125: - | AE125: 116 | AF125: 121 | AG125: - | AH125: 121 | AK125: 1 | AL125: 1 | AM125: 1 | AN125: 1 | AO125: 1 | AP125: 1 | AQ125: 1 | AR125: 1 | AS125: 2 | AT125: 2 | AU125: 1 | AV125: 1 | AW125: 1 | AX125: 1 | AY125: 1 | AZ125: 1 | BA125: 1 | BB125: 1 | BE125: 2 | BH125: 301 | BX125: - | BY125: - | BZ125: - | CA125: 15 | CC125: 301 | EN125: 127 | EP125: 121 | EQ125: (116)
A126: 122 (117) | B126: Martin Silven | C126: Sollentuna | D126: 283 | F126: 1 | G126: 141.5 | N126: 283 | AA126: 18 | AB126: - | AC126: - | AD126: - | AE126: 117 | AF126: 122 | AG126: - | AH126: 122 | AK126: 1 | AL126: 1 | AM126: 1 | AN126: 1 | AO126: 1 | AP126: 2 | AQ126: 2 | AR126: 1 | AS126: 1 | AT126: 1 | AU126: 1 | AV126: 1 | AW126: 1 | AX126: 1 | AY126: 1 | AZ126: 1 | BA126: 1 | BB126: 1 | BE126: 2 | BH126: 283 | BX126: - | BY126: - | BZ126: - | CA126: 15 | CC126: 283 | EN126: 122 | EP126: 122 | EQ126: (117)
A127: 123 (118) | B127: Lana Galea | C127: Tingsryd | D127: 280 | F127: 3 | G127: 46.66666667 | I127: 65 | L127: 131 | Z127: 84 | AA127: 18 | AB127: - | AC127: - | AD127: - | AE127: 118 | AF127: 123 | AG127: 123 | AH127: 123 | AK127: 2 | AL127: 2 | AM127: 1 | AN127: 2 | AO127: 2 | AP127: 1 | AQ127: 1 | AR127: 1 | AS127: 1 | AT127: 1 | AU127: 1 | AV127: 1 | AW127: 1 | AX127: 1 | AY127: 1 | AZ127: 1 | BA127: 1 | BB127: 2 | BE127: 2 | BH127: 131 | BI127: 84 | BJ127: 65 | BX127: - | BY127: - | BZ127: - | CA127: 13 | CC127: 280 | EN127: 123 | EP127: 123 | EQ127: (118)
A128: 124 (119) | B128: Hannah Karlberg | C128: Jämjö Hsk | D128: 279 | F128: 3 | G128: 46.5 | Q128: 140 | T128: 78 | X128: 61 | AA128: 18 | AB128: - | AC128: - | AD128: - | AE128: 119 | AF128: 124 | AG128: 124 | AH128: 124 | AK128: 1 | AL128: 1 | AM128: 1 | AN128: 1 | AO128: 1 | AP128: 1 | AQ128: 1 | AR128: 1 | AS128: 2 | AT128: 2 | AU128: 1 | AV128: 2 | AW128: 2 | AX128: 1 | AY128: 1 | AZ128: 2 | BA128: 2 | BB128: 1 | BE128: 2 | BH128: 140 | BI128: 78 | BJ128: 61 | BX128: - | BY128: - | BZ128: - | CA128: 13 | CC128: 279 | EN128: 124 | EP128: 124 | EQ128: (119)
A129: 125 (120) | B129: Solveig Brincner | C129: Värends Hsk | D129: 274 | F129: 4 | G129: 34.25 | I129: 47 | M129: 61 | N129: 105 | O129: 61 | AA129: 18 | AB129: - | AC129: - | AD129: - | AE129: 120 | AF129: 125 | AG129: 125 | AH129: 125 | AK129: 2 | AL129: 2 | AM129: 1 | AN129: 1 | AO129: 2 | AP129: 3 | AQ129: 3 | AR129: 2 | AS129: 1 | AT129: 1 | AU129: 1 | AV129: 1 | AW129: 1 | AX129: 1 | AY129: 1 | AZ129: 1 | BA129: 1 | BB129: 1 | BE129: 2 | BH129: 105 | BI129: 61 | BJ129: 61 | BK129: 47 | BX129: - | BY129: - | BZ129: - | CA129: 12 | CC129: 274 | EN129: 125 | EP129: 125 | EQ129: (120)
A130: 126 (121) | B130: Dan Madayang | C130: Korpen Åseda | D130: 270 | F130: 1 | G130: 135 | S130: 270 | AA130: 18 | AB130: - | AC130: - | AD130: - | AE130: 121 | AF130: 126 | AG130: - | AH130: 126 | AK130: 1 | AL130: 1 | AM130: 1 | AN130: 1 | AO130: 1 | AP130: 1 | AQ130: 1 | AR130: 1 | AS130: 1 | AT130: 1 | AU130: 2 | AV130: 2 | AW130: 1 | AX130: 1 | AY130: 1 | AZ130: 1 | BA130: 1 | BB130: 1 | BE130: 2 | BH130: 270 | BX130: - | BY130: - | BZ130: - | CA130: 15 | CC130: 270 | EN130: 126 | EP130: 126 | EQ130: (121)
A131: 126 (121) | B131: Bo Fransson | C131: Lessebo | D131: 270 | F131: 1 | G131: 135 | L131: 270 | AA131: 18 | AB131: - | AC131: - | AD131: - | AE131: 121 | AF131: 126 | AG131: - | AH131: 127 | AK131: 1 | AL131: 1 | AM131: 1 | AN131: 2 | AO131: 2 | AP131: 1 | AQ131: 1 | AR131: 1 | AS131: 1 | AT131: 1 | AU131: 1 | AV131: 1 | AW131: 1 | AX131: 1 | AY131: 1 | AZ131: 1 | BA131: 1 | BB131: 1 | BE131: 2 | BH131: 270 | BX131: - | BY131: - | BZ131: - | CA131: 15 | CC131: 270 | EN131: 113 | EP131: 126 | EQ131: (121)
A132: 128 (-) | B132: Erik Smiding | C132: Beefcakes | D132: 259 | F132: 1 | G132: 129.5 | H132: x | V132: 259 | AA132: 18 | AB132: - | AC132: - | AD132: - | AE132: 180 | AF132: 128 | AG132: - | AH132: 128 | AK132: 1 | AL132: 1 | AM132: 1 | AN132: 1 | AO132: 1 | AP132: 1 | AQ132: 1 | AR132: 1 | AS132: 1 | AT132: 1 | AU132: 1 | AV132: 1 | AW132: 1 | AX132: 2 | AY132: 2 | AZ132: 1 | BA132: 1 | BB132: 1 | BE132: 1 | BH132: 259 | BX132: - | BY132: - | BZ132: - | CA132: 15 | CC132: 259 | EN132: 128 | EP132: 128 | EQ132: (-)
A133: =IF(BE133>1,AF133&" ("&AE133&")",AF133&" ("&AG133&")") -> 129 (123) | B133: Paul Karlsson | C133: Lessebo | D133: =SUM(BH133:BS133) -> 248 | F133: =COUNT(I133:Z133) -> 1 | G133: =SUM((CC133)/(F133*2)) -> 124 | L133: 248 | AA133: =SUM($I$3:$Z$3) -> 18 | AB133: =BX133 -> - | AC133: =BY133 -> - | AD133: =BZ133 -> - | AE133: 123 | AF133: =IF(D133<D132,AH133,AF132) -> 129 | AG133: =IF(F133>1,ROW(129:129),"-") -> - | AH133: 129 | AK133: 1 | AL133: 1 | AM133: 1 | AN133: 2 | AO133: 2 | AP133: 1 | AQ133: 1 | AR133: 1 | AS133: 1 | AT133: 1 | AU133: 1 | AV133: 1 | AW133: 1 | AX133: 1 | AY133: 1 | AZ133: 1 | BA133: 1 | BB133: 1 | BE133: =IF(H133="x",1,2) -> 2 | BH133: =IF($F133>0,LARGE($I133:$Z133,1),"") -> 248 | BI133: =IF($F133>1,LARGE($I133:$Z133,2),"") ->  | BJ133: =IF($F133>2,LARGE($I133:$Z133,3),"") ->  | BK133: =IF($F133>3,LARGE($I133:$Z133,4),"") ->  | BL133: =IF($F133>4,LARGE($I133:$Z133,5),"") ->  | BM133: =IF($F133>5,LARGE($I133:$Z133,6),"") ->  | BN133: =IF($F133>6,LARGE($I133:$Z133,7),"") ->  | BO133: =IF($F133>7,LARGE($I133:$Z133,8),"") ->  | BP133: =IF($F133>8,LARGE($I133:$Z133,9),"") ->  | BQ133: =IF($F133>9,LARGE($I133:$Z133,10),"") ->  | BR133: =IF($F133>10,LARGE($I133:$Z133,11),"") ->  | BS133: =IF($F133>11,LARGE($I133:$Z133,12),"") ->  | BT133: =IF($F133>12,LARGE($I133:$Z133,13),"") ->  | BU133: =IF($F133>13,LARGE($I133:$Z133,14),"") ->  | BV133: =IF($F133>14,LARGE($I133:$Z133,15),"") ->  | BW133: =IF($F133>15,LARGE($I133:$Z133,16),"") ->  | BX133: =IF($F133>12,LARGE($I133:$Z133,13),"-") -> - | BY133: =IF($F133>13,LARGE($I133:$Z133,14),"-") -> - | BZ133: =IF($F133>14,LARGE($I133:$Z133,15),"-") -> - | CA133: =SUM(AA133-F133)-2 -> 15 | CC133: =SUM(BH133:BW133) -> 248 | EN133: 129 | EP133: =IF(BE133>=1,AF133,"") -> 129 | EQ133: =IF(BE133>1,"("&AE133&")","("&AG133&")") -> (123)
A134: 130 (161) | B134: Helge Winberg | C134: Vaxholm Hsk | D134: 245 | F134: 2 | G134: 61.25 | N134: 104 | V134: 141 | AA134: 18 | AB134: - | AC134: - | AD134: - | AE134: 161 | AF134: 130 | AG134: 130 | AH134: 130 | AK134: =COUNT($I$3,I134,H134) -> 1 | AL134: =COUNT($J$3,J134,I134) -> 1 | AM134: =COUNT($K$3,K134,J134) -> 1 | AN134: =COUNT($L$3,L134,K134) -> 1 | AO134: =COUNT($M$3,M134,L134) -> 1 | AP134: =COUNT($N$3,N134,M134) -> 2 | AQ134: =COUNT($O$3,O134,N134) -> 2 | AR134: =COUNT($P$3,P134,O134) -> 1 | AS134: =COUNT($Q$3,Q134,P134) -> 1 | AT134: =COUNT($R$3,R134,Q134) -> 1 | AU134: =COUNT($S$3,S134,R134) -> 1 | AV134: =COUNT($T$3,T134,S134) -> 1 | AW134: =COUNT($U$3,U134,T134) -> 1 | AX134: =COUNT($V$3,V134,U134) -> 2 | AY134: =COUNT($W$3,W134,V134) -> 2 | AZ134: =COUNT($X$3,X134,W134) -> 1 | BA134: =COUNT($Y$3,Y134,X134) -> 1 | BB134: =COUNT($Z$3,Z134,Y134) -> 1 | BE134: 2 | BH134: 141 | BI134: 104 | BX134: - | BY134: - | BZ134: - | CA134: 14 | CC134: 245 | EN134: 130 | EP134: 130 | EQ134: (161)
A135: 131 (124) | B135: Per-Anders Gustavsson | C135: Lanternan | D135: 240 | F135: 1 | G135: 120 | K135: 240 | AA135: 18 | AB135: - | AC135: - | AD135: - | AE135: 124 | AF135: 131 | AG135: - | AH135: 131 | AK135: 1 | AL135: 1 | AM135: 2 | AN135: 2 | AO135: 1 | AP135: 1 | AQ135: 1 | AR135: 1 | AS135: 1 | AT135: 1 | AU135: 1 | AV135: 1 | AW135: 1 | AX135: 1 | AY135: 1 | AZ135: 1 | BA135: 1 | BB135: 1 | BE135: 2 | BH135: 240 | BX135: - | BY135: - | BZ135: - | CA135: 15 | CC135: 240 | EN135: 131 | EP135: 131 | EQ135: (124)
A136: 132 (125) | B136: Alice Lermalm | C136: Jämjö Hsk | D136: 230 | F136: 1 | G136: 115 | J136: 230 | AA136: 18 | AB136: - | AC136: - | AD136: - | AE136: 125 | AF136: 132 | AG136: - | AH136: 132 | AK136: 1 | AL136: 2 | AM136: 2 | AN136: 1 | AO136: 1 | AP136: 1 | AQ136: 1 | AR136: 1 | AS136: 1 | AT136: 1 | AU136: 1 | AV136: 1 | AW136: 1 | AX136: 1 | AY136: 1 | AZ136: 1 | BA136: 1 | BB136: 1 | BE136: 2 | BH136: 230 | BX136: - | BY136: - | BZ136: - | CA136: 15 | CC136: 230 | EN136: 132 | EP136: 132 | EQ136: (125)
A137: 133 (126) | B137: Robert Lermalm | C137: Jämjö Hsk | D137: 226 | F137: 1 | G137: 113 | J137: 226 | AA137: 18 | AB137: - | AC137: - | AD137: - | AE137: 126 | AF137: 133 | AG137: - | AH137: 133 | AK137: 1 | AL137: 2 | AM137: 2 | AN137: 1 | AO137: 1 | AP137: 1 | AQ137: 1 | AR137: 1 | AS137: 1 | AT137: 1 | AU137: 1 | AV137: 1 | AW137: 1 | AX137: 1 | AY137: 1 | AZ137: 1 | BA137: 1 | BB137: 1 | BE137: 2 | BH137: 226 | BX137: - | BY137: - | BZ137: - | CA137: 15 | CC137: 226 | EN137: 133 | EP137: 133 | EQ137: (126)
A138: 134 (127) | B138: Lena Johansson | C138: Tingsryd | D138: 216 | F138: 1 | G138: 108 | Y138: 216 | AA138: 18 | AB138: - | AC138: - | AD138: - | AE138: 127 | AF138: 134 | AG138: - | AH138: 134 | AK138: 1 | AL138: 1 | AM138: 1 | AN138: 1 | AO138: 1 | AP138: 1 | AQ138: 1 | AR138: 1 | AS138: 1 | AT138: 1 | AU138: 1 | AV138: 1 | AW138: 1 | AX138: 1 | AY138: 1 | AZ138: 1 | BA138: 2 | BB138: 2 | BE138: 2 | BH138: 216 | BX138: - | BY138: - | BZ138: - | CA138: 15 | CC138: 216 | EN138: 135 | EP138: 134 | EQ138: (127)
A139: 135 (128) | B139: Hasib Mohseni | C139: Team Tartufi | D139: 210 | F139: 1 | G139: 105 | N139: 210 | AA139: 18 | AB139: - | AC139: - | AD139: - | AE139: 128 | AF139: 135 | AG139: - | AH139: 135 | AK139: 1 | AL139: 1 | AM139: 1 | AN139: 1 | AO139: 1 | AP139: 2 | AQ139: 2 | AR139: 1 | AS139: 1 | AT139: 1 | AU139: 1 | AV139: 1 | AW139: 1 | AX139: 1 | AY139: 1 | AZ139: 1 | BA139: 1 | BB139: 1 | BE139: 2 | BH139: 210 | BX139: - | BY139: - | BZ139: - | CA139: 15 | CC139: 210 | EN139: 136 | EP139: 135 | EQ139: (128)
A140: 136 (129) | B140: Susanne Simonsson | C140: Lanternan | D140: 208 | F140: 2 | G140: 52 | K140: 87 | Q140: 121 | AA140: 18 | AB140: - | AC140: - | AD140: - | AE140: 129 | AF140: 136 | AG140: 136 | AH140: 136 | AK140: 1 | AL140: 1 | AM140: 2 | AN140: 2 | AO140: 1 | AP140: 1 | AQ140: 1 | AR140: 1 | AS140: 2 | AT140: 2 | AU140: 1 | AV140: 1 | AW140: 1 | AX140: 1 | AY140: 1 | AZ140: 1 | BA140: 1 | BB140: 1 | BE140: 2 | BH140: 121 | BI140: 87 | BX140: - | BY140: - | BZ140: - | CA140: 14 | CC140: 208 | EN140: 137 | EP140: 136 | EQ140: (129)
A141: 137 (130) | B141: Martin Björklund | C141: Sketnabäck | D141: 205 | F141: 1 | G141: 102.5 | Q141: 205 | AA141: 18 | AB141: - | AC141: - | AD141: - | AE141: 130 | AF141: 137 | AG141: - | AH141: 137 | AK141: 1 | AL141: 1 | AM141: 1 | AN141: 1 | AO141: 1 | AP141: 1 | AQ141: 1 | AR141: 1 | AS141: 2 | AT141: 2 | AU141: 1 | AV141: 1 | AW141: 1 | AX141: 1 | AY141: 1 | AZ141: 1 | BA141: 1 | BB141: 1 | BE141: 2 | BH141: 205 | BX141: - | BY141: - | BZ141: - | CA141: 15 | CC141: 205 | EN141: 138 | EP141: 137 | EQ141: (130)
A142: 138 (131) | B142: Stephan Gervide | C142: Korpen Nybro | D142: 200 | F142: 1 | G142: 100 | Z142: 200 | AA142: 18 | AB142: - | AC142: - | AD142: - | AE142: 131 | AF142: 138 | AG142: - | AH142: 138 | AK142: 1 | AL142: 1 | AM142: 1 | AN142: 1 | AO142: 1 | AP142: 1 | AQ142: 1 | AR142: 1 | AS142: 1 | AT142: 1 | AU142: 1 | AV142: 1 | AW142: 1 | AX142: 1 | AY142: 1 | AZ142: 1 | BA142: 1 | BB142: 2 | BE142: 2 | BH142: 200 | BX142: - | BY142: - | BZ142: - | CA142: 15 | CC142: 200 | EN142: 167 | EP142: 167 | EQ142: (131)
A143: 138 (131) | B143: Bengt-Erik Holmberg | C143: Tingsryd | D143: 200 | F143: 1 | G143: 100 | N143: 200 | AA143: 18 | AB143: - | AC143: - | AD143: - | AE143: 131 | AF143: 138 | AG143: - | AH143: 139 | AK143: 1 | AL143: 1 | AM143: 1 | AN143: 1 | AO143: 1 | AP143: 2 | AQ143: 2 | AR143: 1 | AS143: 1 | AT143: 1 | AU143: 1 | AV143: 1 | AW143: 1 | AX143: 1 | AY143: 1 | AZ143: 1 | BA143: 1 | BB143: 1 | BE143: 2 | BH143: 200 | BX143: - | BY143: - | BZ143: - | CA143: 15 | CC143: 200 | EN143: 139 | EP143: =IF(BE143>=1,AF143,"") -> 138 | EQ143: (131)
A144: 140 (133) | B144: Michael Karlsson | C144: Hsk Tingzås | D144: 192 | F144: 1 | G144: 96 | T144: 192 | AA144: 18 | AB144: - | AC144: - | AD144: - | AE144: 133 | AF144: 140 | AG144: - | AH144: 140 | AK144: 1 | AL144: 1 | AM144: 1 | AN144: 1 | AO144: 1 | AP144: 1 | AQ144: 1 | AR144: 1 | AS144: 1 | AT144: 1 | AU144: 1 | AV144: 2 | AW144: 2 | AX144: 1 | AY144: 1 | AZ144: 1 | BA144: 1 | BB144: 1 | BE144: 2 | BH144: 192 | BX144: - | BY144: - | BZ144: - | CA144: 15 | CC144: 192 | EN144: 140 | EP144: =IF(BE144>1,AF144,"") -> 140 | EQ144: (133)
A145: 141 (134) | B145: Johan Karlsson | C145: Korpen Åseda | D145: 191 | F145: 1 | G145: 95.5 | R145: 191 | AA145: 18 | AB145: - | AC145: - | AD145: - | AE145: 134 | AF145: 141 | AG145: - | AH145: 141 | AK145: 1 | AL145: 1 | AM145: 1 | AN145: 1 | AO145: 1 | AP145: 1 | AQ145: 1 | AR145: 1 | AS145: 1 | AT145: 2 | AU145: 2 | AV145: 1 | AW145: 1 | AX145: 1 | AY145: 1 | AZ145: 1 | BA145: 1 | BB145: 1 | BE145: 2 | BH145: 191 | BX145: - | BY145: - | BZ145: - | CA145: 15 | CC145: 191 | EN145: 141 | EP145: =IF(BE145>=1,AF145,"") -> 141 | EQ145: (134)
A146: 142 (135) | B146: Elin Edlund | C146: Dynapac | D146: 190 | F146: 1 | G146: 95 | Q146: 190 | AA146: 18 | AB146: - | AC146: - | AD146: - | AE146: 135 | AF146: 142 | AG146: - | AH146: 142 | AK146: 1 | AL146: 1 | AM146: 1 | AN146: 1 | AO146: 1 | AP146: 1 | AQ146: 1 | AR146: 1 | AS146: 2 | AT146: 2 | AU146: 1 | AV146: 1 | AW146: 1 | AX146: 1 | AY146: 1 | AZ146: 1 | BA146: 1 | BB146: 1 | BE146: 2 | BH146: 190 | BX146: - | BY146: - | BZ146: - | CA146: 15 | CC146: 190 | EN146: 142 | EP146: =IF(BE146>=1,AF146,"") -> 142 | EQ146: (135)
A147: 143 (137) | B147: Robert Sjöberg | C147: Sketnabäck | D147: 187 | F147: 1 | G147: 93.5 | Q147: 187 | AA147: 18 | AB147: - | AC147: - | AD147: - | AE147: 137 | AF147: 143 | AG147: - | AH147: 143 | AK147: 1 | AL147: 1 | AM147: 1 | AN147: 1 | AO147: 1 | AP147: 1 | AQ147: 1 | AR147: 1 | AS147: 2 | AT147: 2 | AU147: 1 | AV147: 1 | AW147: 1 | AX147: 1 | AY147: 1 | AZ147: 1 | BA147: 1 | BB147: 1 | BE147: 2 | BH147: 187 | BX147: - | BY147: - | BZ147: - | CA147: 15 | CC147: 187 | EN147: 143 | EP147: =IF(BE147>=1,AF147,"") -> 143 | EQ147: (137)
A148: 144 (138) | B148: Jörgen Westergren | C148: Team Tartufi | D148: 184 | F148: 1 | G148: 92 | N148: 184 | AA148: 18 | AB148: - | AC148: - | AD148: - | AE148: 138 | AF148: 144 | AG148: - | AH148: 144 | AK148: 1 | AL148: 1 | AM148: 1 | AN148: 1 | AO148: 1 | AP148: 2 | AQ148: 2 | AR148: 1 | AS148: 1 | AT148: 1 | AU148: 1 | AV148: 1 | AW148: 1 | AX148: 1 | AY148: 1 | AZ148: 1 | BA148: 1 | BB148: 1 | BE148: 2 | BH148: 184 | BX148: - | BY148: - | BZ148: - | CA148: 15 | CC148: 184 | EN148: 144 | EP148: =IF(BE148>=1,AF148,"") -> 144 | EQ148: (138)
A149: 144 (138) | B149: Laila Johansson | C149: Tingsryd | D149: 184 | F149: 1 | G149: 92 | W149: 184 | AA149: 18 | AB149: - | AC149: - | AD149: - | AE149: 138 | AF149: 144 | AG149: - | AH149: 145 | AK149: 1 | AL149: 1 | AM149: 1 | AN149: 1 | AO149: 1 | AP149: 1 | AQ149: 1 | AR149: 1 | AS149: 1 | AT149: 1 | AU149: 1 | AV149: 1 | AW149: 1 | AX149: 1 | AY149: 2 | AZ149: 2 | BA149: 1 | BB149: 1 | BE149: 2 | BH149: 184 | BX149: - | BY149: - | BZ149: - | CA149: 15 | CC149: 184 | EN149: 145 | EP149: =IF(BE149>=1,AF149,"") -> 144 | EQ149: (138)
A150: 146 (140) | B150: Hampus Borgström | C150: Carlskrona | D150: 182 | F150: 2 | G150: 45.5 | Q150: 98 | T150: 84 | AA150: 18 | AB150: - | AC150: - | AD150: - | AE150: 140 | AF150: 146 | AG150: 146 | AH150: 146 | AK150: 1 | AL150: 1 | AM150: 1 | AN150: 1 | AO150: 1 | AP150: 1 | AQ150: 1 | AR150: 1 | AS150: 2 | AT150: 2 | AU150: 1 | AV150: 2 | AW150: 2 | AX150: 1 | AY150: 1 | AZ150: 1 | BA150: 1 | BB150: 1 | BE150: 2 | BH150: 98 | BI150: 84 | BX150: - | BY150: - | BZ150: - | CA150: 14 | CC150: 182 | EN150: 175 | EP150: =IF(BE150>1,AF150,"") -> 146 | EQ150: (140)
A151: 147 (141) | B151: Krister Nygren | C151: Korpen Åseda | D151: 181 | F151: 1 | G151: 90.5 | R151: 181 | AA151: 18 | AB151: - | AC151: - | AD151: - | AE151: 141 | AF151: 147 | AG151: - | AH151: 147 | AK151: 1 | AL151: 1 | AM151: 1 | AN151: 1 | AO151: 1 | AP151: 1 | AQ151: 1 | AR151: 1 | AS151: 1 | AT151: 2 | AU151: 2 | AV151: 1 | AW151: 1 | AX151: 1 | AY151: 1 | AZ151: 1 | BA151: 1 | BB151: 1 | BE151: 2 | BH151: 181 | BX151: - | BY151: - | BZ151: - | CA151: 15 | CC151: 181 | EN151: 146 | EP151: =IF(BE151>=1,AF151,"") -> 147 | EQ151: (141)
A152: 148 (144) | B152: Towe Danielsson | C152: Korpen Nybro | D152: 179 | F152: 1 | G152: 89.5 | S152: 179 | AA152: 18 | AB152: - | AC152: - | AD152: - | AE152: 144 | AF152: 148 | AG152: - | AH152: 148 | AK152: 1 | AL152: 1 | AM152: 1 | AN152: 1 | AO152: 1 | AP152: 1 | AQ152: 1 | AR152: 1 | AS152: 1 | AT152: 1 | AU152: 2 | AV152: 2 | AW152: 1 | AX152: 1 | AY152: 1 | AZ152: 1 | BA152: 1 | BB152: 1 | BE152: 2 | BH152: 179 | BX152: - | BY152: - | BZ152: - | CA152: 15 | CC152: 179 | EN152: 147 | EP152: 148 | EQ152: (144)
A153: 149 (145) | B153: Micke Hansson | C153: Holland | D153: 174 | F153: 1 | G153: 87 | K153: 174 | AA153: 18 | AB153: - | AC153: - | AD153: - | AE153: 145 | AF153: 149 | AG153: - | AH153: 149 | AK153: 1 | AL153: 1 | AM153: 2 | AN153: 2 | AO153: 1 | AP153: 1 | AQ153: 1 | AR153: 1 | AS153: 1 | AT153: 1 | AU153: 1 | AV153: 1 | AW153: 1 | AX153: 1 | AY153: 1 | AZ153: 1 | BA153: 1 | BB153: 1 | BE153: 2 | BH153: 174 | BX153: - | BY153: - | BZ153: - | CA153: 15 | CC153: 174 | EN153: 148 | EP153: 149 | EQ153: (145)
A154: 150 (-) | B154: Andreas Westberg | C154: WGB | D154: 169 | F154: 1 | G154: 84.5 | H154: x | V154: 169 | AA154: 18 | AB154: - | AC154: - | AD154: - | AE154: 182 | AF154: 150 | AG154: - | AH154: 150 | AK154: 1 | AL154: 1 | AM154: 1 | AN154: 1 | AO154: 1 | AP154: 1 | AQ154: 1 | AR154: 1 | AS154: 1 | AT154: 1 | AU154: 1 | AV154: 1 | AW154: 1 | AX154: 2 | AY154: 2 | AZ154: 1 | BA154: 1 | BB154: 1 | BE154: 1 | BH154: 169 | BX154: - | BY154: - | BZ154: - | CA154: 15 | CC154: 169 | EN154: 149 | EP154: 150 | EQ154: (-)
A155: 151 (-) | B155: Anders Salming | C155: Old Dirty Chiefs | D155: 163 | F155: 1 | G155: 81.5 | H155: x | V155: 163 | AA155: 18 | AB155: - | AC155: - | AD155: - | AE155: 183 | AF155: 151 | AG155: - | AH155: 151 | AK155: 1 | AL155: 1 | AM155: 1 | AN155: 1 | AO155: 1 | AP155: 1 | AQ155: 1 | AR155: 1 | AS155: 1 | AT155: 1 | AU155: 1 | AV155: 1 | AW155: 1 | AX155: 2 | AY155: 2 | AZ155: 1 | BA155: 1 | BB155: 1 | BE155: 1 | BH155: 163 | BX155: - | BY155: - | BZ155: - | CA155: 15 | CC155: 163 | EN155: 150 | EP155: 151 | EQ155: (-)
A156: 152 (147) | B156: Jerry Viksten | C156: Korpen Åseda | D156: 161 | F156: 1 | G156: 80.5 | R156: 161 | AA156: 18 | AB156: - | AC156: - | AD156: - | AE156: 147 | AF156: 152 | AG156: - | AH156: 152 | AK156: 1 | AL156: 1 | AM156: 1 | AN156: 1 | AO156: 1 | AP156: 1 | AQ156: 1 | AR156: 1 | AS156: 1 | AT156: 2 | AU156: 2 | AV156: 1 | AW156: 1 | AX156: 1 | AY156: 1 | AZ156: 1 | BA156: 1 | BB156: 1 | BE156: 2 | BH156: 161 | BX156: - | BY156: - | BZ156: - | CA156: 15 | CC156: 161 | EN156: 151 | EP156: 152 | EQ156: (147)
A157: 153 (-) | B157: Bobby Parming | C157: WGB | D157: 156 | F157: 1 | G157: 78 | H157: x | V157: 156 | AA157: 18 | AB157: - | AC157: - | AD157: - | AE157: 184 | AF157: 153 | AG157: - | AH157: 153 | AK157: 1 | AL157: 1 | AM157: 1 | AN157: 1 | AO157: 1 | AP157: 1 | AQ157: 1 | AR157: 1 | AS157: 1 | AT157: 1 | AU157: 1 | AV157: 1 | AW157: 1 | AX157: 2 | AY157: 2 | AZ157: 1 | BA157: 1 | BB157: 1 | BE157: 1 | BH157: 156 | BX157: - | BY157: - | BZ157: - | CA157: 15 | CC157: 156 | EN157: 184 | EP157: =IF(BE157>1,AF157,"") ->  | EQ157: (-)
A158: 154 (149) | B158: Torbjörn Korsgaard | C158: Skåne | D158: 152 | F158: 1 | G158: 76 | K158: 152 | AA158: 18 | AB158: - | AC158: - | AD158: - | AE158: 149 | AF158: 154 | AG158: - | AH158: 154 | AK158: 1 | AL158: 1 | AM158: 2 | AN158: 2 | AO158: 1 | AP158: 1 | AQ158: 1 | AR158: 1 | AS158: 1 | AT158: 1 | AU158: 1 | AV158: 1 | AW158: 1 | AX158: 1 | AY158: 1 | AZ158: 1 | BA158: 1 | BB158: 1 | BE158: 2 | BH158: 152 | BX158: - | BY158: - | BZ158: - | CA158: 15 | CC158: 152 | EN158: 152 | EP158: =IF(BE158>=1,AF158,"") -> 154 | EQ158: (149)
A159: 154 (149) | B159: Erik Landberg | C159: Vaxholm Hsk | D159: 152 | F159: 2 | G159: 38 | L159: 98 | M159: 54 | AA159: 18 | AB159: - | AC159: - | AD159: - | AE159: 149 | AF159: 154 | AG159: 155 | AH159: 155 | AK159: 1 | AL159: 1 | AM159: 1 | AN159: 2 | AO159: 3 | AP159: 2 | AQ159: 1 | AR159: 1 | AS159: 1 | AT159: 1 | AU159: 1 | AV159: 1 | AW159: 1 | AX159: 1 | AY159: 1 | AZ159: 1 | BA159: 1 | BB159: 1 | BE159: 2 | BH159: 98 | BI159: 54 | BX159: - | BY159: - | BZ159: - | CA159: 14 | CC159: 152 | EN159: 153 | EP159: 154 | EQ159: (149)
A160: 156 (151) | B160: Linnea Gneupel | C160: Sibbamåla | D160: 147 | F160: 1 | G160: 73.5 | Q160: 147 | AA160: 18 | AB160: - | AC160: - | AD160: - | AE160: 151 | AF160: 156 | AG160: - | AH160: 156 | AK160: 1 | AL160: 1 | AM160: 1 | AN160: 1 | AO160: 1 | AP160: 1 | AQ160: 1 | AR160: 1 | AS160: 2 | AT160: 2 | AU160: 1 | AV160: 1 | AW160: 1 | AX160: 1 | AY160: 1 | AZ160: 1 | BA160: 1 | BB160: 1 | BE160: 2 | BH160: 147 | BX160: - | BY160: - | BZ160: - | CA160: 15 | CC160: 147 | EN160: 154 | EP160: 156 | EQ160: (151)
A161: 157 (152) | B161: Karen Jältsäter | C161: Vaxholm | D161: 145 | F161: 1 | G161: 72.5 | N161: 145 | AA161: 18 | AB161: - | AC161: - | AD161: - | AE161: 152 | AF161: 157 | AG161: - | AH161: 157 | AK161: 1 | AL161: 1 | AM161: 1 | AN161: 1 | AO161: 1 | AP161: 2 | AQ161: 2 | AR161: 1 | AS161: 1 | AT161: 1 | AU161: 1 | AV161: 1 | AW161: 1 | AX161: 1 | AY161: 1 | AZ161: 1 | BA161: 1 | BB161: 1 | BE161: 2 | BH161: 145 | BX161: - | BY161: - | BZ161: - | CA161: 15 | CC161: 145 | EN161: 156 | EP161: 157 | EQ161: (152)
A162: 158 (153) | B162: Anton Björkman | C162: Team Tartufi | D162: 144 | F162: 1 | G162: 72 | N162: 144 | AA162: 18 | AB162: - | AC162: - | AD162: - | AE162: 153 | AF162: 158 | AG162: - | AH162: 158 | AK162: 1 | AL162: 1 | AM162: 1 | AN162: 1 | AO162: 1 | AP162: 2 | AQ162: 2 | AR162: 1 | AS162: 1 | AT162: 1 | AU162: 1 | AV162: 1 | AW162: 1 | AX162: 1 | AY162: 1 | AZ162: 1 | BA162: 1 | BB162: 1 | BE162: 2 | BH162: 144 | BX162: - | BY162: - | BZ162: - | CA162: 15 | CC162: 144 | EN162: 157 | EP162: 158 | EQ162: (153)
A163: 159 (-) | B163: Robert Wretborg | C163: WGB | D163: 143 | F163: 1 | G163: 71.5 | H163: x | V163: 143 | AA163: 18 | AB163: - | AC163: - | AD163: - | AE163: 185 | AF163: 159 | AG163: - | AH163: 159 | AK163: 1 | AL163: 1 | AM163: 1 | AN163: 1 | AO163: 1 | AP163: 1 | AQ163: 1 | AR163: 1 | AS163: 1 | AT163: 1 | AU163: 1 | AV163: 1 | AW163: 1 | AX163: 2 | AY163: 2 | AZ163: 1 | BA163: 1 | BB163: 1 | BE163: 1 | BH163: 143 | BX163: - | BY163: - | BZ163: - | CA163: 15 | CC163: 143 | EN163: 158 | EP163: 159 | EQ163: (-)
A164: 160 (154) | B164: Rolf Johannesson | C164: Värends Hsk | D164: 135 | F164: 1 | G164: 67.5 | Y164: 135 | AA164: 18 | AB164: - | AC164: - | AD164: - | AE164: 154 | AF164: 160 | AG164: - | AH164: 160 | AK164: 1 | AL164: 1 | AM164: 1 | AN164: 1 | AO164: 1 | AP164: 1 | AQ164: 1 | AR164: 1 | AS164: 1 | AT164: 1 | AU164: 1 | AV164: 1 | AW164: 1 | AX164: 1 | AY164: 1 | AZ164: 1 | BA164: 2 | BB164: 2 | BE164: 2 | BH164: 135 | BX164: - | BY164: - | BZ164: - | CA164: 15 | CC164: 135 | EN164: 159 | EP164: 160 | EQ164: (154)
A165: 161 (155) | B165: Alexandra Kupiainen | C165: Team Tartufi | D165: 133 | F165: 1 | G165: 66.5 | N165: 133 | AA165: 18 | AB165: - | AC165: - | AD165: - | AE165: 155 | AF165: 161 | AG165: - | AH165: 161 | AK165: 1 | AL165: 1 | AM165: 1 | AN165: 1 | AO165: 1 | AP165: 2 | AQ165: 2 | AR165: 1 | AS165: 1 | AT165: 1 | AU165: 1 | AV165: 1 | AW165: 1 | AX165: 1 | AY165: 1 | AZ165: 1 | BA165: 1 | BB165: 1 | BE165: =IF(H165="x",1,2) -> 2 | BH165: =IF($F165>0,LARGE($I165:$Z165,1),"") -> 133 | BI165: =IF($F165>1,LARGE($I165:$Z165,2),"") ->  | BJ165: =IF($F165>2,LARGE($I165:$Z165,3),"") ->  | BK165: =IF($F165>3,LARGE($I165:$Z165,4),"") ->  | BL165: =IF($F165>4,LARGE($I165:$Z165,5),"") ->  | BM165: =IF($F165>5,LARGE($I165:$Z165,6),"") ->  | BN165: =IF($F165>6,LARGE($I165:$Z165,7),"") ->  | BO165: =IF($F165>7,LARGE($I165:$Z165,8),"") ->  | BP165: =IF($F165>8,LARGE($I165:$Z165,9),"") ->  | BQ165: =IF($F165>9,LARGE($I165:$Z165,10),"") ->  | BR165: =IF($F165>10,LARGE($I165:$Z165,11),"") ->  | BS165: =IF($F165>11,LARGE($I165:$Z165,12),"") ->  | BT165: =IF($F165>12,LARGE($I165:$Z165,13),"") ->  | BU165: =IF($F165>13,LARGE($I165:$Z165,14),"") ->  | BV165: =IF($F165>14,LARGE($I165:$Z165,15),"") ->  | BW165: =IF($F165>15,LARGE($I165:$Z165,16),"") ->  | BX165: =IF($F165>12,LARGE($I165:$Z165,13),"-") -> - | BY165: =IF($F165>13,LARGE($I165:$Z165,14),"-") -> - | BZ165: =IF($F165>14,LARGE($I165:$Z165,15),"-") -> - | CA165: =SUM(AA165-F165)-2 -> 15 | CC165: 133 | EN165: 206 | EP165: =IF(BE165>1,AF165,"") -> 161 | EQ165: (155)
A166: 161 (-) | B166: Björn Hansson | C166: Vaxholm Hsk | D166: 133 | F166: 1 | G166: 66.5 | H166: x | V166: 133 | AA166: 18 | AB166: - | AC166: - | AD166: - | AE166: 186 | AF166: 161 | AG166: - | AH166: 162 | AK166: 1 | AL166: 1 | AM166: 1 | AN166: 1 | AO166: 1 | AP166: 1 | AQ166: 1 | AR166: 1 | AS166: 1 | AT166: 1 | AU166: 1 | AV166: 1 | AW166: 1 | AX166: 2 | AY166: 2 | AZ166: 1 | BA166: 1 | BB166: 1 | BE166: 1 | BH166: 133 | BX166: - | BY166: - | BZ166: - | CA166: 15 | CC166: 133 | EN166: 160 | EP166: =IF(BE166>=1,AF166,"") -> 161 | EQ166: (-)
A167: 163 (-) | B167: Calle Jacobsson | C167: WGB | D167: 129 | F167: 1 | G167: 64.5 | H167: x | V167: 129 | AA167: 18 | AB167: - | AC167: - | AD167: - | AE167: 187 | AF167: 163 | AG167: - | AH167: 163 | AK167: 1 | AL167: 1 | AM167: 1 | AN167: 1 | AO167: 1 | AP167: 1 | AQ167: 1 | AR167: 1 | AS167: 1 | AT167: 1 | AU167: 1 | AV167: 1 | AW167: 1 | AX167: 2 | AY167: 2 | AZ167: 1 | BA167: 1 | BB167: 1 | BE167: 1 | BH167: 129 | BX167: - | BY167: - | BZ167: - | CA167: 15 | CC167: 129 | EN167: 161 | EP167: 161 | EQ167: (-)
A168: 164 (-) | B168: Sabina Rydberg | C168: Beefcakes | D168: 126 | F168: 1 | G168: 63 | H168: x | V168: 126 | AA168: 18 | AB168: - | AC168: - | AD168: - | AE168: 199 | AF168: 164 | AG168: - | AH168: 164 | AK168: 1 | AL168: 1 | AM168: 1 | AN168: 1 | AO168: 1 | AP168: 1 | AQ168: 1 | AR168: 1 | AS168: 1 | AT168: 1 | AU168: 1 | AV168: 1 | AW168: 1 | AX168: 2 | AY168: 2 | AZ168: 1 | BA168: 1 | BB168: 1 | BE168: 1 | BH168: 126 | BX168: - | BY168: - | BZ168: - | CA168: 15 | CC168: 126 | EN168: 162 | EP168: =IF(BE168>1,AF168,"") ->  | EQ168: (-)
A169: 165 (-) | B169: Calle Sternås | C169: PBHSPC | D169: 125 | F169: 1 | G169: 62.5 | H169: x | V169: 125 | AA169: 18 | AB169: - | AC169: - | AD169: - | AE169: 188 | AF169: 165 | AG169: - | AH169: 165 | AK169: 1 | AL169: 1 | AM169: 1 | AN169: 1 | AO169: 1 | AP169: 1 | AQ169: 1 | AR169: 1 | AS169: 1 | AT169: 1 | AU169: 1 | AV169: 1 | AW169: 1 | AX169: 2 | AY169: 2 | AZ169: 1 | BA169: 1 | BB169: 1 | BE169: 1 | BH169: 125 | BX169: - | BY169: - | BZ169: - | CA169: 15 | CC169: 125 | EN169: 163 | EP169: =IF(BE169>1,AF169,"") ->  | EQ169: (-)
A170: 166 (156) | B170: Hampus Korsgaard | C170: Skåne | D170: 122 | F170: 1 | G170: 61 | K170: 122 | AA170: 18 | AB170: - | AC170: - | AD170: - | AE170: 156 | AF170: 166 | AG170: - | AH170: 166 | AK170: 1 | AL170: 1 | AM170: 2 | AN170: 2 | AO170: 1 | AP170: 1 | AQ170: 1 | AR170: 1 | AS170: 1 | AT170: 1 | AU170: 1 | AV170: 1 | AW170: 1 | AX170: 1 | AY170: 1 | AZ170: 1 | BA170: 1 | BB170: 1 | BE170: 2 | BH170: 122 | BX170: - | BY170: - | BZ170: - | CA170: 15 | CC170: 122 | EN170: 164 | EP170: =IF(BE170>1,AF170,"") -> 166 | EQ170: (156)
A171: 166 (-) | B171: Ludvig Sandell | C171: Vaxholm | D171: 122 | F171: 1 | G171: 61 | H171: x | V171: 122 | AA171: 18 | AB171: - | AC171: - | AD171: - | AE171: 189 | AF171: 166 | AG171: - | AH171: 167 | AK171: 1 | AL171: 1 | AM171: 1 | AN171: 1 | AO171: 1 | AP171: 1 | AQ171: 1 | AR171: 1 | AS171: 1 | AT171: 1 | AU171: 1 | AV171: 1 | AW171: 1 | AX171: 2 | AY171: 2 | AZ171: 1 | BA171: 1 | BB171: 1 | BE171: 1 | BH171: 122 | BX171: - | BY171: - | BZ171: - | CA171: 15 | CC171: 122 | EN171: 165 | EP171: =IF(BE171>1,AF171,"") ->  | EQ171: (-)
A172: 168 (157) | B172: Jimmie Fogelberg | C172: Skåne | D172: 121 | F172: 1 | G172: 60.5 | K172: 121 | AA172: 18 | AB172: - | AC172: - | AD172: - | AE172: 157 | AF172: 168 | AG172: - | AH172: 168 | AK172: 1 | AL172: 1 | AM172: 2 | AN172: 2 | AO172: 1 | AP172: 1 | AQ172: 1 | AR172: 1 | AS172: 1 | AT172: 1 | AU172: 1 | AV172: 1 | AW172: 1 | AX172: 1 | AY172: 1 | AZ172: 1 | BA172: 1 | BB172: 1 | BE172: 2 | BH172: 121 | BX172: - | BY172: - | BZ172: - | CA172: 15 | CC172: 121 | EN172: 195 | EP172: =IF(BE172>1,AF172,"") -> 168 | EQ172: (157)
A173: 169 (158) | B173: Simon Pahlin | C173: Vaxholm | D173: 119 | F173: 1 | G173: 59.5 | N173: 119 | AA173: 18 | AB173: - | AC173: - | AD173: - | AE173: 158 | AF173: 169 | AG173: - | AH173: 169 | AK173: 1 | AL173: 1 | AM173: 1 | AN173: 1 | AO173: 1 | AP173: 2 | AQ173: 2 | AR173: 1 | AS173: 1 | AT173: 1 | AU173: 1 | AV173: 1 | AW173: 1 | AX173: 1 | AY173: 1 | AZ173: 1 | BA173: 1 | BB173: 1 | BE173: 2 | BH173: 119 | BX173: - | BY173: - | BZ173: - | CA173: 15 | CC173: 119 | EN173: 134 | EP173: =IF(BE173>=1,AF173,"") -> 169 | EQ173: (158)
A174: 170 (-) | B174: Linus Blom | C174: Vaxholm | D174: 117 | F174: 1 | G174: 58.5 | H174: x | V174: 117 | AA174: 18 | AB174: - | AC174: - | AD174: - | AE174: 190 | AF174: 170 | AG174: - | AH174: 170 | AK174: 1 | AL174: 1 | AM174: 1 | AN174: 1 | AO174: 1 | AP174: 1 | AQ174: 1 | AR174: 1 | AS174: 1 | AT174: 1 | AU174: 1 | AV174: 1 | AW174: 1 | AX174: 2 | AY174: 2 | AZ174: 1 | BA174: 1 | BB174: 1 | BE174: 1 | BH174: 117 | BX174: - | BY174: - | BZ174: - | CA174: 15 | CC174: 117 | EN174: 166 | EP174: =IF(BE174>1,AF174,"") ->  | EQ174: (-)
A175: 171 (159) | B175: Nils Brovold | C175: Vaxholm | D175: 116 | F175: 1 | G175: 58 | N175: 116 | AA175: 18 | AB175: - | AC175: - | AD175: - | AE175: 159 | AF175: 171 | AG175: - | AH175: 171 | AK175: 1 | AL175: 1 | AM175: 1 | AN175: 1 | AO175: 1 | AP175: 2 | AQ175: 2 | AR175: 1 | AS175: 1 | AT175: 1 | AU175: 1 | AV175: 1 | AW175: 1 | AX175: 1 | AY175: 1 | AZ175: 1 | BA175: 1 | BB175: 1 | BE175: 2 | BH175: 116 | BX175: - | BY175: - | BZ175: - | CA175: 15 | CC175: 116 | EN175: 168 | EP175: 168 | EQ175: (159)
A176: 172 (160) | B176: Jonas Zetterlund | C176: Vaxholm | D176: 114 | F176: 1 | G176: 57 | N176: 114 | AA176: 18 | AB176: - | AC176: - | AD176: - | AE176: 160 | AF176: 172 | AG176: - | AH176: 172 | AK176: 1 | AL176: 1 | AM176: 1 | AN176: 1 | AO176: 1 | AP176: 2 | AQ176: 2 | AR176: 1 | AS176: 1 | AT176: 1 | AU176: 1 | AV176: 1 | AW176: 1 | AX176: 1 | AY176: 1 | AZ176: 1 | BA176: 1 | BB176: 1 | BE176: 2 | BH176: 114 | BX176: - | BY176: - | BZ176: - | CA176: 15 | CC176: 114 | EN176: 215 | EP176: =IF(BE176>1,AF176,"") -> 172 | EQ176: (160)
A177: 173 (-) | B177: Pontus Strandell | C177: PBHSPC | D177: 110 | F177: 1 | G177: 55 | H177: x | V177: 110 | AA177: 18 | AB177: - | AC177: - | AD177: - | AE177: 191 | AF177: 173 | AG177: - | AH177: 173 | AK177: 1 | AL177: 1 | AM177: 1 | AN177: 1 | AO177: 1 | AP177: 1 | AQ177: 1 | AR177: 1 | AS177: 1 | AT177: 1 | AU177: 1 | AV177: 1 | AW177: 1 | AX177: 2 | AY177: 2 | AZ177: 1 | BA177: 1 | BB177: 1 | BE177: 1 | BH177: 110 | BX177: - | BY177: - | BZ177: - | CA177: 15 | CC177: 110 | EN177: 188 | EP177: 188 | EQ177: (-)
A178: 174 (161) | B178: Daniel Lindblom | C178: Vaxholm | D178: 106 | F178: 1 | G178: 53 | N178: 106 | AA178: 18 | AB178: - | AC178: - | AD178: - | AE178: 161 | AF178: 174 | AG178: - | AH178: 174 | AK178: 1 | AL178: 1 | AM178: 1 | AN178: 1 | AO178: 1 | AP178: 2 | AQ178: 2 | AR178: 1 | AS178: 1 | AT178: 1 | AU178: 1 | AV178: 1 | AW178: 1 | AX178: 1 | AY178: 1 | AZ178: 1 | BA178: 1 | BB178: 1 | BE178: 2 | BH178: 106 | BX178: - | BY178: - | BZ178: - | CA178: 15 | CC178: 106 | EN178: 170 | EP178: =IF(BE178>1,AF178,"") -> 174 | EQ178: (161)
A179: 175 (163) | B179: Isabelle Åkesson | C179: Vaxholm | D179: 103 | F179: 1 | G179: 51.5 | N179: 103 | AA179: 18 | AB179: - | AC179: - | AD179: - | AE179: 163 | AF179: 175 | AG179: - | AH179: 175 | AK179: 1 | AL179: 1 | AM179: 1 | AN179: 1 | AO179: 1 | AP179: 2 | AQ179: 2 | AR179: 1 | AS179: 1 | AT179: 1 | AU179: 1 | AV179: 1 | AW179: 1 | AX179: 1 | AY179: 1 | AZ179: 1 | BA179: 1 | BB179: 1 | BE179: 2 | BH179: 103 | BX179: - | BY179: - | BZ179: - | CA179: 15 | CC179: 103 | EN179: 171 | EP179: 175 | EQ179: (163)
A180: 176 (164) | B180: Peter Stupers | C180: Holland | D180: 101 | F180: 1 | G180: 50.5 | K180: 101 | AA180: 18 | AB180: - | AC180: - | AD180: - | AE180: 164 | AF180: 176 | AG180: - | AH180: 176 | AK180: 1 | AL180: 1 | AM180: 2 | AN180: 2 | AO180: 1 | AP180: 1 | AQ180: 1 | AR180: 1 | AS180: 1 | AT180: 1 | AU180: 1 | AV180: 1 | AW180: 1 | AX180: 1 | AY180: 1 | AZ180: 1 | BA180: 1 | BB180: 1 | BE180: 2 | BH180: 101 | BX180: - | BY180: - | BZ180: - | CA180: 15 | CC180: 101 | EN180: 172 | EP180: 176 | EQ180: (164)
A181: 176 (164) | B181: Richard Holgersson | C181: Sketnabäck | D181: 101 | F181: 1 | G181: 50.5 | Q181: 101 | AA181: 18 | AB181: - | AC181: - | AD181: - | AE181: 164 | AF181: 176 | AG181: - | AH181: 177 | AK181: 1 | AL181: 1 | AM181: 1 | AN181: 1 | AO181: 1 | AP181: 1 | AQ181: 1 | AR181: 1 | AS181: 2 | AT181: 2 | AU181: 1 | AV181: 1 | AW181: 1 | AX181: 1 | AY181: 1 | AZ181: 1 | BA181: 1 | BB181: 1 | BE181: 2 | BH181: 101 | BX181: - | BY181: - | BZ181: - | CA181: 15 | CC181: 101 | EN181: 173 | EP181: 176 | EQ181: (164)
A182: 178 (166) | B182: Henrik Fresk | C182: Sollentuna | D182: 100 | F182: 1 | G182: 50 | N182: 100 | AA182: 18 | AB182: - | AC182: - | AD182: - | AE182: 166 | AF182: 178 | AG182: - | AH182: 178 | AK182: 1 | AL182: 1 | AM182: 1 | AN182: 1 | AO182: 1 | AP182: 2 | AQ182: 2 | AR182: 1 | AS182: 1 | AT182: 1 | AU182: 1 | AV182: 1 | AW182: 1 | AX182: 1 | AY182: 1 | AZ182: 1 | BA182: 1 | BB182: 1 | BE182: 2 | BH182: 100 | BX182: - | BY182: - | BZ182: - | CA182: 15 | CC182: 100 | EN182: 174 | EP182: 178 | EQ182: (166)
A183: 179 (-) | B183: Heidi Bülmann | C183: Vaxholm | D183: 99 | F183: 1 | G183: 49.5 | H183: x | V183: 99 | AA183: 18 | AB183: - | AC183: - | AD183: - | AE183: 201 | AF183: 179 | AG183: - | AH183: 179 | AK183: 1 | AL183: 1 | AM183: 1 | AN183: 1 | AO183: 1 | AP183: 1 | AQ183: 1 | AR183: 1 | AS183: 1 | AT183: 1 | AU183: 1 | AV183: 1 | AW183: 1 | AX183: 2 | AY183: 2 | AZ183: 1 | BA183: 1 | BB183: 1 | BE183: 1 | BH183: 99 | BX183: - | BY183: - | BZ183: - | CA183: 15 | CC183: 99 | EN183: 182 | EQ183: (-)
A184: 180 (167) | B184: Johan Öhrman | C184: Vaxholm Hsk | D184: 98 | F184: 1 | G184: 49 | N184: 98 | AA184: 18 | AB184: - | AC184: - | AD184: - | AE184: 167 | AF184: 180 | AG184: - | AH184: 180 | AK184: 1 | AL184: 1 | AM184: 1 | AN184: 1 | AO184: 1 | AP184: 2 | AQ184: 2 | AR184: 1 | AS184: 1 | AT184: 1 | AU184: 1 | AV184: 1 | AW184: 1 | AX184: 1 | AY184: 1 | AZ184: 1 | BA184: 1 | BB184: 1 | BE184: 2 | BH184: 98 | BX184: - | BY184: - | BZ184: - | CA184: 15 | CC184: 98 | EN184: 176 | EP184: 180 | EQ184: (167)
A185: 181 (168) | B185: Daniel lito Wadman | C185: Vaxholm Hsk | D185: 95 | F185: 1 | G185: 47.5 | Y185: 95 | AA185: 18 | AB185: - | AC185: - | AD185: - | AE185: 168 | AF185: 181 | AG185: - | AH185: 181 | AK185: 1 | AL185: 1 | AM185: 1 | AN185: 1 | AO185: 1 | AP185: 1 | AQ185: 1 | AR185: 1 | AS185: 1 | AT185: 1 | AU185: 1 | AV185: 1 | AW185: 1 | AX185: 1 | AY185: 1 | AZ185: 1 | BA185: 2 | BB185: 2 | BE185: 2 | BH185: 95 | BX185: - | BY185: - | BZ185: - | CA185: 15 | CC185: 95 | EN185: 202 | EP185: 181 | EQ185: (168)
A186: 181 (168) | B186: Sandra Rydell | C186: Värends Hsk | D186: 95 | F186: 1 | G186: 47.5 | O186: 95 | AA186: 18 | AB186: - | AC186: - | AD186: - | AE186: 168 | AF186: 181 | AG186: - | AH186: 182 | AK186: 1 | AL186: 1 | AM186: 1 | AN186: 1 | AO186: 1 | AP186: 1 | AQ186: 2 | AR186: 2 | AS186: 1 | AT186: 1 | AU186: 1 | AV186: 1 | AW186: 1 | AX186: 1 | AY186: 1 | AZ186: 1 | BA186: 1 | BB186: 1 | BE186: 2 | BH186: 95 | BX186: - | BY186: - | BZ186: - | CA186: 15 | CC186: 95 | EN186: 177 | EP186: 177 | EQ186: (168)
A187: 183 (-) | B187: Louise Hamilton | C187: Vaxholm | D187: 91 | F187: 1 | G187: 45.5 | H187: x | V187: 91 | AA187: 18 | AB187: - | AC187: - | AD187: - | AE187: 202 | AF187: 183 | AG187: - | AH187: 183 | AK187: 1 | AL187: 1 | AM187: 1 | AN187: 1 | AO187: 1 | AP187: 1 | AQ187: 1 | AR187: 1 | AS187: 1 | AT187: 1 | AU187: 1 | AV187: 1 | AW187: 1 | AX187: 2 | AY187: 2 | AZ187: 1 | BA187: 1 | BB187: 1 | BE187: 1 | BH187: 91 | BX187: - | BY187: - | BZ187: - | CA187: 15 | CC187: 91 | EN187: 178 | EP187: =IF(BE187>1,AF187,"") ->  | EQ187: (-)
A188: 184 (170) | B188: Sina Skogli | C188: Jämjö Hsk | D188: 89 | F188: 1 | G188: 44.5 | X188: 89 | AA188: 18 | AB188: - | AC188: - | AD188: - | AE188: 170 | AF188: 184 | AG188: - | AH188: 184 | AK188: 1 | AL188: 1 | AM188: 1 | AN188: 1 | AO188: 1 | AP188: 1 | AQ188: 1 | AR188: 1 | AS188: 1 | AT188: 1 | AU188: 1 | AV188: 1 | AW188: 1 | AX188: 1 | AY188: 1 | AZ188: 2 | BA188: 2 | BB188: 1 | BE188: 2 | BH188: 89 | BX188: - | BY188: - | BZ188: - | CA188: 15 | CC188: 89 | EN188: 179 | EP188: 179 | EQ188: (170)
A189: 185 (171) | B189: Kent Svensson | C189: Lanternan | D189: 86 | F189: 2 | G189: 21.5 | Q189: 41 | T189: 45 | AA189: 18 | AB189: - | AC189: - | AD189: - | AE189: 171 | AF189: 185 | AG189: 185 | AH189: 185 | AK189: 1 | AL189: 1 | AM189: 1 | AN189: 1 | AO189: 1 | AP189: 1 | AQ189: 1 | AR189: 1 | AS189: 2 | AT189: 2 | AU189: 1 | AV189: 2 | AW189: 2 | AX189: 1 | AY189: 1 | AZ189: 1 | BA189: 1 | BB189: 1 | BE189: 2 | BH189: 45 | BI189: 41 | BX189: - | BY189: - | BZ189: - | CA189: 14 | CC189: 86 | EN189: 180 | EP189: =IF(BE189>1,AF189,"") -> 185 | EQ189: (171)
A190: 186 (172) | B190: Milla Westergren | C190: Team Tartufi | D190: 84 | F190: 1 | G190: 42 | N190: 84 | AA190: 18 | AB190: - | AC190: - | AD190: - | AE190: 172 | AF190: 186 | AG190: - | AH190: 186 | AK190: 1 | AL190: 1 | AM190: 1 | AN190: 1 | AO190: 1 | AP190: 2 | AQ190: 2 | AR190: 1 | AS190: 1 | AT190: 1 | AU190: 1 | AV190: 1 | AW190: 1 | AX190: 1 | AY190: 1 | AZ190: 1 | BA190: 1 | BB190: 1 | BE190: 2 | BH190: 84 | BX190: - | BY190: - | BZ190: - | CA190: 15 | CC190: 84 | EN190: 181 | EP190: =IF(BE190>1,AF190,"") -> 186 | EQ190: (172)
A191: 186 (-) | B191: Martin Smeds | C191: Balders HSK | D191: 84 | F191: 1 | G191: 42 | H191: x | V191: 84 | AA191: 18 | AB191: - | AC191: - | AD191: - | AE191: 192 | AF191: 186 | AG191: - | AH191: 187 | AK191: 1 | AL191: 1 | AM191: 1 | AN191: 1 | AO191: 1 | AP191: 1 | AQ191: 1 | AR191: 1 | AS191: 1 | AT191: 1 | AU191: 1 | AV191: 1 | AW191: 1 | AX191: 2 | AY191: 2 | AZ191: 1 | BA191: 1 | BB191: 1 | BE191: 1 | BH191: 84 | BX191: - | BY191: - | BZ191: - | CA191: 15 | CC191: 84 | EN191: 155 | EP191: =IF(BE191>=1,AF191,"") -> 186 | EQ191: (-)
A192: 188 (173) | B192: Monika Magnusson | C192: Skåne | D192: 83 | F192: 1 | G192: 41.5 | K192: 83 | AA192: 18 | AB192: - | AC192: - | AD192: - | AE192: 173 | AF192: 188 | AG192: - | AH192: 188 | AK192: 1 | AL192: 1 | AM192: 2 | AN192: 2 | AO192: 1 | AP192: 1 | AQ192: 1 | AR192: 1 | AS192: 1 | AT192: 1 | AU192: 1 | AV192: 1 | AW192: 1 | AX192: 1 | AY192: 1 | AZ192: 1 | BA192: 1 | BB192: 1 | BE192: 2 | BH192: 83 | BX192: - | BY192: - | BZ192: - | CA192: 15 | CC192: 83 | EN192: 183 | EP192: =IF(BE192>1,AF192,"") -> 188 | EQ192: (173)
A193: 189 (-) | B193: Marcus Norman | C193: Balders HSK | D193: 79 | F193: 1 | G193: 39.5 | H193: x | V193: 79 | AA193: 18 | AB193: - | AC193: - | AD193: - | AE193: 193 | AF193: 189 | AG193: - | AH193: 189 | AK193: 1 | AL193: 1 | AM193: 1 | AN193: 1 | AO193: 1 | AP193: 1 | AQ193: 1 | AR193: 1 | AS193: 1 | AT193: 1 | AU193: 1 | AV193: 1 | AW193: 1 | AX193: 2 | AY193: 2 | AZ193: 1 | BA193: 1 | BB193: 1 | BE193: 1 | BH193: 79 | BX193: - | BY193: - | BZ193: - | CA193: 15 | CC193: 79 | EN193: 185 | EQ193: (-)
A194: 190 (174) | B194: John Van Dalen | C194: Holland | D194: 77 | F194: 1 | G194: 38.5 | K194: 77 | AA194: 18 | AB194: - | AC194: - | AD194: - | AE194: 174 | AF194: 190 | AG194: - | AH194: 190 | AK194: 1 | AL194: 1 | AM194: 2 | AN194: 2 | AO194: 1 | AP194: 1 | AQ194: 1 | AR194: 1 | AS194: 1 | AT194: 1 | AU194: 1 | AV194: 1 | AW194: 1 | AX194: 1 | AY194: 1 | AZ194: 1 | BA194: 1 | BB194: 1 | BE194: 2 | BH194: 77 | BX194: - | BY194: - | BZ194: - | CA194: 15 | CC194: 77 | EN194: 186 | EP194: 190 | EQ194: (174)
A195: 190 (-) | B195: Jakob Arvidsson | C195: Beefcakes | D195: 77 | F195: 1 | G195: 38.5 | H195: x | V195: 77 | AA195: 18 | AB195: - | AC195: - | AD195: - | AE195: 194 | AF195: 190 | AG195: - | AH195: 191 | AK195: 1 | AL195: 1 | AM195: 1 | AN195: 1 | AO195: 1 | AP195: 1 | AQ195: 1 | AR195: 1 | AS195: 1 | AT195: 1 | AU195: 1 | AV195: 1 | AW195: 1 | AX195: 2 | AY195: 2 | AZ195: 1 | BA195: 1 | BB195: 1 | BE195: 1 | BH195: 77 | BX195: - | BY195: - | BZ195: - | CA195: 15 | CC195: 77 | EN195: 187 | EQ195: (-)
A196: 192 (175) | B196: Nunid Petwisai | C196: Jämjö Hsk | D196: 68 | F196: 1 | G196: 34 | X196: 68 | AA196: 18 | AB196: - | AC196: - | AD196: - | AE196: 175 | AF196: 192 | AG196: - | AH196: 192 | AK196: 1 | AL196: 1 | AM196: 1 | AN196: 1 | AO196: 1 | AP196: 1 | AQ196: 1 | AR196: 1 | AS196: 1 | AT196: 1 | AU196: 1 | AV196: 1 | AW196: 1 | AX196: 1 | AY196: 1 | AZ196: 2 | BA196: 2 | BB196: 1 | BE196: 2 | BH196: 68 | BX196: - | BY196: - | BZ196: - | CA196: 15 | CC196: 68 | EN196: 205 | EP196: 192 | EQ196: (175)
A197: =IF(BE197>1,AF197&" ("&AE197&")",AF197&" ("&AG197&")") -> 193 (176) | B197: Malin Holmander | C197: Jämjö Hsk | D197: =SUM(BH197:BS197) -> 67 | F197: =COUNT(I197:Z197) -> 1 | G197: =SUM((CC197)/(F197*2)) -> 33.5 | J197: 67 | AA197: =SUM($I$3:$Z$3) -> 18 | AB197: =BX197 -> - | AC197: =BY197 -> - | AD197: =BZ197 -> - | AE197: 176 | AF197: =IF(D197<D196,AH197,AF196) -> 193 | AG197: =IF(F197>1,ROW(193:193),"-") -> - | AH197: 193 | AK197: 1 | AL197: 2 | AM197: 2 | AN197: 1 | AO197: 1 | AP197: 1 | AQ197: 1 | AR197: 1 | AS197: 1 | AT197: 1 | AU197: 1 | AV197: 1 | AW197: 1 | AX197: 1 | AY197: 1 | AZ197: 1 | BA197: 1 | BB197: 1 | BE197: =IF(H197="x",1,2) -> 2 | BH197: =IF($F197>0,LARGE($I197:$Z197,1),"") -> 67 | BI197: =IF($F197>1,LARGE($I197:$Z197,2),"") ->  | BJ197: =IF($F197>2,LARGE($I197:$Z197,3),"") ->  | BK197: =IF($F197>3,LARGE($I197:$Z197,4),"") ->  | BL197: =IF($F197>4,LARGE($I197:$Z197,5),"") ->  | BM197: =IF($F197>5,LARGE($I197:$Z197,6),"") ->  | BN197: =IF($F197>6,LARGE($I197:$Z197,7),"") ->  | BO197: =IF($F197>7,LARGE($I197:$Z197,8),"") ->  | BP197: =IF($F197>8,LARGE($I197:$Z197,9),"") ->  | BQ197: =IF($F197>9,LARGE($I197:$Z197,10),"") ->  | BR197: =IF($F197>10,LARGE($I197:$Z197,11),"") ->  | BS197: =IF($F197>11,LARGE($I197:$Z197,12),"") ->  | BT197: =IF($F197>12,LARGE($I197:$Z197,13),"") ->  | BU197: =IF($F197>13,LARGE($I197:$Z197,14),"") ->  | BV197: =IF($F197>14,LARGE($I197:$Z197,15),"") ->  | BW197: =IF($F197>15,LARGE($I197:$Z197,16),"") ->  | BX197: - | BY197: - | BZ197: - | CA197: =SUM(AA197-F197)-2 -> 15 | CC197: =SUM(BH197:BW197) -> 67 | EN197: 216 | EP197: 193 | EQ197: =IF(BE197>1,"("&AE197&")","("&AG197&")") -> (176)
A198: 194 (-) | B198: Pontus Karlsson | C198: PBHSPC | D198: 65 | F198: 1 | G198: 32.5 | H198: x | V198: 65 | AA198: 18 | AB198: - | AC198: - | AD198: - | AE198: 195 | AF198: 194 | AG198: - | AH198: 194 | AK198: =COUNT($I$3,I198,H198) -> 1 | AL198: =COUNT($J$3,J198,I198) -> 1 | AM198: =COUNT($K$3,K198,J198) -> 1 | AN198: =COUNT($L$3,L198,K198) -> 1 | AO198: =COUNT($M$3,M198,L198) -> 1 | AP198: =COUNT($N$3,N198,M198) -> 1 | AQ198: =COUNT($O$3,O198,N198) -> 1 | AR198: =COUNT($P$3,P198,O198) -> 1 | AS198: =COUNT($Q$3,Q198,P198) -> 1 | AT198: =COUNT($R$3,R198,Q198) -> 1 | AU198: =COUNT($S$3,S198,R198) -> 1 | AV198: =COUNT($T$3,T198,S198) -> 1 | AW198: =COUNT($U$3,U198,T198) -> 1 | AX198: =COUNT($V$3,V198,U198) -> 2 | AY198: =COUNT($W$3,W198,V198) -> 2 | AZ198: =COUNT($X$3,X198,W198) -> 1 | BA198: =COUNT($Y$3,Y198,X198) -> 1 | BB198: =COUNT($Z$3,Z198,Y198) -> 1 | BE198: 1 | BH198: 65 | BX198: =IF($F198>12,LARGE($I198:$Z198,13),"-") -> - | BY198: =IF($F198>13,LARGE($I198:$Z198,14),"-") -> - | BZ198: =IF($F198>14,LARGE($I198:$Z198,15),"-") -> - | CA198: 15 | CC198: 65 | EN198: 189 | EQ198: (-)
A199: 194 (-) | B199: Lotta Sundin | C199: Vaxholm | D199: 65 | F199: 1 | G199: 32.5 | H199: x | V199: 65 | AA199: 18 | AB199: - | AC199: - | AD199: - | AE199: 203 | AF199: 194 | AG199: - | AH199: 195 | AK199: 1 | AL199: 1 | AM199: 1 | AN199: 1 | AO199: 1 | AP199: 1 | AQ199: 1 | AR199: 1 | AS199: 1 | AT199: 1 | AU199: 1 | AV199: 1 | AW199: 1 | AX199: 2 | AY199: 2 | AZ199: 1 | BA199: 1 | BB199: 1 | BE199: 1 | BH199: 65 | BX199: - | BY199: - | BZ199: - | CA199: 15 | CC199: 65 | EN199: 190 | EQ199: (-)
A200: 196 (177) | B200: Eva Lindberg | C200: Holland | D200: 61 | F200: 1 | G200: 30.5 | K200: 61 | AA200: 18 | AB200: - | AC200: - | AD200: - | AE200: 177 | AF200: 196 | AG200: - | AH200: 196 | AK200: 1 | AL200: 1 | AM200: 2 | AN200: 2 | AO200: 1 | AP200: 1 | AQ200: 1 | AR200: 1 | AS200: 1 | AT200: 1 | AU200: 1 | AV200: 1 | AW200: 1 | AX200: 1 | AY200: 1 | AZ200: 1 | BA200: 1 | BB200: 1 | BE200: 2 | BH200: 61 | BX200: - | BY200: - | BZ200: - | CA200: 15 | CC200: 61 | EN200: 191 | EP200: 196 | EQ200: (177)
... 236 more rows

Sheet Regler
A1: Regler för Sverige-,Junior- o Miniorranking
A3: Rankingpoäng utgör den totala poängen från rankingtävlingar under säsongen
A4: som varje enskild kastare har fått ihop.
A5: Max från 13 tävlingar kan medräknas, och då räknas de 13 med högst resultat.
A7: Den som har högst poäng när säsongen är över vinner.
A9: Skulle det vara kastare som hamnar på samma poäng när säsongen är över, och är bland de
A10: tre bästa så gäller detta för att skilja dem åt.
A12: 1. Högst snitt per serie
A13: 2. Högst poäng på en tävling, sedan näst högst osv.
A14: 3. Högsta poängen på senaste tävlingen, sedan den dessför innan osv.(DM-tävlingar ej inräknade)
A15: 4. Skulle det fortfarande inte gå att skilja dem åt, så blir de på samma plats.
A18: Seriespelsranking
A20: Alla individuella seriespelsresultaten under säsongen räknas in.
A21: Den som har högst snitt när säsongen är över vinner.
A23: För att kunna vara bland de tre pristagarna, måste man spelat minst 7 serier.
A25: Skulle det vara kastare som hamnar på samma snitt när säsongen är över, och är bland de
A26: tre bästa så gäller detta för att skilja dem åt.
A28: 1. Det högsta serieresultatet, sedan näst högsta osv.
A29: 2. Skulle det fortfarande inte gå att skilja dem åt, så blir de på samma plats.

Sheet Miniorranking
B1: Svenska Hästskokastarförbundets Sverigeranking | AC1: =COUNT(I5:AA25)-(O2+P2+V2+W2) -> 8
C2: MINIOR | I2: =COUNT(I5:I25) -> 0 | J2: =COUNT(J5:J25) -> 1 | K2: 1 | L2: 0 | M2: 0 | N2: 3 | O2: 1 | P2: 2 | Q2: 3 | R2: 0 | S2: 0 | T2: 0 | U2: 0 | V2: 0 | W2: 1 | X2: 0 | Y2: 0
B3: 2019-10-26 | C3: Säsong 2019 / 2020 | I3: =IF(SUM(I5:I407)>70,1,"") ->  | J3: =IF(SUM(J5:J407)>7,1,"") -> 1 | K3: =IF(SUM(K5:K407)>7,1,"") -> 1 | N3: 1 | O3: 1 | P3: 1 | Q3: 1 | W3: 1 | Z3: =IF(SUM(Z5:Z407)>100,1,"") -> 
A4: Plac. | B4: Kastare | C4: Klubb | D4: Ranking-poäng | F4: Antal täv-lingar | G4: Snitt per serie | I4: Moheda Open | J4: Jämjö Open | K4: Björkenäs Open | L4: Utomhus-SM Dag 1 | M4: Utomhus-SM Dag 2 | N4: Vaxholm Open | O4: Blekinge-DM Ute | P4: Utomhus Smålandsmästaren | Q4: Dynapac Open | R4: Åseda Open | S4: Höstskon Nybro | T4: Carlskrona Cup | U4: Sibbamåla Open | V4: Inomhus Smålandsmästaren | W4: Blekinge DM Inne | X4: Inomhus-SM | Y4: Tingsryds Open
A5: =EJ5&EK5 -> 1(1) | B5: Saga Karlberg | C5: Jämjö Hsk | D5: =SUM(I5:AA5) -> 569 | F5: =COUNT(I5:AA5) -> 4 | G5: =SUM((D5)/(F5*2)) -> 71.125 | J5: 141 | O5: 159 | Q5: 162 | W5: 107 | AD5: 1 | AE5: =IF(D5>1,ROW(1:1),"-") -> 1 | AF5: =IF(F5>1,ROW(1:1),"-") -> 1 | AJ5: =COUNT($I$3,I5,H5) -> 0 | AK5: =COUNT($J$3,J5,I5) -> 2 | AL5: =COUNT($K$3,K5,J5) -> 2 | AM5: =COUNT($L$3,L5,K5) -> 0 | AN5: =COUNT($M$3,M5,L5) -> 0 | AO5: =COUNT($N$3,N5,M5) -> 1 | AP5: =COUNT($O$3,O5,N5) -> 2 | AQ5: =COUNT($P$3,P5,O5) -> 2 | AR5: =COUNT($Q$3,Q5,P5) -> 2 | AS5: =COUNT($R$3,R5,Q5) -> 1 | AT5: =COUNT($S$3,S5,R5) -> 0 | AU5: =COUNT($T$3,T5,S5) -> 0 | AV5: =COUNT($U$3,U5,T5) -> 0 | AW5: =COUNT($V$3,V5,U5) -> 0 | AX5: =COUNT($W$3,W5,V5) -> 2 | AY5: =COUNT($X$3,X5,W5) -> 1 | AZ5: =COUNT($Y$3,Y5,X5) -> 0 | BA5: =COUNT($Z$3,Z5,Y5) -> 0 | BB5: =COUNT($AA$3,AA5,Z5) -> 0 | BD5: =COUNTIF(AI5:BC5,">1") -> 6 | BE5: =IF(H5="x",1,2) -> 2 | EH5: 1 | EJ5: =IF(BD5>=1,AE5,"") -> 1 | EK5: =IF(BE5>1,"("&AD5&")","("&AF5&")") -> (1)
A6: 2(2) | B6: Albin Rydell | C6: Värends Hsk | D6: 92 | F6: 1 | G6: 46 | P6: 92 | AD6: 2 | AE6: =IF(AND(D6=D5,D6=D4),ROW(#REF!),IF(D6=D5,ROW(1:1),IF(D6>1,ROW(2:2),"-"))) -> 2 | AF6: - | AJ6: 0 | AK6: 1 | AL6: 1 | AM6: 0 | AN6: 0 | AO6: 1 | AP6: 1 | AQ6: 2 | AR6: 2 | AS6: 0 | AT6: 0 | AU6: 0 | AV6: 0 | AW6: 0 | AX6: 1 | AY6: 0 | AZ6: 0 | BA6: 0 | BB6: 0 | BD6: 2 | BE6: 2 | EH6: 3 | EJ6: 2 | EK6: (2)
A7: 3(3) | B7: Gustav Svensson | C7: Carlskrona Hsc | D7: 68 | F7: 1 | G7: 34 | Q7: 68 | AD7: 3 | AE7: =IF(AND(D7=D6,D7=D5,D7=D4),ROW(#REF!),IF(AND(D7=D6,D7=D5),ROW(1:1),IF(D7=D6,ROW(2:2),IF(D7>1,ROW(3:3),"-")))) -> 3 | AF7: - | AJ7: 0 | AK7: 1 | AL7: 1 | AM7: 0 | AN7: 0 | AO7: 1 | AP7: 1 | AQ7: 1 | AR7: 2 | AS7: 1 | AT7: 0 | AU7: 0 | AV7: 0 | AW7: 0 | AX7: 1 | AY7: 0 | AZ7: 0 | BA7: 0 | BB7: 0 | BD7: 1 | BE7: 2 | EH7: 4 | EJ7: 3 | EK7: (3)
A8: 4(4) | B8: Ludvig Holmgren | C8: Carlskrona Hsc | D8: 60 | F8: 1 | G8: 30 | Q8: 60 | AD8: 4 | AE8: =IF(AND(D8=D7,D8=D6,D8=D5,D8=D4),ROW(#REF!),IF(AND(D8=D7,D8=D6,D8=D5),ROW(1:1),IF(AND(D8=D7,D8=D6),ROW(2:2),IF(D8=D7,ROW(3:3),IF(D8>1,ROW(4:4),"-"))))) -> 4 | AF8: - | AJ8: 0 | AK8: 1 | AL8: 1 | AM8: 0 | AN8: 0 | AO8: 1 | AP8: 1 | AQ8: 1 | AR8: 2 | AS8: 1 | AT8: 0 | AU8: 0 | AV8: 0 | AW8: 0 | AX8: 1 | AY8: 0 | AZ8: 0 | BA8: 0 | BB8: 0 | BD8: 1 | BE8: 2 | EH8: 5 | EJ8: 4 | EK8: (4)
A9: 5(5) | B9: Alice Jältsäter | C9: Vaxholm | D9: 51 | F9: 1 | G9: 25.5 | N9: 51 | AD9: 5 | AE9: =IF(AND(D9=D8,D9=D7,D9=D6,D9=D5),ROW(1:1),IF(AND(D9=D8,D9=D7,D9=D6),ROW(2:2),IF(AND(D9=D8,D9=D7),ROW(3:3),IF(D9=D8,ROW(4:4),IF(D9>1,ROW(5:5),"-"))))) -> 5 | AF9: - | AJ9: 0 | AK9: 1 | AL9: 1 | AM9: 0 | AN9: 0 | AO9: 2 | AP9: 2 | AQ9: 1 | AR9: 1 | AS9: 0 | AT9: 0 | AU9: 0 | AV9: 0 | AW9: 0 | AX9: 1 | AY9: 0 | AZ9: 0 | BA9: 0 | BB9: 0 | BD9: 2 | BE9: 2 | EH9: 6 | EJ9: 5 | EK9: (5)
A10: 6(6) | B10: Alex Rydell | C10: Värends Hsk | D10: 45 | F10: 1 | G10: 22.5 | P10: 45 | AD10: 6 | AE10: =IF(AND(D10=D9,D10=D8,D10=D7,D10=D6),ROW(2:2),IF(AND(D10=D9,D10=D8,D10=D7),ROW(3:3),IF(AND(D10=D9,D10=D8),ROW(4:4),IF(D10=D9,ROW(5:5),IF(D10>1,ROW(6:6),"-"))))) -> 6 | AF10: - | AJ10: 0 | AK10: 1 | AL10: 1 | AM10: 0 | AN10: 0 | AO10: 1 | AP10: 1 | AQ10: 2 | AR10: 2 | AS10: 0 | AT10: 0 | AU10: 0 | AV10: 0 | AW10: 0 | AX10: 1 | AY10: 0 | AZ10: 0 | BA10: 0 | BB10: 0 | BD10: 2 | BE10: 2 | EH10: 7 | EJ10: 6 | EK10: (6)
A11: 7(7) | B11: Isac Zetterlund | C11: Vaxholm | D11: 44 | F11: 1 | G11: 22 | N11: 44 | AD11: 7 | AE11: =IF(AND(D11=D10,D11=D9,D11=D8,D11=D7),ROW(3:3),IF(AND(D11=D10,D11=D9,D11=D8),ROW(4:4),IF(AND(D11=D10,D11=D9),ROW(5:5),IF(D11=D10,ROW(6:6),IF(D11>1,ROW(7:7),"-"))))) -> 7 | AF11: - | AJ11: 0 | AK11: 1 | AL11: 1 | AM11: 0 | AN11: 0 | AO11: 2 | AP11: 2 | AQ11: 1 | AR11: 1 | AS11: 0 | AT11: 0 | AU11: 0 | AV11: 0 | AW11: 0 | AX11: 1 | AY11: 0 | AZ11: 0 | BA11: 0 | BB11: 0 | BD11: 2 | BE11: 2 | EH11: 8 | EJ11: 7 | EK11: (7)
A12: 8(8) | B12: Theo Fresk | C12: Sollentuna | D12: 41 | F12: 1 | G12: 20.5 | N12: 41 | AD12: 8 | AE12: =IF(AND(D12=D11,D12=D10,D12=D9,D12=D8),ROW(4:4),IF(AND(D12=D11,D12=D10,D12=D9),ROW(5:5),IF(AND(D12=D11,D12=D10),ROW(6:6),IF(D12=D11,ROW(7:7),IF(D12>1,ROW(8:8),"-"))))) -> 8 | AF12: - | AJ12: 0 | AK12: 1 | AL12: 1 | AM12: 0 | AN12: 0 | AO12: 2 | AP12: 2 | AQ12: 1 | AR12: 1 | AS12: 0 | AT12: 0 | AU12: 0 | AV12: 0 | AW12: 0 | AX12: 1 | AY12: 0 | AZ12: 0 | BA12: 0 | BB12: 0 | BD12: 2 | BE12: 2 | EH12: 9 | EJ12: 8 | EK12: (8)
A13: 9(9) | B13: Amanda Ahlberg | C13: Jämjö Hsk | D13: 24 | F13: 1 | G13: 12 | K13: 24 | AD13: 9 | AE13: =IF(D13=D12,ROW(8:8),IF(D13>1,ROW(9:9),"-")) -> 9 | AF13: - | AJ13: 0 | AK13: 1 | AL13: 2 | AM13: 1 | AN13: 0 | AO13: 1 | AP13: 1 | AQ13: 1 | AR13: 1 | AS13: 0 | AT13: 0 | AU13: 0 | AV13: 0 | AW13: 0 | AX13: 1 | AY13: 0 | AZ13: 0 | BA13: 0 | BB13: 0 | BD13: 1 | BE13: 2 | EH13: 2 | EJ13: 9 | EK13: (9)
A14: =EJ14&EK14 -> (-) | B14: Alfons Andersson | C14: Carlskrona Hsc | D14: 0 | F14: 0 | AD14: - | AE14: =IF(AND(D14=D13,D14=D12,D14=D11,D14=D10),ROW(6:6),IF(AND(D14=D13,D14=D12,D14=D11),ROW(7:7),IF(AND(D14=D13,D14=D12),ROW(8:8),IF(D14=D13,ROW(9:9),IF(D14>1,ROW(10:10),"-"))))) -> - | AF14: =IF(F14>1,ROW(10:10),"-") -> - | AJ14: =COUNT($I$3,I14,H14) -> 0 | AK14: =COUNT($J$3,J14,I14) -> 1 | AL14: =COUNT($K$3,K14,J14) -> 1 | AM14: =COUNT($L$3,L14,K14) -> 0 | AN14: =COUNT($M$3,M14,L14) -> 0 | AO14: =COUNT($N$3,N14,M14) -> 1 | AP14: =COUNT($O$3,O14,N14) -> 1 | AQ14: =COUNT($P$3,P14,O14) -> 1 | AR14: =COUNT($Q$3,Q14,P14) -> 1 | AS14: =COUNT($R$3,R14,Q14) -> 0 | AT14: =COUNT($S$3,S14,R14) -> 0 | AU14: =COUNT($T$3,T14,S14) -> 0 | AV14: =COUNT($U$3,U14,T14) -> 0 | AW14: =COUNT($V$3,V14,U14) -> 0 | AX14: =COUNT($W$3,W14,V14) -> 1 | AY14: =COUNT($X$3,X14,W14) -> 0 | AZ14: =COUNT($Y$3,Y14,X14) -> 0 | BA14: =COUNT($Z$3,Z14,Y14) -> 0 | BB14: =COUNT($AA$3,AA14,Z14) -> 0 | BD14: =COUNTIF(AI14:BC14,">1") -> 0 | BE14: =IF(H14="x",1,2) -> 2 | EH14: 10 | EJ14: =IF(BD14>=1,AE14,"") ->  | EK14: =IF(BE14>1,"("&AD14&")","("&AF14&")") -> (-)
A15: (10) | D15: 0 | F15: 0 | AD15: 10 | AE15: 10 | AF15: - | AJ15: 0 | AK15: 1 | AL15: 1 | AM15: 0 | AN15: 0 | AO15: 1 | AP15: 1 | AQ15: 1 | AR15: 1 | AS15: 0 | AT15: 0 | AU15: 0 | AV15: 0 | AW15: 0 | AX15: 1 | AY15: 0 | AZ15: 0 | BA15: 0 | BB15: 0 | BD15: 0 | BE15: 2 | EH15: 11 | EK15: (10)
A16: (10) | D16: 0 | F16: 0 | AD16: 10 | AE16: 10 | AF16: - | AJ16: 0 | AK16: 1 | AL16: 1 | AM16: 0 | AN16: 0 | AO16: 1 | AP16: 1 | AQ16: 1 | AR16: 1 | AS16: 0 | AT16: 0 | AU16: 0 | AV16: 0 | AW16: 0 | AX16: 1 | AY16: 0 | AZ16: 0 | BA16: 0 | BB16: 0 | BD16: 0 | BE16: 2 | EH16: 12 | EK16: (10)
A17: (10) | D17: 0 | F17: 0 | AD17: 10 | AE17: 10 | AF17: - | AJ17: 0 | AK17: 1 | AL17: 1 | AM17: 0 | AN17: 0 | AO17: 1 | AP17: 1 | AQ17: 1 | AR17: 1 | AS17: 0 | AT17: 0 | AU17: 0 | AV17: 0 | AW17: 0 | AX17: 1 | AY17: 0 | AZ17: 0 | BA17: 0 | BB17: 0 | BD17: 0 | BE17: 2 | EH17: 13 | EK17: (10)
A18: (10) | D18: 0 | F18: 0 | AD18: 10 | AE18: 10 | AF18: - | AJ18: 0 | AK18: 1 | AL18: 1 | AM18: 0 | AN18: 0 | AO18: 1 | AP18: 1 | AQ18: 1 | AR18: 1 | AS18: 0 | AT18: 0 | AU18: 0 | AV18: 0 | AW18: 0 | AX18: 1 | AY18: 0 | AZ18: 0 | BA18: 0 | BB18: 0 | BD18: 0 | BE18: 2 | EH18: 14 | EJ18: =IF(BD18>=1,AE18,"") ->  | EK18: (10)
A19: (11) | D19: 0 | F19: 0 | AD19: 11 | AE19: 11 | AF19: - | AJ19: 0 | AK19: 1 | AL19: 1 | AM19: 0 | AN19: 0 | AO19: 1 | AP19: 1 | AQ19: 1 | AR19: 1 | AS19: 0 | AT19: 0 | AU19: 0 | AV19: 0 | AW19: 0 | AX19: 1 | AY19: 0 | AZ19: 0 | BA19: 0 | BB19: 0 | BD19: 0 | BE19: 2 | EH19: 15 | EK19: (11)
A20: (12) | D20: 0 | F20: 0 | AD20: 12 | AE20: 12 | AF20: - | AJ20: 0 | AK20: 1 | AL20: 1 | AM20: 0 | AN20: 0 | AO20: 1 | AP20: 1 | AQ20: 1 | AR20: 1 | AS20: 0 | AT20: 0 | AU20: 0 | AV20: 0 | AW20: 0 | AX20: 1 | AY20: 0 | AZ20: 0 | BA20: 0 | BB20: 0 | BD20: 0 | BE20: 2 | EH20: 16 | EJ20: =IF(BD20>=1,AE20,"") ->  | EK20: (12)
A21: (13) | D21: 0 | F21: 0 | AD21: 13 | AE21: 13 | AF21: - | AJ21: 0 | AK21: 1 | AL21: 1 | AM21: 0 | AN21: 0 | AO21: 1 | AP21: 1 | AQ21: 1 | AR21: 1 | AS21: 0 | AT21: 0 | AU21: 0 | AV21: 0 | AW21: 0 | AX21: 1 | AY21: 0 | AZ21: 0 | BA21: 0 | BB21: 0 | BD21: 0 | BE21: 2 | EH21: 17 | EK21: (13)
A22: =EJ22&EK22 -> (14) | D22: 0 | F22: 0 | AD22: 14 | AE22: 14 | AF22: - | AJ22: 0 | AK22: 1 | AL22: 1 | AM22: 0 | AN22: 0 | AO22: 1 | AP22: 1 | AQ22: 1 | AR22: 1 | AS22: 0 | AT22: 0 | AU22: 0 | AV22: 0 | AW22: 0 | AX22: 1 | AY22: 0 | AZ22: 0 | BA22: 0 | BB22: 0 | BD22: 0 | BE22: 2 | EH22: 18 | EK22: (14)
A23: =EJ23&EK23 -> (15) | D23: 0 | F23: 0 | AD23: 15 | AE23: =IF(AND(D23=D22,D23=D21,D23=D20,D23=D19),ROW(15:15),IF(AND(D23=D22,D23=D21,D23=D20),ROW(16:16),IF(AND(D23=D22,D23=D21),ROW(17:17),IF(D23=D22,ROW(18:18),IF(D23>1,ROW(19:19),"-"))))) -> 15 | AF23: =IF(F23>1,ROW(19:19),"-") -> - | AJ23: =COUNT($I$3,I23,H23) -> 0 | AK23: =COUNT($J$3,J23,I23) -> 1 | AL23: =COUNT($K$3,K23,J23) -> 1 | AM23: =COUNT($L$3,L23,K23) -> 0 | AN23: =COUNT($M$3,M23,L23) -> 0 | AO23: =COUNT($N$3,N23,M23) -> 1 | AP23: =COUNT($O$3,O23,N23) -> 1 | AQ23: =COUNT($P$3,P23,O23) -> 1 | AR23: =COUNT($Q$3,Q23,P23) -> 1 | AS23: =COUNT($R$3,R23,Q23) -> 0 | AT23: =COUNT($S$3,S23,R23) -> 0 | AU23: =COUNT($T$3,T23,S23) -> 0 | AV23: =COUNT($U$3,U23,T23) -> 0 | AW23: =COUNT($V$3,V23,U23) -> 0 | AX23: =COUNT($W$3,W23,V23) -> 1 | AY23: =COUNT($X$3,X23,W23) -> 0 | AZ23: =COUNT($Y$3,Y23,X23) -> 0 | BA23: =COUNT($Z$3,Z23,Y23) -> 0 | BB23: =COUNT($AA$3,AA23,Z23) -> 0 | BD23: =COUNTIF(AI23:BC23,">1") -> 0 | BE23: =IF(H23="x",1,2) -> 2 | EH23: 19 | EK23: =IF(BE23>1,"("&AD23&")","("&AF23&")") -> (15)
A24: (16) | D24: 0 | F24: 0 | AD24: 16 | AE24: 16 | AF24: - | AJ24: 0 | AK24: 1 | AL24: 1 | AM24: 0 | AN24: 0 | AO24: 1 | AP24: 1 | AQ24: 1 | AR24: 1 | AS24: 0 | AT24: 0 | AU24: 0 | AV24: 0 | AW24: 0 | AX24: 1 | AY24: 0 | AZ24: 0 | BA24: 0 | BB24: 0 | BD24: 0 | BE24: 2 | EH24: 20 | EK24: (16)
A25: =EJ25&EK25 -> (17) | D25: 0 | F25: 0 | AD25: 17 | AE25: =IF(AND(D25=D24,D25=D23,D25=D22,D25=D21),ROW(17:17),IF(AND(D25=D24,D25=D23,D25=D22),ROW(18:18),IF(AND(D25=D24,D25=D23),ROW(19:19),IF(D25=D24,ROW(20:20),IF(D25>1,ROW(21:21),"-"))))) -> 17 | AF25: =IF(F25>1,ROW(21:21),"-") -> - | AJ25: =COUNT($I$3,I25,H25) -> 0 | AK25: =COUNT($J$3,J25,I25) -> 1 | AL25: =COUNT($K$3,K25,J25) -> 1 | AM25: =COUNT($L$3,L25,K25) -> 0 | AN25: =COUNT($M$3,M25,L25) -> 0 | AO25: =COUNT($N$3,N25,M25) -> 1 | AP25: =COUNT($O$3,O25,N25) -> 1 | AQ25: =COUNT($P$3,P25,O25) -> 1 | AR25: =COUNT($Q$3,Q25,P25) -> 1 | AS25: =COUNT($R$3,R25,Q25) -> 0 | AT25: =COUNT($S$3,S25,R25) -> 0 | AU25: =COUNT($T$3,T25,S25) -> 0 | AV25: =COUNT($U$3,U25,T25) -> 0 | AW25: =COUNT($V$3,V25,U25) -> 0 | AX25: =COUNT($W$3,W25,V25) -> 1 | AY25: =COUNT($X$3,X25,W25) -> 0 | AZ25: =COUNT($Y$3,Y25,X25) -> 0 | BA25: =COUNT($Z$3,Z25,Y25) -> 0 | BB25: =COUNT($AA$3,AA25,Z25) -> 0 | BD25: =COUNTIF(AI25:BC25,">1") -> 0 | BE25: =IF(H25="x",1,2) -> 2 | EH25: 21 | EK25: =IF(BE25>1,"("&AD25&")","("&AF25&")") -> (17)
EH28: 1 | EJ28: =IF(BD28>=1,AE28,"") ->  | EK28: =IF(BD28>1,"("&AD28&")","("&AF28&")") -> ()
EH29: 3 | EK29: ()
EH30: 4 | EK30: ()
EH31: 5 | EK31: ()
EH32: 6 | EK32: ()
EH33: 7 | EK33: ()
EH34: 8 | EK34: ()
EH35: 9 | EK35: ()
EH36: 10 | EK36: ()
EH37: 11 | EK37: ()
EH38: 12 | EK38: ()
EH39: 13 | EK39: ()
EH40: 14 | EJ40: =IF(BD40>=1,AE40,14) -> 14 | EK40: ()
EH41: 15 | EJ41: =IF(BD41>=1,AE41,"") ->  | EK41: ()
EH42: 16 | EJ42: =IF(BD42>=1,AE42,"") ->  | EK42: ()
EH43: 2 | EJ43: =IF(BD43>=1,AE43,"") ->  | EK43: ()
EH44: 17 | EJ44: =IF(BD44>=1,AE44,"") ->  | EK44: =IF(BD44>2,"("&AD44&")","("&AF44&")") -> ()
EH45: 18 | EJ45: 18 | EK45: =IF(BD45>1,"("&AD45&")","("&AF45&")") -> ()
EH46: 19 | EJ46: 19 | EK46: =IF(BD46>1,"("&AD46&")","("&AF46&")") -> ()
EH47: 20 | EJ47: 20 | EK47: =IF(BD47>1,"("&AD47&")","("&AF47&")") -> ()

Sheet Seriespelsranking
B1: Svenska Hästskokastarförbundets Seriespelsranking
B2: 2019_2020
B3: 2020-03-23
A4: Plac. | B4: Kastare | C4: Klubb | D4: Ranking-snitt | F4: Antal serie-resultat | G4: Total-poäng serie-resultat | I4: Antal vunna dubblar | J4: Antal förlorade dubblar | K4: Antal vunna singlar | L4: Antal förlorade singlar | M4: Antal vunna matcher i % | N4: Inskrivning resultat | BQ4: Uträkning för | BR4: statistik vunna resp. | BS4: förlorade | BT4: dubblar och singlar.
A5: =IF(H5="x",DU5&EF5,DU5&EE5) -> 1(1) | B5: Tobias Gneupel | C5: Sibbamåla | D5: =IF(F5>0.5,(G5/F5),0) -> 236.3043478 | F5: =COUNT(N5:BO5) -> 23 | G5: =SUM(N5:BO5) -> 5435 | I5: =COUNTIF(BQ5:DR5,2) -> 0 | J5: =COUNTIF(BQ5:DR5,-2) -> 0 | K5: =COUNTIF(BQ5:DR5,1) -> 0 | L5: =COUNTIF(BQ5:DR5,-1) -> 0 | M5: =IF(F5>0,(I5+K5)/(F5),0) -> 0 | N5: 280 | O5: 234 | P5: 203 | Q5: 235 | R5: 243 | S5: 215 | T5: 240 | U5: 189 | V5: 236 | W5: 234 | X5: 223 | Y5: 192 | Z5: 302 | AA5: 234 | AB5: 246 | AC5: 208 | AD5: 256 | AE5: 233 | AF5: 272 | AG5: 230 | AH5: 264 | AI5: 204 | AJ5: 262 | DT5: 1 | DU5: =IF(AND(D5=D4,D5=D3,D5=D2,D5=D1),ROW(1:1),IF(AND(D5=D4,D5=D3,D5=D2),ROW(1:1),IF(AND(D5=D4,D5=D3),ROW(1:1),IF(D5=D4,ROW(1:1),IF(D5>1,ROW(1:1),"-"))))) -> 1 | DV5: =IF(DX5=1,ROW(1:1),"-") -> 1 | DX5: 1 | EB5: 11 | ED5: =IF(DX5=1,DU5,IF(DX5="",DU5,"")) -> 1 | EE5: =IF(DX5=1,"("&DT5&")","("&DV5&")") -> (1) | EF5: (-)
A6: =IF(H6="x",DU6&EF6,DU6&EE6) -> 2(2) | B6: Kent Sundahl | C6: Carlskrona | D6: 221.8214286 | F6: 28 | G6: 6211 | I6: 0 | J6: 0 | K6: 0 | L6: 0 | M6: 0 | N6: 182 | O6: 225 | P6: 235 | Q6: 224 | R6: 170 | S6: 299 | T6: 237 | U6: 219 | V6: 188 | W6: 223 | X6: 278 | Y6: 293 | Z6: 243 | AA6: 213 | AB6: 268 | AC6: 185 | AD6: 175 | AE6: 183 | AF6: 231 | AG6: 188 | AH6: 139 | AI6: 196 | AJ6: 300 | AK6: 158 | AL6: 272 | AM6: 216 | AN6: 225 | AO6: 246 | DT6: 2 | DU6: =IF(AND(D6=D5,D6=D4,D6=D3,D6=D2),ROW(1:1),IF(AND(D6=D5,D6=D4,D6=D3),ROW(1:1),IF(AND(D6=D5,D6=D4),ROW(1:1),IF(D6=D5,ROW(1:1),IF(D6>1,ROW(2:2),"-"))))) -> 2 | DV6: 2 | DX6: 1 | EB6: 16 | ED6: 2 | EE6: (2) | EF6: (-)
A7: 3(3) | B7: Joel Sundahl | C7: Carlskrona | D7: 181.75 | F7: 24 | G7: 4362 | I7: 0 | J7: 0 | K7: 0 | L7: 0 | M7: 0 | N7: 95 | O7: 131 | P7: 124 | Q7: 99 | R7: 211 | S7: 217 | T7: 174 | U7: 245 | V7: 193 | W7: 180 | X7: 191 | Y7: 182 | Z7: 197 | AA7: 203 | AB7: 190 | AC7: 236 | AD7: 193 | AE7: 109 | AF7: 151 | AG7: 168 | AH7: 249 | AI7: 202 | AJ7: 212 | AK7: 210 | DT7: 3 | DU7: =IF(AND(D7=D6,D7=D5,D7=D4,D7=D3),ROW(1:1),IF(AND(D7=D6,D7=D5,D7=D4),ROW(1:1),IF(AND(D7=D6,D7=D5),ROW(1:1),IF(D7=D6,ROW(2:2),IF(D7>1,ROW(3:3),"-"))))) -> 3 | DV7: 3 | DX7: 1 | EB7: 20 | ED7: 3 | EE7: (3) | EF7: (-)
A8: 4(4) | B8: Sandor Bodi | C8: Växjö Hsk | D8: 180.9655172 | F8: 29 | G8: 5248 | I8: 0 | J8: 0 | K8: 0 | L8: 0 | M8: 0 | N8: 185 | O8: 112 | P8: 179 | Q8: 204 | R8: 166 | S8: 190 | T8: 157 | U8: 208 | V8: 221 | W8: 155 | X8: 214 | Y8: 193 | Z8: 230 | AA8: 126 | AB8: 193 | AC8: 157 | AD8: 189 | AE8: 141 | AF8: 178 | AG8: 129 | AH8: 215 | AI8: 112 | AJ8: 100 | AK8: 201 | AL8: 279 | AM8: 198 | AN8: 224 | AO8: 170 | AP8: 222 | DT8: 4 | DU8: =IF(AND(D8=D7,D8=D6,D8=D5),ROW(1:1),IF(AND(D8=D7,D8=D6),ROW(2:2),IF(D8=D7,ROW(3:3),IF(D8>1,ROW(4:4),"-")))) -> 4 | DV8: 4 | DX8: 1 | EB8: 4 | ED8: 4 | EE8: (4) | EF8: (-)
A9: 5(5) | B9: Ingvar Eriksson | C9: Carlskrona | D9: 180.2258065 | F9: 31 | G9: 5587 | I9: 0 | J9: 0 | K9: 0 | L9: 0 | M9: 0 | N9: 172 | O9: 123 | P9: 115 | Q9: 226 | R9: 171 | S9: 151 | T9: 189 | U9: 180 | V9: 221 | W9: 203 | X9: 142 | Y9: 213 | Z9: 168 | AA9: 204 | AB9: 171 | AC9: 230 | AD9: 158 | AE9: 182 | AF9: 240 | AG9: 121 | AH9: 122 | AI9: 131 | AJ9: 152 | AK9: 227 | AL9: 272 | AM9: 171 | AN9: 144 | AO9: 198 | AP9: 154 | AQ9: 247 | AR9: 189 | DT9: 5 | DU9: =IF(D9>1,ROW(5:5),"-") -> 5 | DV9: 5 | DX9: 1 | EB9: 1 | ED9: 5 | EE9: (5) | EF9: (-)
A10: 6(6) | B10: Johan Johansson | C10: Tingsryd | D10: 178.7941176 | F10: 34 | G10: 6079 | I10: 0 | J10: 0 | K10: 0 | L10: 0 | M10: 0 | N10: 226 | O10: 172 | P10: 134 | Q10: 175 | R10: 153 | S10: 139 | T10: 157 | U10: 195 | V10: 234 | W10: 173 | X10: 245 | Y10: 175 | Z10: 196 | AA10: 186 | AB10: 184 | AC10: 223 | AD10: 150 | AE10: 204 | AF10: 199 | AG10: 189 | AH10: 194 | AI10: 137 | AJ10: 128 | AK10: 223 | AL10: 165 | AM10: 196 | AN10: 207 | AO10: 236 | AP10: 127 | AQ10: 159 | AR10: 164 | AS10: 143 | AT10: 162 | AU10: 129 | DT10: 6 | DU10: =IF(D10=D9,ROW(5:5),IF(D10>1,ROW(6:6),"-")) -> 6 | DV10: 6 | DX10: 1 | EB10: 2 | ED10: 6 | EE10: (6) | EF10: (-)
A11: 7(7) | B11: Gebriela Kostantinos | C11: Korpen Åseda | D11: 177.6129032 | F11: 31 | G11: 5506 | I11: 0 | J11: 0 | K11: 0 | L11: 0 | M11: 0 | N11: 189 | O11: 166 | P11: 111 | Q11: 205 | R11: 235 | S11: 173 | T11: 209 | U11: 202 | V11: 218 | W11: 170 | X11: 146 | Y11: 165 | Z11: 229 | AA11: 148 | AB11: 184 | AC11: 216 | AD11: 170 | AE11: 166 | AF11: 177 | AG11: 224 | AH11: 175 | AI11: 151 | AJ11: 143 | AK11: 165 | AL11: 147 | AM11: 187 | AN11: 183 | AO11: 200 | AR11: 142 | AS11: 135 | AT11: 175 | DT11: 7 | DU11: =IF(AND(D11=D10,D11=D9,D11=D8,D11=D7),ROW(3:3),IF(AND(D11=D10,D11=D9,D11=D8),ROW(4:4),IF(AND(D11=D10,D11=D9),ROW(5:5),IF(D11=D10,ROW(6:6),IF(D11>1,ROW(7:7),"-"))))) -> 7 | DV11: 7 | DX11: 1 | EB11: 5 | ED11: 7 | EE11: (7) | EF11: (-)
A12: 8(8) | B12: Sandra Widlund | C12: Växjö Hsk | D12: 177.2608696 | F12: 23 | G12: 4077 | I12: 0 | J12: 0 | K12: 0 | L12: 0 | M12: 0 | N12: 238 | O12: 192 | P12: 186 | Q12: 193 | R12: 206 | S12: 170 | T12: 113 | U12: 92 | V12: 137 | W12: 207 | X12: 171 | Y12: 169 | Z12: 153 | AA12: 172 | AB12: 120 | AC12: 241 | AD12: 171 | AE12: 176 | AF12: 131 | AG12: 185 | AH12: 173 | AI12: 240 | AJ12: 241 | DT12: 8 | DU12: 8 | DV12: 8 | DX12: 1 | EB12: 6 | ED12: 8 | EE12: (8) | EF12: (-)
A13: 9(9) | B13: Leo Andersson | C13: Carlskrona | D13: 175.6875 | F13: 16 | G13: 2811 | I13: 0 | J13: 0 | K13: 0 | L13: 0 | M13: 0 | N13: 201 | O13: 168 | P13: 139 | Q13: 204 | R13: 217 | S13: 189 | T13: 152 | U13: 175 | V13: 137 | W13: 220 | X13: 135 | Y13: 160 | Z13: 173 | AA13: 202 | AB13: 151 | AC13: 188 | DT13: 9 | DU13: 9 | DV13: 9 | DX13: 1 | EB13: 8 | ED13: 9 | EE13: (9) | EF13: (-)
A14: 10(10) | B14: Matz Karlsson | C14: Korpen Åseda | D14: 169.6774194 | F14: 31 | G14: 5260 | I14: 0 | J14: 0 | K14: 0 | L14: 0 | M14: 0 | N14: 191 | O14: 198 | P14: 289 | Q14: 234 | R14: 213 | S14: 250 | T14: 170 | U14: 206 | V14: 96 | W14: 171 | X14: 130 | Y14: 144 | Z14: 104 | AA14: 105 | AB14: 91 | AC14: 118 | AD14: 135 | AE14: 142 | AF14: 161 | AG14: 121 | AH14: 152 | AI14: 211 | AJ14: 149 | AK14: 246 | AL14: 193 | AM14: 180 | AN14: 226 | AO14: 255 | AS14: 144 | AT14: 103 | AU14: 132 | DT14: 10 | DU14: 10 | DV14: 10 | DX14: 1 | EB14: 12 | ED14: 10 | EE14: (10) | EF14: (-)
A15: 11(11) | B15: Armin Sisic | C15: Värends Hsk | D15: 167.7777778 | F15: 18 | G15: 3020 | I15: 0 | J15: 0 | K15: 0 | L15: 0 | M15: 0 | N15: 202 | O15: 225 | P15: 202 | Q15: 142 | R15: 175 | S15: 183 | T15: 169 | U15: 193 | V15: 203 | W15: 159 | X15: 132 | Y15: 151 | Z15: 147 | AA15: 149 | AB15: 116 | AC15: 125 | AD15: 195 | AE15: 152 | DT15: 11 | DU15: 11 | DV15: 11 | DX15: 1 | EB15: 15 | ED15: 11 | EE15: (11) | EF15: (-)
A16: 12(12) | B16: Lisbeth Nygaard-Karlsson | C16: Tingsryd | D16: 166.9333333 | F16: 30 | G16: 5008 | I16: 0 | J16: 0 | K16: 0 | L16: 0 | M16: 0 | N16: 176 | O16: 147 | P16: 214 | Q16: 136 | R16: 181 | S16: 149 | T16: 172 | U16: 216 | V16: 177 | W16: 153 | X16: 167 | Y16: 186 | Z16: 120 | AA16: 133 | AB16: 156 | AC16: 107 | AD16: 162 | AE16: 154 | AF16: 100 | AG16: 201 | AH16: 183 | AI16: 134 | AJ16: 205 | AK16: 214 | AL16: 198 | AM16: 106 | AN16: 122 | AO16: 192 | AP16: 214 | AQ16: 233 | DT16: 12 | DU16: 12 | DV16: 12 | DX16: 1 | EB16: 21 | ED16: 12 | EE16: (12) | EF16: (-)
A17: 13(13) | B17: Olle Ottosson | C17: Dynapac | D17: 162.1290323 | F17: 31 | G17: 5026 | I17: 0 | J17: 0 | K17: 0 | L17: 0 | M17: 0 | N17: 190 | O17: 178 | P17: 104 | Q17: 165 | R17: 139 | S17: 142 | T17: 152 | U17: 203 | V17: 164 | W17: 115 | X17: 292 | Y17: 225 | Z17: 131 | AA17: 212 | AB17: 154 | AC17: 152 | AD17: 128 | AE17: 115 | AF17: 139 | AG17: 143 | AH17: 163 | AI17: 162 | AJ17: 173 | AK17: 221 | AL17: 116 | AM17: 161 | AN17: 154 | AO17: 141 | AP17: 200 | AQ17: 153 | AR17: 139 | DT17: 13 | DU17: 13 | DV17: 13 | DX17: 1 | EB17: 3 | ED17: 13 | EE17: (13) | EF17: (-)
A18: 14(14) | B18: Gert Karlsson | C18: Korpen Åseda | D18: 158.8 | F18: 25 | G18: 3970 | I18: 0 | J18: 0 | K18: 0 | L18: 0 | M18: 0 | N18: 162 | O18: 217 | P18: 154 | Q18: 150 | R18: 146 | S18: 137 | T18: 179 | U18: 219 | V18: 182 | W18: 104 | X18: 119 | Y18: 138 | Z18: 213 | AA18: 172 | AB18: 156 | AC18: 147 | AD18: 141 | AE18: 109 | AF18: 188 | AG18: 134 | AH18: 185 | AI18: 143 | AL18: 186 | AM18: 165 | AN18: 124 | DT18: 14 | DU18: 14 | DV18: 14 | DX18: 1 | EB18: 7 | ED18: 14 | EE18: (14) | EF18: (-)
A19: 15(15) | B19: Mattias Gneupel | C19: Sibbamåla | D19: 158.375 | F19: 32 | G19: 5068 | I19: 0 | J19: 0 | K19: 0 | L19: 0 | M19: 0 | N19: 187 | O19: 156 | P19: 134 | Q19: 178 | R19: 204 | S19: 166 | T19: 124 | U19: 84 | V19: 174 | W19: 145 | X19: 154 | Y19: 120 | Z19: 178 | AA19: 159 | AB19: 172 | AC19: 173 | AD19: 132 | AE19: 168 | AF19: 185 | AG19: 202 | AH19: 152 | AI19: 156 | AJ19: 127 | AK19: 122 | AL19: 216 | AM19: 133 | AN19: 140 | AO19: 188 | AP19: 143 | AQ19: 176 | AR19: 175 | AS19: 145 | DT19: 15 | DU19: 15 | DV19: 15 | DX19: 1 | EB19: 17 | ED19: 15 | EE19: (15) | EF19: (-)
A20: 16(16) | B20: Lennart Karlsson | C20: Tingsryd | D20: 152.53125 | F20: 32 | G20: 4881 | I20: 0 | J20: 0 | K20: 0 | L20: 0 | M20: 0 | N20: 186 | O20: 179 | P20: 189 | Q20: 219 | R20: 98 | S20: 210 | T20: 142 | U20: 151 | V20: 137 | W20: 138 | X20: 146 | Y20: 159 | Z20: 236 | AA20: 110 | AB20: 145 | AC20: 135 | AD20: 135 | AE20: 149 | AF20: 188 | AG20: 174 | AH20: 184 | AI20: 166 | AJ20: 131 | AK20: 130 | AL20: 146 | AM20: 102 | AN20: 102 | AO20: 104 | AP20: 172 | AQ20: 120 | AR20: 130 | AS20: 168 | DT20: 16 | DU20: 16 | DV20: 16 | DX20: 1 | EB20: 18 | ED20: 16 | EE20: (16) | EF20: (-)
A21: 17(17) | B21: Jom Jem | C21: Växjö Hsk | D21: 149.9 | F21: 20 | G21: 2998 | I21: 0 | J21: 0 | K21: 0 | L21: 0 | M21: 0 | N21: 189 | O21: 191 | P21: 159 | Q21: 149 | R21: 106 | S21: 145 | T21: 242 | U21: 210 | V21: 127 | W21: 185 | X21: 135 | Y21: 177 | Z21: 118 | AA21: 83 | AB21: 148 | AC21: 92 | AD21: 175 | AE21: 159 | AF21: 116 | AG21: 92 | DT21: 17 | DU21: 17 | DV21: 17 | DX21: 1 | EB21: 24 | ED21: 17 | EE21: (17) | EF21: (-)
A22: 18(18) | B22: Mathias Karlberg | C22: Jämjö Hsk | D22: 145.375 | F22: 24 | G22: 3489 | I22: 0 | J22: 0 | K22: 0 | L22: 0 | M22: 0 | N22: 145 | O22: 123 | P22: 150 | Q22: 162 | R22: 155 | S22: 111 | T22: 132 | U22: 192 | V22: 124 | W22: 213 | X22: 130 | Y22: 77 | Z22: 116 | AA22: 164 | AB22: 153 | AC22: 82 | AD22: 171 | AE22: 206 | AF22: 236 | AG22: 131 | AH22: 115 | AI22: 141 | AJ22: 181 | AK22: 79 | DT22: 18 | DU22: 18 | DV22: 18 | DX22: 1 | EB22: 9 | ED22: 18 | EE22: (18) | EF22: (-)
A23: 19(19) | B23: Anita Fabbeke | C23: Dynapac | D23: 143.1428571 | F23: 21 | G23: 3006 | I23: 0 | J23: 0 | K23: 0 | L23: 0 | M23: 0 | N23: 181 | O23: 119 | P23: 155 | Q23: 160 | R23: 117 | S23: 123 | T23: 124 | U23: 102 | V23: 151 | W23: 179 | X23: 97 | Y23: 163 | Z23: 136 | AA23: 146 | AB23: 146 | AC23: 159 | AD23: 153 | AE23: 189 | AF23: 128 | AG23: 144 | AH23: 134 | DT23: 19 | DU23: 19 | DV23: 19 | DX23: 1 | EB23: 10 | ED23: 19 | EE23: (19) | EF23: (-)
A24: 20(20) | B24: Yamolada Damnoegam | C24: Växjö Hsk | D24: 141.75 | F24: 20 | G24: 2835 | I24: 0 | J24: 0 | K24: 0 | L24: 0 | M24: 0 | N24: 164 | O24: 85 | P24: 125 | Q24: 131 | R24: 162 | S24: 86 | T24: 156 | U24: 146 | V24: 124 | W24: 124 | X24: 106 | Y24: 160 | Z24: 144 | AA24: 179 | AB24: 189 | AC24: 129 | AD24: 125 | AE24: 148 | AF24: 179 | AG24: 173 | DT24: 20 | DU24: 20 | DV24: 20 | DX24: 1 | EB24: 22 | ED24: 20 | EE24: (20) | EF24: (-)
A25: 21(21) | B25: Magnus Israelsson | C25: Sibbamåla | D25: 141.4615385 | F25: 26 | G25: 3678 | I25: 0 | J25: 0 | K25: 0 | L25: 0 | M25: 0 | N25: 139 | O25: 111 | P25: 115 | Q25: 90 | R25: 54 | S25: 138 | T25: 202 | U25: 162 | V25: 137 | W25: 128 | X25: 115 | Y25: 118 | Z25: 239 | AA25: 187 | AB25: 158 | AC25: 176 | AD25: 85 | AE25: 90 | AF25: 139 | AG25: 76 | AH25: 150 | AI25: 141 | AJ25: 145 | AK25: 165 | AL25: 219 | AM25: 199 | DT25: 21 | DU25: 21 | DV25: 21 | DX25: 1 | EB25: 14 | ED25: 21 | EE25: (21) | EF25: (-)
A26: 22(22) | B26: Björn Landberg | C26: Vaxholm Hsk | D26: 139.3428571 | F26: 35 | G26: 4877 | I26: 0 | J26: 0 | K26: 0 | L26: 0 | M26: 0 | N26: 154 | O26: 151 | P26: 178 | Q26: 125 | R26: 155 | S26: 112 | T26: 113 | U26: 133 | V26: 182 | W26: 120 | X26: 145 | Y26: 129 | Z26: 158 | AA26: 146 | AB26: 105 | AC26: 189 | AD26: 186 | AE26: 106 | AF26: 172 | AG26: 130 | AH26: 154 | AI26: 112 | AJ26: 186 | AK26: 148 | AL26: 152 | AM26: 101 | AN26: 111 | AO26: 77 | AP26: 97 | AQ26: 145 | AR26: 135 | AS26: 154 | AT26: 147 | AU26: 134 | AV26: 135 | DT26: 22 | DU26: 22 | DV26: 22 | DX26: 1 | EB26: 13 | ED26: 22 | EE26: (22) | EF26: (-)
A27: 23(23) | B27: Dan Madayang | C27: Korpen Åseda | D27: 136.8 | F27: 5 | G27: 684 | I27: 0 | J27: 0 | K27: 0 | L27: 0 | M27: 0 | N27: 161 | O27: 96 | P27: 145 | Q27: 107 | R27: 175 | DT27: 23 | DU27: 23 | DV27: 23 | DX27: 1 | EB27: 19 | ED27: 23 | EE27: (23) | EF27: (-)
A28: 24(24) | B28: Peter Olsson | C28: Dynapac | D28: 135.3928571 | F28: 28 | G28: 3791 | I28: 0 | J28: 0 | K28: 0 | L28: 0 | M28: 0 | N28: 193 | O28: 186 | P28: 205 | Q28: 186 | R28: 216 | S28: 214 | T28: 133 | U28: 162 | V28: 151 | W28: 126 | X28: 139 | Y28: 164 | Z28: 110 | AA28: 106 | AB28: 114 | AC28: 47 | AD28: 97 | AE28: 111 | AF28: 57 | AG28: 126 | AH28: 96 | AI28: 129 | AJ28: 53 | AK28: 108 | AL28: 124 | AM28: 180 | AN28: 155 | AO28: 103 | DT28: 24 | DU28: =IF(AND(D28=D27,D28=D26,D28=D25,D28=D24),ROW(20:20),IF(AND(D28=D27,D28=D26,D28=D25),ROW(21:21),IF(AND(D28=D27,D28=D26),ROW(22:22),IF(D28=D27,ROW(23:23),IF(D28>1,ROW(24:24),"-"))))) -> 24 | DV28: =IF(DX28=1,ROW(24:24),"-") -> 24 | DX28: 1 | EB28: 28 | ED28: =IF(DX28=1,DU28,IF(DX28="",DU28,"")) -> 24 | EE28: =IF(DX28=1,"("&DT28&")","("&DV28&")") -> (24) | EF28: (-)
A29: 25(25) | B29: Janne Johansson | C29: Tingsryd | D29: 134.6153846 | F29: 26 | G29: 3500 | I29: 0 | J29: 0 | K29: 0 | L29: 0 | M29: 0 | N29: 180 | O29: 93 | P29: 189 | Q29: 83 | R29: 152 | S29: 97 | T29: 127 | U29: 112 | V29: 171 | W29: 67 | X29: 130 | Y29: 125 | Z29: 128 | AA29: 134 | AB29: 128 | AC29: 175 | AD29: 198 | AE29: 118 | AF29: 172 | AG29: 159 | AH29: 139 | AI29: 111 | AJ29: 112 | AK29: 156 | AL29: 121 | AM29: 123 | DT29: 25 | DU29: =IF(AND(D29=D28,D29=D27,D29=D26,D29=D25),ROW(21:21),IF(AND(D29=D28,D29=D27,D29=D26),ROW(22:22),IF(AND(D29=D28,D29=D27),ROW(23:23),IF(D29=D28,ROW(24:24),IF(D29>1,ROW(25:25),"-"))))) -> 25 | DV29: =IF(DX29=1,ROW(25:25),"-") -> 25 | DX29: 1 | EB29: 23 | ED29: =IF(DX29=1,DU29,IF(DX29="",DU29,"")) -> 25 | EE29: =IF(DX29=1,"("&DT29&")","("&DV29&")") -> (25) | EF29: (-)
A30: 26(26) | B30: Göran Olofsson | C30: Korpen Nybro | D30: 133.8965517 | F30: 29 | G30: 3883 | I30: 0 | J30: 0 | K30: 0 | L30: 0 | M30: 0 | N30: 114 | O30: 129 | P30: 162 | Q30: 149 | R30: 159 | S30: 155 | T30: 131 | U30: 98 | V30: 130 | W30: 139 | X30: 103 | Y30: 86 | Z30: 160 | AA30: 141 | AB30: 172 | AC30: 217 | AD30: 105 | AE30: 141 | AF30: 109 | AG30: 152 | AH30: 132 | AI30: 160 | AJ30: 124 | AK30: 130 | AL30: 99 | AM30: 148 | AN30: 96 | AO30: 72 | AP30: 170 | DT30: 26 | DU30: =IF(AND(D30=D29,D30=D28,D30=D27,D30=D26),ROW(22:22),IF(AND(D30=D29,D30=D28,D30=D27),ROW(23:23),IF(AND(D30=D29,D30=D28),ROW(24:24),IF(D30=D29,ROW(25:25),IF(D30>1,ROW(26:26),"-"))))) -> 26 | DV30: =IF(DX30=1,ROW(26:26),"-") -> 26 | DX30: 1 | EB30: 25 | ED30: =IF(DX30=1,DU30,IF(DX30="",DU30,"")) -> 26 | EE30: =IF(DX30=1,"("&DT30&")","("&DV30&")") -> (26) | EF30: (-)
A31: 27(27) | B31: Sune Olsson | C31: Korpen Nybro | D31: 132.875 | F31: 16 | G31: 2126 | I31: 0 | J31: 0 | K31: 0 | L31: 0 | M31: 0 | N31: 143 | O31: 99 | P31: 86 | Q31: 107 | R31: 167 | S31: 126 | T31: 169 | U31: 149 | V31: 130 | W31: 120 | X31: 173 | Y31: 129 | Z31: 146 | AA31: 122 | AB31: 113 | AC31: 147 | DT31: 27 | DU31: =IF(AND(D31=D30,D31=D29,D31=D28,D31=D27),ROW(23:23),IF(AND(D31=D30,D31=D29,D31=D28),ROW(24:24),IF(AND(D31=D30,D31=D29),ROW(25:25),IF(D31=D30,ROW(26:26),IF(D31>1,ROW(27:27),"-"))))) -> 27 | DV31: =IF(DX31=1,ROW(27:27),"-") -> 27 | DX31: 1 | EB31: 26 | ED31: =IF(DX31=1,DU31,IF(DX31="",DU31,"")) -> 27 | EE31: =IF(DX31=1,"("&DT31&")","("&DV31&")") -> (27) | EF31: (-)
A32: 28(28) | B32: Ewa Malmqvist | C32: Jämjö Hsk | D32: 128.59375 | F32: 32 | G32: 4115 | I32: 0 | J32: 0 | K32: 0 | L32: 0 | M32: 0 | N32: 127 | O32: 136 | P32: 156 | Q32: 182 | R32: 154 | S32: 188 | T32: 126 | U32: 136 | V32: 154 | W32: 113 | X32: 92 | Y32: 107 | Z32: 112 | AA32: 111 | AB32: 94 | AC32: 134 | AD32: 75 | AE32: 129 | AF32: 146 | AG32: 117 | AH32: 73 | AI32: 121 | AJ32: 112 | AK32: 186 | AL32: 114 | AM32: 156 | AN32: 140 | AO32: 102 | AP32: 143 | AQ32: 122 | AR32: 135 | AS32: 122 | DT32: 28 | DU32: =IF(AND(D32=D31,D32=D30,D32=D29,D32=D28),ROW(24:24),IF(AND(D32=D31,D32=D30,D32=D29),ROW(25:25),IF(AND(D32=D31,D32=D30),ROW(26:26),IF(D32=D31,ROW(27:27),IF(D32>1,ROW(28:28),"-"))))) -> 28 | DV32: =IF(DX32=1,ROW(28:28),"-") -> 28 | DX32: 1 | EB32: 27 | ED32: =IF(DX32=1,DU32,IF(DX32="",DU32,"")) -> 28 | EE32: =IF(DX32=1,"("&DT32&")","("&DV32&")") -> (28) | EF32: (-)
A33: 29(29) | B33: Stefan Olofsson | C33: Korpen Nybro | D33: 128.2083333 | F33: 24 | G33: 3077 | I33: 0 | J33: 0 | K33: 0 | L33: 0 | M33: 0 | N33: 143 | O33: 177 | P33: 136 | Q33: 89 | R33: 124 | S33: 137 | T33: 122 | U33: 106 | V33: 75 | W33: 91 | X33: 60 | Y33: 188 | Z33: 133 | AA33: 120 | AB33: 139 | AC33: 127 | AD33: 147 | AE33: 116 | AF33: 139 | AG33: 122 | AH33: 138 | AI33: 170 | AJ33: 142 | AK33: 136 | DT33: 29 | DU33: 29 | DV33: 29 | DX33: 1 | EB33: 29 | ED33: 29 | EE33: (29) | EF33: (-)
A34: 30(31) | B34: Leif Danielsson | C34: Korpen Nybro | D34: 127.25 | F34: 12 | G34: 1527 | I34: 0 | J34: 0 | K34: 0 | L34: 0 | M34: 0 | N34: 122 | O34: 160 | P34: 137 | Q34: 126 | R34: 54 | S34: 97 | T34: 171 | U34: 172 | V34: 168 | W34: 162 | X34: 77 | Y34: 81 | DT34: 31 | DU34: 30 | DV34: 30 | DX34: 1 | EB34: 30 | ED34: 30 | EE34: (31) | EF34: (-)
A35: 31(30) | B35: Inge Skoglöw | C35: Jämjö Hsk | D35: 125.6666667 | F35: 15 | G35: 1885 | I35: 0 | J35: 0 | K35: 0 | L35: 0 | M35: 0 | N35: 77 | O35: 133 | P35: 123 | Q35: 99 | R35: 76 | S35: 150 | T35: 148 | U35: 186 | V35: 156 | W35: 126 | X35: 169 | Y35: 90 | Z35: 104 | AA35: 143 | AB35: 105 | DT35: 30 | DU35: 31 | DV35: 31 | DX35: 1 | EB35: 31 | ED35: 31 | EE35: (30) | EF35: (-)
A36: 32(32) | B36: Hans Johansson | C36: Tingsryd | D36: 125.6190476 | F36: 21 | G36: 2638 | I36: 0 | J36: 0 | K36: 0 | L36: 0 | M36: 0 | N36: 88 | O36: 115 | P36: 163 | Q36: 108 | R36: 113 | S36: 122 | T36: 110 | U36: 214 | V36: 73 | W36: 165 | X36: 117 | Y36: 152 | Z36: 132 | AA36: 188 | AB36: 85 | AC36: 135 | AD36: 65 | AE36: 136 | AF36: 153 | AG36: 120 | AH36: 84 | DT36: 32 | DU36: 32 | DV36: 32 | DX36: 1 | EB36: 32 | ED36: 32 | EE36: (32) | EF36: (-)
A37: 33(35) | B37: Bengt Andersson | C37: Växjö Hsk | D37: =IF(F37>0.5,(G37/F37),0) -> 124.9615385 | F37: =COUNT(N37:BO37) -> 26 | G37: =SUM(N37:BO37) -> 3249 | I37: =COUNTIF(BQ37:DR37,2) -> 0 | J37: =COUNTIF(BQ37:DR37,-2) -> 0 | K37: =COUNTIF(BQ37:DR37,1) -> 0 | L37: =COUNTIF(BQ37:DR37,-1) -> 0 | M37: =IF(F37>0,(I37+K37)/(F37),0) -> 0 | N37: 108 | O37: 156 | P37: 137 | Q37: 125 | R37: 128 | S37: 114 | T37: 83 | U37: 137 | V37: 154 | W37: 144 | X37: 176 | Y37: 155 | Z37: 111 | AA37: 86 | AB37: 99 | AC37: 103 | AD37: 153 | AE37: 136 | AF37: 68 | AG37: 78 | AH37: 118 | AI37: 127 | AJ37: 135 | AK37: 152 | AL37: 126 | AM37: 140 | DT37: 35 | DU37: 33 | DV37: =IF(DX37=1,ROW(33:33),"-") -> 33 | DX37: 1 | EB37: 33 | ED37: =IF(DX37=1,DU37,IF(DX37="",DU37,"")) -> 33 | EE37: =IF(DX37=1,"("&DT37&")","("&DV37&")") -> (35) | EF37: (-)
A38: 34(36) | B38: Martin Silvén | C38: Vaxholm Hsk | D38: 124.6 | F38: 5 | G38: 623 | I38: 0 | J38: 0 | K38: 0 | L38: 0 | M38: 0 | N38: 131 | O38: 136 | P38: 112 | Q38: 132 | R38: 112 | DT38: 36 | DU38: 34 | DV38: 34 | DX38: 1 | EB38: 34 | ED38: 34 | EE38: (36) | EF38: (-)
A39: 35(34) | B39: Björn Gabrielsson | C39: Vaxholm Hsk | D39: 124.3636364 | F39: 33 | G39: 4104 | I39: 0 | J39: 0 | K39: 0 | L39: 0 | M39: 0 | N39: 68 | O39: 122 | P39: 118 | Q39: 133 | R39: 128 | S39: 99 | T39: 115 | U39: 161 | V39: 175 | W39: 105 | X39: 102 | Y39: 80 | Z39: 134 | AA39: 62 | AB39: 123 | AC39: 160 | AD39: 165 | AE39: 95 | AF39: 174 | AG39: 81 | AH39: 148 | AI39: 122 | AJ39: 148 | AK39: 99 | AL39: 180 | AM39: 136 | AN39: 112 | AO39: 104 | AP39: 144 | AQ39: 157 | AR39: 95 | AS39: 124 | AT39: 135 | DT39: 34 | DU39: 35 | DV39: 35 | DX39: 1 | EB39: 35 | ED39: 35 | EE39: (34) | EF39: (-)
A40: 36(37) | B40: Marianne Karlsson | C40: Jämjö Hsk | D40: 124.09375 | F40: 32 | G40: 3971 | I40: 0 | J40: 0 | K40: 0 | L40: 0 | M40: 0 | N40: 156 | O40: 96 | P40: 119 | Q40: 106 | R40: 88 | S40: 129 | T40: 75 | U40: 147 | V40: 139 | W40: 121 | X40: 130 | Y40: 92 | Z40: 128 | AA40: 114 | AB40: 148 | AC40: 82 | AD40: 122 | AE40: 123 | AF40: 75 | AG40: 106 | AH40: 173 | AI40: 173 | AJ40: 87 | AK40: 106 | AL40: 147 | AM40: 104 | AN40: 155 | AO40: 180 | AP40: 107 | AQ40: 125 | AR40: 162 | AS40: 156 | DT40: 37 | DU40: 36 | DV40: 36 | DX40: 1 | EB40: 36 | ED40: 36 | EE40: (37) | EF40: (-)
A41: 37(38) | B41: Fredrik Lundin | C41: Lanternan | D41: 124 | F41: 4 | G41: 496 | I41: 0 | J41: 0 | K41: 0 | L41: 0 | M41: 0 | N41: 83 | O41: 139 | P41: 131 | Q41: 143 | DT41: 38 | DU41: 37 | DV41: 37 | DX41: 1 | EB41: 37 | ED41: 37 | EE41: (38) | EF41: (-)
A42: 38(33) | B42: Daniel Mårtensson | C42: Jämjö Hsk | D42: 123.3225806 | F42: 31 | G42: 3823 | I42: 0 | J42: 0 | K42: 0 | L42: 0 | M42: 0 | N42: 70 | O42: 204 | P42: 98 | Q42: 107 | R42: 98 | S42: 104 | T42: 153 | U42: 80 | V42: 80 | W42: 142 | X42: 94 | Y42: 119 | Z42: 115 | AA42: 166 | AB42: 103 | AC42: 94 | AD42: 108 | AE42: 81 | AF42: 108 | AG42: 126 | AH42: 176 | AI42: 171 | AJ42: 128 | AK42: 145 | AL42: 124 | AM42: 176 | AN42: 119 | AO42: 214 | AP42: 123 | AQ42: 114 | AR42: 83 | DT42: 33 | DU42: 38 | DV42: 38 | DX42: 1 | EB42: 38 | ED42: 38 | EE42: (33) | EF42: (-)
A43: 39(39) | B43: Dan Hallstan | C43: Växjö Hsk | D43: 121.9666667 | F43: 30 | G43: 3659 | I43: 0 | J43: 0 | K43: 0 | L43: 0 | M43: 0 | N43: 138 | O43: 95 | P43: 110 | Q43: 102 | R43: 62 | S43: 98 | T43: 92 | U43: 118 | V43: 90 | W43: 134 | X43: 110 | Y43: 157 | Z43: 173 | AA43: 86 | AB43: 158 | AC43: 103 | AD43: 115 | AE43: 205 | AF43: 139 | AG43: 158 | AH43: 96 | AI43: 94 | AJ43: 125 | AK43: 112 | AL43: 86 | AM43: 170 | AN43: 91 | AO43: 147 | AP43: 149 | AQ43: 146 | DT43: 39 | DU43: =IF(AND(D43=D42,D43=D41,D43=D40,D43=D39),ROW(35:35),IF(AND(D43=D42,D43=D41,D43=D40),ROW(36:36),IF(AND(D43=D42,D43=D41),ROW(37:37),IF(D43=D42,ROW(38:38),IF(D43>1,ROW(39:39),"-"))))) -> 39 | DV43: 39 | DX43: 1 | EB43: 39 | ED43: 39 | EE43: (39) | EF43: (-)
A44: 40(42) | B44: Göran Mårtensson | C44: Jämjö Hsk | D44: 121.4666667 | F44: 15 | G44: 1822 | I44: 0 | J44: 0 | K44: 0 | L44: 0 | M44: 0 | N44: 117 | O44: 93 | P44: 107 | Q44: 118 | R44: 141 | S44: 141 | T44: 120 | U44: 75 | V44: 151 | W44: 134 | X44: 130 | Y44: 118 | Z44: 125 | AA44: 111 | AB44: 141 | DT44: 42 | DU44: 40 | DV44: 40 | DX44: 1 | EB44: 40 | ED44: 40 | EE44: (42) | EF44: (-)
A45: 41(40) | B45: Gilbert Pettersson | C45: Lanternan | D45: 121.3571429 | F45: 14 | G45: 1699 | I45: 0 | J45: 0 | K45: 0 | L45: 0 | M45: 0 | N45: 108 | O45: 103 | P45: 174 | Q45: 123 | R45: 153 | S45: 132 | T45: 105 | U45: 131 | V45: 87 | W45: 167 | X45: 117 | Y45: 65 | Z45: 110 | AA45: 124 | DT45: 40 | DU45: 41 | DV45: 41 | DX45: 1 | EB45: 41 | ED45: 41 | EE45: (40) | EF45: (-)
A46: 42(41) | B46: Carina Gneupel | C46: Sibbamåla | D46: 121.2 | F46: 15 | G46: 1818 | I46: 0 | J46: 0 | K46: 0 | L46: 0 | M46: 0 | N46: 106 | O46: 197 | P46: 91 | Q46: 85 | R46: 135 | S46: 115 | T46: 132 | U46: 69 | V46: 139 | W46: 99 | X46: 93 | Y46: 95 | Z46: 204 | AA46: 115 | AB46: 143 | DT46: 41 | DU46: 42 | DV46: 42 | DX46: 1 | EB46: 42 | ED46: 42 | EE46: (41) | EF46: (-)
A47: 43(43) | B47: Christer Lööv | C47: Värends Hsk | D47: 120.15 | F47: 20 | G47: 2403 | I47: 0 | J47: 0 | K47: 0 | L47: 0 | M47: 0 | N47: 94 | O47: 112 | P47: 153 | Q47: 131 | R47: 151 | S47: 136 | T47: 91 | U47: 145 | V47: 95 | W47: 95 | X47: 90 | Y47: 129 | Z47: 155 | AA47: 109 | AB47: 144 | AC47: 136 | AD47: 98 | AE47: 113 | AF47: 108 | AG47: 118 | DT47: 43 | DU47: 43 | DV47: 43 | DX47: 1 | EB47: 43 | ED47: 43 | EE47: (43) | EF47: (-)
A48: 44(44) | B48: Berndt Petersson | C48: Lanternan | D48: 120 | F48: 22 | G48: 2640 | I48: 0 | J48: 0 | K48: 0 | L48: 0 | M48: 0 | N48: 137 | O48: 151 | P48: 99 | Q48: 87 | R48: 137 | S48: 137 | T48: 124 | U48: 118 | V48: 119 | W48: 142 | X48: 126 | Y48: 127 | Z48: 101 | AA48: 125 | AB48: 117 | AC48: 96 | AD48: 105 | AE48: 142 | AF48: 106 | AG48: 138 | AH48: 117 | AI48: 89 | DT48: 44 | DU48: 44 | DV48: 44 | DX48: 1 | EB48: 52 | ED48: 44 | EE48: (44) | EF48: (-)
A49: 45(45) | B49: Lasse Brincner | C49: Värends Hsk | D49: 119.6521739 | F49: 23 | G49: 2752 | I49: 0 | J49: 0 | K49: 0 | L49: 0 | M49: 0 | N49: 145 | O49: 164 | P49: 101 | Q49: 172 | R49: 143 | S49: 104 | T49: 124 | U49: 152 | V49: 83 | W49: 112 | X49: 139 | Y49: 171 | Z49: 114 | AA49: 107 | AB49: 99 | AC49: 93 | AD49: 78 | AE49: 139 | AF49: 100 | AG49: 82 | AH49: 88 | AI49: 135 | AJ49: 107 | DT49: 45 | DU49: 45 | DV49: 45 | DX49: 1 | EB49: 44 | ED49: 45 | EE49: (45) | EF49: (-)
A50: 46(46) | B50: Nathalie Sundahl | C50: Carlskrona | D50: 119.1111111 | F50: 9 | G50: 1072 | I50: 0 | J50: 0 | K50: 0 | L50: 0 | M50: 0 | N50: 90 | O50: 144 | P50: 172 | Q50: 97 | R50: 96 | S50: 76 | T50: 152 | U50: 93 | V50: 152 | DT50: 46 | DU50: 46 | DV50: 46 | DX50: 1 | EB50: 45 | ED50: 46 | EE50: (46) | EF50: (-)
A51: 47(47) | B51: Christian Balsiger | C51: Värends Hsk | D51: 118.7142857 | F51: 28 | G51: 3324 | I51: 0 | J51: 0 | K51: 0 | L51: 0 | M51: 0 | N51: 82 | O51: 102 | P51: 102 | Q51: 159 | R51: 162 | S51: 79 | T51: 90 | U51: 109 | V51: 105 | W51: 114 | X51: 193 | Y51: 118 | Z51: 75 | AA51: 116 | AB51: 79 | AC51: 111 | AD51: 86 | AE51: 155 | AF51: 98 | AG51: 119 | AH51: 69 | AI51: 139 | AJ51: 114 | AK51: 196 | AL51: 154 | AM51: 149 | AN51: 112 | AO51: 137 | DT51: 47 | DU51: 47 | DV51: 47 | DX51: 1 | EB51: 46 | ED51: 47 | EE51: (47) | EF51: (-)
A52: 48(48) | B52: Ingegerd Pettersson | C52: Lanternan | D52: 118.2 | F52: 30 | G52: 3546 | I52: 0 | J52: 0 | K52: 0 | L52: 0 | M52: 0 | N52: 93 | O52: 119 | P52: 130 | Q52: 127 | R52: 120 | S52: 108 | T52: 125 | U52: 111 | V52: 81 | W52: 184 | X52: 99 | Y52: 125 | Z52: 140 | AA52: 89 | AB52: 193 | AC52: 110 | AD52: 121 | AE52: 113 | AF52: 131 | AG52: 76 | AH52: 98 | AI52: 40 | AJ52: 129 | AK52: 121 | AL52: 121 | AM52: 140 | AN52: 146 | AO52: 112 | AP52: 165 | AQ52: 79 | DT52: 48 | DU52: 48 | DV52: 48 | DX52: 1 | EB52: 47 | ED52: 48 | EE52: (48) | EF52: (-)
A53: 49(49) | B53: Emil Rehn | C53: Korpen Åseda | D53: 118.0909091 | F53: 11 | G53: 1299 | I53: 0 | J53: 0 | K53: 0 | L53: 0 | M53: 0 | N53: 119 | O53: 97 | P53: 180 | Q53: 155 | R53: 77 | S53: 85 | T53: 147 | U53: 121 | V53: 104 | W53: 70 | X53: 144 | DT53: 49 | DU53: 49 | DV53: 49 | DX53: 1 | EB53: 48 | ED53: 49 | EE53: (49) | EF53: (-)
A54: 50(50) | B54: Thomas Diedrichs | C54: Vaxholm Hsk | D54: 118 | F54: 5 | G54: 590 | I54: 0 | J54: 0 | K54: 0 | L54: 0 | M54: 0 | N54: 112 | O54: 127 | P54: 136 | Q54: 107 | R54: 108 | DT54: 50 | DU54: 50 | DV54: 50 | DX54: 1 | EB54: 49 | ED54: 50 | EE54: (50) | EF54: (-)
A55: 50(50) | B55: Christoffer Cederholm | C55: Tingsryd | D55: 118 | F55: 12 | G55: 1416 | I55: 0 | J55: 0 | K55: 0 | L55: 0 | M55: 0 | N55: 137 | O55: 115 | P55: 170 | Q55: 95 | R55: 87 | S55: 69 | T55: 94 | U55: 74 | V55: 140 | W55: 142 | X55: 119 | Y55: 174 | DT55: 50 | DU55: 50 | DV55: 51 | DX55: 1 | EB55: 50 | ED55: 50 | EE55: (50) | EF55: (-)
A56: 52(52) | B56: Maire Johansson | C56: Växjö Hsk | D56: 116.4 | F56: 20 | G56: 2328 | I56: 0 | J56: 0 | K56: 0 | L56: 0 | M56: 0 | N56: 104 | O56: 111 | P56: 108 | Q56: 209 | R56: 158 | S56: 113 | T56: 103 | U56: 154 | V56: 93 | W56: 80 | X56: 115 | Y56: 104 | Z56: 148 | AA56: 112 | AB56: 120 | AC56: 88 | AD56: 85 | AE56: 100 | AF56: 122 | AG56: 101 | DT56: 52 | DU56: 52 | DV56: 52 | DX56: 1 | EB56: 51 | ED56: 52 | EE56: (52) | EF56: (-)
A57: 53(53) | B57: Maj-Britt Jarl | C57: Växjö Hsk | D57: 115.3333333 | F57: 12 | G57: 1384 | I57: 0 | J57: 0 | K57: 0 | L57: 0 | M57: 0 | N57: 164 | O57: 149 | P57: 92 | Q57: 79 | R57: 150 | S57: 81 | T57: 79 | U57: 125 | V57: 133 | W57: 93 | X57: 124 | Y57: 115 | DT57: 53 | DU57: 53 | DV57: 53 | DX57: 1 | EB57: 53 | ED57: 53 | EE57: (53) | EF57: (-)
A58: 54(54) | B58: Roy Dahlén | C58: Dynapac | D58: 115.25 | F58: 16 | G58: 1844 | I58: 0 | J58: 0 | K58: 0 | L58: 0 | M58: 0 | N58: 119 | O58: 137 | P58: 107 | Q58: 113 | R58: 111 | S58: 69 | T58: 178 | U58: 86 | V58: 110 | W58: 86 | X58: 104 | Y58: 122 | Z58: 191 | AA58: 140 | AB58: 93 | AC58: 78 | DT58: 54 | DU58: 54 | DV58: 54 | DX58: 1 | EB58: 109 | ED58: 54 | EE58: (54) | EF58: (-)
A59: 55(55) | B59: Bengt Fabbeke | C59: Dynapac | D59: 112.7272727 | F59: 11 | G59: 1240 | I59: 0 | J59: 0 | K59: 0 | L59: 0 | M59: 0 | N59: 206 | O59: 108 | P59: 110 | Q59: 91 | R59: 110 | S59: 120 | T59: 123 | U59: 96 | V59: 122 | W59: 86 | X59: 68 | DT59: 55 | DU59: 55 | DV59: 55 | DX59: 1 | EB59: 54 | ED59: 55 | EE59: (55) | EF59: (-)
A60: 56(56) | B60: Björn Hansson | C60: Vaxholm Hsk | D60: 112.5 | F60: 4 | G60: 450 | I60: 0 | J60: 0 | K60: 0 | L60: 0 | M60: 0 | N60: 98 | O60: 88 | P60: 115 | Q60: 149 | DT60: 56 | DU60: 56 | DV60: 56 | DX60: 1 | EB60: 55 | ED60: 56 | EE60: (56) | EF60: (-)
A61: 57(57) | B61: Jan Petersson | C61: Lanternan | D61: 112.3571429 | F61: 28 | G61: 3146 | I61: 0 | J61: 0 | K61: 0 | L61: 0 | M61: 0 | N61: 50 | O61: 166 | P61: 102 | Q61: 111 | R61: 83 | S61: 159 | T61: 116 | U61: 90 | V61: 115 | W61: 85 | X61: 50 | Y61: 96 | Z61: 133 | AA61: 40 | AB61: 113 | AC61: 105 | AD61: 89 | AE61: 159 | AF61: 116 | AG61: 113 | AH61: 126 | AI61: 116 | AJ61: 117 | AK61: 143 | AL61: 150 | AM61: 173 | AN61: 121 | AO61: 109 | DT61: 57 | DU61: 57 | DV61: 57 | DX61: 1 | EB61: 56 | ED61: 57 | EE61: (57) | EF61: (-)
A62: 58(58) | B62: Pascal Letter | C62: Vaxholm Hsk | D62: 111.4 | F62: 5 | G62: 557 | I62: 0 | J62: 0 | K62: 0 | L62: 0 | M62: 0 | N62: 63 | O62: 139 | P62: 139 | Q62: 128 | R62: 88 | DT62: 58 | DU62: 58 | DV62: 58 | DX62: 1 | EB62: 57 | ED62: 58 | EE62: (58) | EF62: (-)
A63: 59(59) | B63: Bela Bodi | C63: Växjö Hsk | D63: 111.3076923 | F63: 13 | G63: 1447 | I63: 0 | J63: 0 | K63: 0 | L63: 0 | M63: 0 | N63: 85 | O63: 58 | P63: 149 | Q63: 68 | R63: 115 | S63: 81 | T63: 105 | U63: 122 | V63: 131 | W63: 102 | X63: 134 | Y63: 171 | Z63: 126 | DT63: 59 | DU63: 59 | DV63: 59 | DX63: 1 | EB63: 58 | ED63: 59 | EE63: (59) | EF63: (-)
A64: 60(60) | B64: Kjell Åkesson | C64: Lanternan | D64: 109.7647059 | F64: 17 | G64: 1866 | I64: 0 | J64: 0 | K64: 0 | L64: 0 | M64: 0 | N64: 108 | O64: 93 | P64: 62 | Q64: 116 | R64: 120 | S64: 139 | T64: 138 | U64: 98 | V64: 115 | W64: 69 | X64: 104 | Y64: 99 | Z64: 130 | AA64: 100 | AB64: 132 | AC64: 146 | AD64: 97 | DT64: 60 | DU64: 60 | DV64: 60 | DX64: 1 | EB64: 59 | ED64: 60 | EE64: (60) | EF64: (-)
A65: 61(61) | B65: Christer Blomgren | C65: Lanternan | D65: 109.6333333 | F65: 30 | G65: 3289 | I65: 0 | J65: 0 | K65: 0 | L65: 0 | M65: 0 | N65: 142 | O65: 81 | P65: 92 | Q65: 98 | R65: 81 | S65: 114 | T65: 118 | U65: 110 | V65: 89 | W65: 78 | X65: 127 | Y65: 72 | Z65: 116 | AA65: 112 | AB65: 38 | AC65: 93 | AD65: 78 | AE65: 98 | AF65: 110 | AG65: 121 | AH65: 139 | AI65: 128 | AJ65: 138 | AK65: 126 | AL65: 142 | AM65: 133 | AN65: 151 | AO65: 115 | AP65: 143 | AQ65: 106 | DT65: 61 | DU65: 61 | DV65: 61 | DX65: 1 | EB65: 60 | ED65: 61 | EE65: (61) | EF65: (-)
A66: =IF(H66="x",DU66&" ("&EF66&")",DU66&" ("&DT66&")") -> 62 (62) | B66: Bo Petersson | C66: Korpen Nybro | D66: 108.5294118 | F66: 17 | G66: 1845 | I66: 0 | J66: 0 | K66: 0 | L66: 0 | M66: 0 | N66: 149 | O66: 97 | P66: 63 | Q66: 101 | R66: 143 | S66: 83 | T66: 138 | U66: 104 | V66: 108 | W66: 91 | X66: 140 | Y66: 147 | Z66: 165 | AA66: 108 | AB66: 47 | AC66: 57 | AD66: 104 | DT66: 62 | DU66: 62 | DV66: 62 | DX66: 1 | EB66: 61 | ED66: 62 | EE66: (62) | EF66: (-)
A67: 63 (63) | B67: Marcus Karlsson | C67: Jämjö Hsk | D67: 107.9666667 | F67: 30 | G67: 3239 | I67: 0 | J67: 0 | K67: 0 | L67: 0 | M67: 0 | N67: 127 | O67: 98 | P67: 113 | Q67: 87 | R67: 108 | S67: 140 | T67: 148 | U67: 146 | V67: 78 | W67: 103 | X67: 97 | Y67: 120 | Z67: 130 | AA67: 102 | AB67: 149 | AC67: 127 | AD67: 60 | AE67: 96 | AF67: 129 | AG67: 76 | AH67: 80 | AI67: 151 | AJ67: 104 | AK67: 109 | AL67: 104 | AM67: 109 | AN67: 83 | AO67: 82 | AP67: 72 | AQ67: 111 | DT67: 63 | DU67: 63 | DV67: 63 | DX67: 1 | EB67: 62 | ED67: 63 | EE67: (63) | EF67: (-)
A68: 64 (64) | B68: Mikael Grönskog | C68: Sibbamåla | D68: 106.7777778 | F68: 9 | G68: 961 | I68: 0 | J68: 0 | K68: 0 | L68: 0 | M68: 0 | N68: 115 | O68: 138 | P68: 138 | Q68: 50 | R68: 94 | S68: 84 | T68: 116 | U68: 90 | V68: 136 | DT68: 64 | DU68: 64 | DV68: 64 | DX68: 1 | EB68: 64 | ED68: 64 | EE68: (64) | EF68: (-)
A69: 65 (65) | B69: Bernt Olsson | C69: Jämjö Hsk | D69: =IF(F69>0.5,(G69/F69),0) -> 106.3928571 | F69: =COUNT(N69:BO69) -> 28 | G69: =SUM(N69:BO69) -> 2979 | I69: =COUNTIF(BQ69:DR69,2) -> 0 | J69: =COUNTIF(BQ69:DR69,-2) -> 0 | K69: =COUNTIF(BQ69:DR69,1) -> 0 | L69: =COUNTIF(BQ69:DR69,-1) -> 0 | M69: =IF(F69>0,(I69+K69)/(F69),0) -> 0 | N69: 161 | O69: 94 | P69: 57 | Q69: 144 | R69: 138 | S69: 167 | T69: 112 | U69: 128 | V69: 90 | W69: 93 | X69: 101 | Y69: 72 | Z69: 129 | AA69: 55 | AB69: 79 | AC69: 105 | AD69: 98 | AE69: 128 | AF69: 121 | AG69: 124 | AH69: 101 | AI69: 86 | AJ69: 69 | AK69: 80 | AL69: 142 | AM69: 91 | AN69: 92 | AO69: 122 | DT69: 65 | DU69: 65 | DV69: =IF(DX69=1,ROW(65:65),"-") -> 65 | DX69: 1 | EB69: 65 | ED69: =IF(DX69=1,DU69,IF(DX69="",DU69,"")) -> 65 | EE69: =IF(DX69=1,"("&DT69&")","("&DV69&")") -> (65) | EF69: (-)
A70: =IF(H70="x",DU70&" ("&EF70&")",DU70&" ("&DT70&")") -> 66 (69) | B70: Kristian Jältsäter | C70: Vaxholm Hsk | D70: 105.4516129 | F70: 31 | G70: 3269 | I70: 0 | J70: 0 | K70: 0 | L70: 0 | M70: 0 | N70: 98 | O70: 36 | P70: 142 | Q70: 128 | R70: 90 | S70: 73 | T70: 135 | U70: 68 | V70: 118 | W70: 117 | X70: 125 | Y70: 96 | Z70: 105 | AA70: 63 | AB70: 62 | AC70: 109 | AD70: 109 | AE70: 97 | AF70: 144 | AG70: 134 | AH70: 85 | AI70: 63 | AJ70: 129 | AK70: 158 | AL70: 102 | AM70: 99 | AN70: 89 | AO70: 142 | AP70: 88 | AQ70: 142 | AR70: 123 | DT70: 69 | DU70: 66 | DV70: 66 | DX70: 1 | EB70: 66 | ED70: 66 | EE70: (69) | EF70: (-)
A71: 67 (66) | B71: Lukas Bern | C71: Dynapac | D71: 105.4 | F71: 5 | G71: 527 | I71: 0 | J71: 0 | K71: 0 | L71: 0 | M71: 0 | N71: 107 | O71: 133 | P71: 90 | Q71: 123 | R71: 74 | DT71: 66 | DU71: 67 | DV71: 67 | DX71: 1 | EB71: 67 | ED71: 67 | EE71: (66) | EF71: (-)
A72: 68 (67) | B72: Sebastian Israelsson | C72: Sibbamåla | D72: 104.4285714 | F72: 14 | G72: 1462 | I72: 0 | J72: 0 | K72: 0 | L72: 0 | M72: 0 | N72: 97 | O72: 113 | P72: 119 | Q72: 97 | R72: 145 | S72: 76 | T72: 85 | U72: 88 | V72: 123 | W72: 135 | X72: 90 | Y72: 98 | Z72: 105 | AA72: 91 | DT72: 67 | DU72: 68 | DV72: 68 | DX72: 1 | EB72: 68 | ED72: 68 | EE72: (67) | EF72: (-)
A73: 69 (68) | B73: Leif Sundahl | C73: Carlskrona | D73: 104.2 | F73: 10 | G73: 1042 | I73: 0 | J73: 0 | K73: 0 | L73: 0 | M73: 0 | N73: 104 | O73: 109 | P73: 139 | Q73: 57 | R73: 99 | S73: 58 | T73: 95 | U73: 119 | V73: 133 | W73: 129 | DT73: 68 | DU73: 69 | DV73: 69 | DX73: 1 | EB73: 69 | ED73: 69 | EE73: (68) | EF73: (-)
A74: 70 (70) | B74: Lisbeth Blihd | C74: Lanternan | D74: 104.1034483 | F74: 29 | G74: 3019 | I74: 0 | J74: 0 | K74: 0 | L74: 0 | M74: 0 | N74: 149 | O74: 48 | P74: 99 | Q74: 88 | R74: 65 | S74: 94 | T74: 89 | U74: 88 | V74: 90 | W74: 79 | X74: 104 | Y74: 84 | Z74: 84 | AA74: 106 | AB74: 170 | AC74: 76 | AD74: 135 | AE74: 127 | AF74: 99 | AG74: 90 | AH74: 106 | AI74: 100 | AJ74: 161 | AK74: 144 | AL74: 58 | AM74: 103 | AN74: 146 | AO74: 82 | AP74: 155 | DT74: 70 | DU74: 70 | DV74: 70 | DX74: 1 | EB74: 70 | ED74: 70 | EE74: (70) | EF74: (-)
A75: 71 (71) | B75: Tomas Lindahl | C75: Korpen Åseda | D75: 102.4375 | F75: 16 | G75: 1639 | I75: 0 | J75: 0 | K75: 0 | L75: 0 | M75: 0 | N75: 121 | O75: 124 | P75: 78 | Q75: 79 | R75: 56 | S75: 142 | T75: 91 | U75: 83 | V75: 85 | W75: 83 | X75: 133 | Y75: 124 | Z75: 100 | AA75: 110 | AB75: 77 | AC75: 153 | DT75: 71 | DU75: =IF(AND(D75=D74,D75=D73,D75=D72,D75=D71),ROW(67:67),IF(AND(D75=D74,D75=D73,D75=D72),ROW(68:68),IF(AND(D75=D74,D75=D73),ROW(69:69),IF(D75=D74,ROW(70:70),IF(D75>1,ROW(71:71),"-"))))) -> 71 | DV75: 71 | DX75: 1 | EB75: 114 | ED75: 71 | EE75: (71) | EF75: (-)
A76: 72 (72) | B76: Martin Antic | C76: Värends Hsk | D76: 101.5714286 | F76: 21 | G76: 2133 | I76: 0 | J76: 0 | K76: 0 | L76: 0 | M76: 0 | N76: 92 | O76: 103 | P76: 100 | Q76: 140 | R76: 148 | S76: 128 | T76: 82 | U76: 78 | V76: 79 | W76: 120 | X76: 103 | Y76: 102 | Z76: 103 | AA76: 75 | AB76: 90 | AC76: 44 | AD76: 108 | AE76: 64 | AF76: 94 | AG76: 135 | AH76: 145 | DT76: 72 | DU76: 72 | DV76: 72 | DX76: 1 | EB76: 71 | ED76: 72 | EE76: (72) | EF76: (-)
A77: 73 (73) | B77: Kerstin Svensson | C77: Växjö Hsk | D77: 100.7272727 | F77: 22 | G77: 2216 | I77: 0 | J77: 0 | K77: 0 | L77: 0 | M77: 0 | N77: 64 | O77: 122 | P77: 112 | Q77: 111 | R77: 78 | S77: 102 | T77: 95 | U77: 101 | V77: 57 | W77: 112 | X77: 133 | Y77: 77 | Z77: 139 | AA77: 75 | AB77: 77 | AC77: 104 | AD77: 70 | AE77: 52 | AF77: 135 | AG77: 181 | AH77: 124 | AI77: 95 | DT77: 73 | DU77: 73 | DV77: 73 | DX77: 1 | EB77: 111 | ED77: 73 | EE77: (73) | EF77: (-)
A78: 74 (74) | B78: Klara Larsson | C78: Värends Hsk | D78: 98.64 | F78: 25 | G78: 2466 | I78: 0 | J78: 0 | K78: 0 | L78: 0 | M78: 0 | N78: 67 | O78: 105 | P78: 115 | Q78: 124 | R78: 106 | S78: 93 | T78: 146 | U78: 119 | V78: 116 | W78: 125 | X78: 81 | Y78: 127 | Z78: 61 | AA78: 85 | AB78: 139 | AC78: 77 | AD78: 65 | AE78: 65 | AF78: 55 | AG78: 142 | AH78: 69 | AI78: 164 | AJ78: 92 | AK78: 63 | AL78: 65 | DT78: 74 | DU78: 74 | DV78: 74 | DX78: 1 | EB78: 72 | ED78: 74 | EE78: (74) | EF78: (-)
A79: 75 (75) | B79: Annika K. Milsten | C79: Tingsryd | D79: 98 | F79: 2 | G79: 196 | I79: 0 | J79: 0 | K79: 0 | L79: 0 | M79: 0 | N79: 118 | O79: 78 | DT79: 75 | DU79: 75 | DV79: 75 | DX79: 1 | EB79: 73 | ED79: 75 | EE79: (75) | EF79: (-)
A80: 76 (76) | B80: Christer Eriksson | C80: Korpen Nybro | D80: 97.42857143 | F80: 7 | G80: 682 | I80: 0 | J80: 0 | K80: 0 | L80: 0 | M80: 0 | N80: 144 | O80: 38 | P80: 133 | Q80: 48 | R80: 79 | S80: 86 | T80: 154 | DT80: 76 | DU80: 76 | DV80: 76 | DX80: 1 | EB80: 74 | ED80: 76 | EE80: (76) | EF80: (-)
A81: 77 (77) | B81: Ronny Lundberg | C81: Lanternan | D81: 96.25 | F81: 8 | G81: 770 | I81: 0 | J81: 0 | K81: 0 | L81: 0 | M81: 0 | N81: 74 | O81: 100 | P81: 116 | Q81: 48 | R81: 112 | S81: 91 | T81: 98 | U81: 131 | DT81: 77 | DU81: 77 | DV81: 77 | DX81: 1 | EB81: 75 | ED81: 77 | EE81: (77) | EF81: (-)
A82: 78 (78) | B82: Lars-Åke Karlsson | C82: Jämjö Hsk | D82: 96.14285714 | F82: 7 | G82: 673 | I82: 0 | J82: 0 | K82: 0 | L82: 0 | M82: 0 | N82: 93 | O82: 105 | P82: 115 | Q82: 45 | R82: 93 | S82: 112 | T82: 110 | DT82: 78 | DU82: 78 | DV82: 78 | DX82: 1 | EB82: 76 | ED82: 78 | EE82: (78) | EF82: (-)
A83: 79 (79) | B83: Kerstin Petersen | C83: Växjö Hsk | D83: 95.28571429 | F83: 7 | G83: 667 | I83: 0 | J83: 0 | K83: 0 | L83: 0 | M83: 0 | N83: 81 | O83: 111 | P83: 112 | Q83: 44 | R83: 115 | S83: 114 | T83: 90 | DT83: 79 | DU83: 79 | DV83: 79 | DX83: 1 | EB83: 77 | ED83: 79 | EE83: (79) | EF83: (-)
A84: 80 (80) | B84: Lars-Erik Ottosson | C84: Lanternan | D84: 94 | F84: 2 | G84: 188 | I84: 0 | J84: 0 | K84: 0 | L84: 0 | M84: 0 | N84: 73 | O84: 115 | DT84: 80 | DU84: 80 | DV84: 80 | DX84: 1 | EB84: 78 | ED84: 80 | EE84: (80) | EF84: (-)
A85: 81 (81) | B85: Laila Johansson | C85: Tingsryd | D85: 91.4 | F85: 5 | G85: 457 | I85: 0 | J85: 0 | K85: 0 | L85: 0 | M85: 0 | N85: 76 | O85: 55 | P85: 112 | Q85: 79 | R85: 135 | DT85: 81 | DU85: 81 | DV85: 81 | DX85: 1 | EB85: 79 | ED85: 81 | EE85: (81) | EF85: (-)
A86: 82 (82) | B86: Julius Gneupel | C86: Sibbamåla | D86: 91.2 | F86: 5 | G86: 456 | I86: 0 | J86: 0 | K86: 0 | L86: 0 | M86: 0 | N86: 117 | O86: 64 | P86: 54 | Q86: 114 | R86: 107 | DT86: 82 | DU86: 82 | DV86: 82 | DX86: 1 | EB86: 80 | ED86: 82 | EE86: (82) | EF86: (-)
A87: 83 (83) | B87: Thomas Dahl | C87: Växjö Hsk | D87: 90.6 | F87: 10 | G87: 906 | I87: 0 | J87: 0 | K87: 0 | L87: 0 | M87: 0 | N87: 46 | O87: 105 | P87: 98 | Q87: 45 | R87: 83 | S87: 95 | T87: 118 | U87: 95 | V87: 92 | W87: 129 | DT87: 83 | DU87: 83 | DV87: 83 | DX87: 1 | EB87: 81 | ED87: 83 | EE87: (83) | EF87: (-)
A88: 84 (84) | B88: Sandra Rydell | C88: Värends Hsk | D88: 90.57142857 | F88: 14 | G88: 1268 | I88: 0 | J88: 0 | K88: 0 | L88: 0 | M88: 0 | N88: 91 | O88: 105 | P88: 76 | Q88: 64 | R88: 75 | S88: 93 | T88: 126 | U88: 107 | V88: 109 | W88: 111 | X88: 81 | Y88: 106 | Z88: 53 | AA88: 71 | DT88: 84 | DU88: 84 | DV88: 84 | DX88: 1 | EB88: 82 | ED88: 84 | EE88: (84) | EF88: (-)
A89: 85 (85) | B89: Anders Karlsson | C89: Värends Hsk | D89: 89.7 | F89: 10 | G89: 897 | I89: 0 | J89: 0 | K89: 0 | L89: 0 | M89: 0 | N89: 91 | O89: 30 | P89: 140 | Q89: 69 | R89: 76 | S89: 111 | T89: 93 | U89: 104 | V89: 71 | W89: 112 | DT89: 85 | DU89: 85 | DV89: 85 | DX89: 1 | EB89: 83 | ED89: 85 | EE89: (85) | EF89: (-)
A90: 86 (86) | B90: Åke Bergkvist | C90: Tingsryd | D90: 88.61290323 | F90: 31 | G90: 2747 | I90: 0 | J90: 0 | K90: 0 | L90: 0 | M90: 0 | N90: 108 | O90: 78 | P90: 85 | Q90: 138 | R90: 91 | S90: 79 | T90: 91 | U90: 127 | V90: 130 | W90: 109 | X90: 85 | Y90: 115 | Z90: 101 | AA90: 61 | AB90: 113 | AC90: 116 | AD90: 82 | AE90: 54 | AF90: 81 | AG90: 44 | AH90: 86 | AI90: 60 | AJ90: 68 | AK90: 74 | AL90: 111 | AM90: 74 | AN90: 68 | AO90: 61 | AP90: 93 | AQ90: 65 | AR90: 99 | DT90: 86 | DU90: 86 | DV90: 86 | DX90: 1 | EB90: 84 | ED90: 86 | EE90: (86) | EF90: (-)
A91: 87 (87) | B91: Peter Edlund | C91: Dynapac | D91: 88.2 | F91: 5 | G91: 441 | I91: 0 | J91: 0 | K91: 0 | L91: 0 | M91: 0 | N91: 69 | O91: 116 | P91: 83 | Q91: 78 | R91: 95 | DT91: 87 | DU91: 87 | DV91: 87 | DX91: 1 | EB91: 85 | ED91: 87 | EE91: (87) | EF91: (-)
A92: 88 (88) | B92: Lars-Rune Johansson | C92: Jämjö Hsk | D92: 87.66666667 | F92: 3 | G92: 263 | I92: 0 | J92: 0 | K92: 0 | L92: 0 | M92: 0 | N92: 98 | O92: 54 | P92: 111 | DT92: 88 | DU92: 88 | DV92: 88 | DX92: 1 | EB92: 86 | ED92: 88 | EE92: (88) | EF92: (-)
A93: 89 (89) | B93: Bertil Westergren | C93: Växjö Hsk | D93: 87.5 | F93: 2 | G93: 175 | I93: 0 | J93: 0 | K93: 0 | L93: 0 | M93: 0 | N93: 89 | O93: 86 | DT93: 89 | DU93: 89 | DV93: 89 | DX93: 1 | EB93: 87 | ED93: 89 | EE93: (89) | EF93: (-)
A94: 90 (90) | B94: Lars Johannesson | C94: Jämjö Hsk | D94: 86.625 | F94: 8 | G94: 693 | I94: 0 | J94: 0 | K94: 0 | L94: 0 | M94: 0 | N94: 59 | O94: 58 | P94: 38 | Q94: 107 | R94: 133 | S94: 97 | T94: 45 | U94: 156 | DT94: 90 | DU94: 90 | DV94: 90 | DX94: 1 | EB94: 88 | ED94: 90 | EE94: (90) | EF94: (-)
A95: 91 (91) | B95: Alf Svensson | C95: Korpen Åseda | D95: 85.6 | F95: 5 | G95: 428 | I95: 0 | J95: 0 | K95: 0 | L95: 0 | M95: 0 | N95: 24 | O95: 88 | P95: 98 | Q95: 126 | R95: 92 | DT95: 91 | DU95: 91 | DV95: 91 | DX95: 1 | EB95: 89 | ED95: 91 | EE95: (91) | EF95: (-)
A96: 92 (92) | B96: Pontus Strömkvist | C96: Vaxholm Hsk | D96: 84 | F96: 2 | G96: 168 | I96: 0 | J96: 0 | K96: 0 | L96: 0 | M96: 0 | N96: 75 | O96: 93 | DT96: 92 | DU96: 92 | DV96: 92 | DX96: 1 | EB96: 112 | ED96: 92 | EE96: (92) | EF96: (-)
A97: 93 (93) | B97: Kjell Rydh | C97: Korpen Nybro | D97: 83 | F97: 18 | G97: 1494 | I97: 0 | J97: 0 | K97: 0 | L97: 0 | M97: 0 | N97: 76 | O97: 99 | P97: 86 | Q97: 62 | R97: 71 | S97: 77 | T97: 73 | U97: 102 | V97: 41 | W97: 95 | X97: 50 | Y97: 121 | Z97: 161 | AA97: 72 | AB97: 68 | AC97: 138 | AD97: 50 | AE97: 52 | DT97: 93 | DU97: 93 | DV97: 93 | DX97: 1 | EB97: 90 | ED97: 93 | EE97: (93) | EF97: (-)
A98: 94 (94) | B98: Ann-Marie Larsson | C98: Tingsryd | D98: 82.19047619 | F98: 21 | G98: 1726 | I98: 0 | J98: 0 | K98: 0 | L98: 0 | M98: 0 | N98: 42 | O98: 79 | P98: 79 | Q98: 65 | R98: 31 | S98: 93 | T98: 111 | U98: 89 | V98: 146 | W98: 116 | X98: 78 | Y98: 70 | Z98: 56 | AA98: 82 | AB98: 103 | AC98: 129 | AD98: 62 | AE98: 53 | AF98: 69 | AG98: 116 | AH98: 57 | DT98: 94 | DU98: 94 | DV98: 94 | DX98: 1 | EB98: 91 | ED98: 94 | EE98: (94) | EF98: (-)
A99: 95 (95) | B99: Ulrika Rydell | C99: Värends Hsk | D99: 81.5 | F99: 14 | G99: 1141 | I99: 0 | J99: 0 | K99: 0 | L99: 0 | M99: 0 | N99: 78 | O99: 109 | P99: 108 | Q99: 102 | R99: 106 | S99: 106 | T99: 57 | U99: 57 | V99: 116 | W99: 31 | X99: 64 | Y99: 96 | Z99: 60 | AA99: 51 | DT99: 95 | DU99: 95 | DV99: 95 | DX99: 1 | EB99: 92 | ED99: 95 | EE99: (95) | EF99: (-)
A100: 96 (96) | B100: Irene Petersson | C100: Lanternan | D100: 79.16666667 | F100: 12 | G100: 950 | I100: 0 | J100: 0 | K100: 0 | L100: 0 | M100: 0 | N100: 85 | O100: 68 | P100: 76 | Q100: 97 | R100: 112 | S100: 86 | T100: 54 | U100: 109 | V100: 42 | W100: 91 | X100: 55 | Y100: 75 | DT100: 96 | DU100: 96 | DV100: 96 | DX100: 1 | EB100: 63 | ED100: 96 | EE100: (96) | EF100: (-)
A101: 97 (97) | B101: Helge Winberg | C101: Vaxholm Hsk | D101: =IF(F101>0.5,(G101/F101),0) -> 77.66666667 | F101: =COUNT(N101:BO101) -> 3 | G101: =SUM(N101:BO101) -> 233 | I101: =COUNTIF(BQ101:DR101,2) -> 0 | J101: =COUNTIF(BQ101:DR101,-2) -> 0 | K101: =COUNTIF(BQ101:DR101,1) -> 0 | L101: =COUNTIF(BQ101:DR101,-1) -> 0 | M101: =IF(F101>0,(I101+K101)/(F101),0) -> 0 | N101: 74 | O101: 98 | P101: 61 | DT101: 97 | DU101: 97 | DV101: =IF(DX101=1,ROW(97:97),"-") -> 97 | DX101: 1 | EB101: 93 | ED101: =IF(DX101=1,DU101,IF(DX101="",DU101,"")) -> 97 | EE101: =IF(DX101=1,"("&DT101&")","("&DV101&")") -> (97) | EF101: (-)
A102: 98 (98) | B102: Andreas Gundersen | C102: Vaxholm Hsk | D102: 76.66666667 | F102: 3 | G102: 230 | I102: 0 | J102: 0 | K102: 0 | L102: 0 | M102: 0 | N102: 74 | O102: 74 | P102: 82 | DT102: 98 | DU102: 98 | DV102: 98 | DX102: 1 | EB102: 94 | ED102: 98 | EE102: (98) | EF102: (-)
A103: 99 (99) | B103: Arne Blidh | C103: Lanternan | D103: 75.35714286 | F103: 28 | G103: 2110 | I103: 0 | J103: 0 | K103: 0 | L103: 0 | M103: 0 | N103: 28 | O103: 61 | P103: 58 | Q103: 75 | R103: 88 | S103: 55 | T103: 86 | U103: 57 | V103: 70 | W103: 106 | X103: 100 | Y103: 56 | Z103: 84 | AA103: 129 | AB103: 72 | AC103: 61 | AD103: 35 | AE103: 27 | AF103: 115 | AG103: 119 | AH103: 78 | AI103: 115 | AJ103: 65 | AK103: 71 | AL103: 17 | AM103: 102 | AN103: 119 | AO103: 61 | DT103: 99 | DU103: 99 | DV103: 99 | DX103: 1 | EB103: 95 | ED103: 99 | EE103: (99) | EF103: (-)
A104: 100 (108) | B104: Victor Bengtsson | C104: Vaxholm Hsk | D104: 74.4 | F104: 5 | G104: 372 | I104: 0 | J104: 0 | K104: 0 | L104: 0 | M104: 0 | N104: 64 | O104: 14 | P104: 96 | Q104: 129 | R104: 69 | DT104: 108 | DU104: 100 | DV104: 100 | DX104: 1 | EB104: 96 | ED104: 100 | EE104: (108) | EF104: (-)
A105: 101 (100) | B105: Eva Åkesson | C105: Lanternan | D105: 70.14285714 | F105: 14 | G105: 982 | I105: 0 | J105: 0 | K105: 0 | L105: 0 | M105: 0 | N105: 51 | O105: 75 | P105: 92 | Q105: 102 | R105: 88 | S105: 44 | T105: 105 | U105: 62 | V105: 69 | W105: 91 | X105: 10 | Y105: 31 | Z105: 92 | AA105: 70 | DT105: 100 | DU105: 101 | DV105: 101 | DX105: 1 | EB105: 97 | ED105: 101 | EE105: (100) | EF105: (-)
A106: 102 (101) | B106: Gunnar Lundbeck | C106: Tingsryd | D106: 69.76923077 | F106: 26 | G106: 1814 | I106: 0 | J106: 0 | K106: 0 | L106: 0 | M106: 0 | N106: 48 | O106: 33 | P106: 71 | Q106: 51 | R106: 56 | S106: 71 | T106: 123 | U106: 86 | V106: 66 | W106: 76 | X106: 56 | Y106: 98 | Z106: 82 | AA106: 58 | AB106: 57 | AC106: 110 | AD106: 91 | AE106: 59 | AF106: 72 | AG106: 54 | AH106: 28 | AI106: 50 | AJ106: 57 | AK106: 57 | AL106: 108 | AM106: 96 | DT106: 101 | DU106: 102 | DV106: 102 | DX106: 1 | EB106: 98 | ED106: 102 | EE106: (101) | EF106: (-)
A107: 103 (102) | B107: Karin Gullbrand | C107: Värends Hsk | D107: 57.77777778 | F107: 9 | G107: 520 | I107: 0 | J107: 0 | K107: 0 | L107: 0 | M107: 0 | N107: 48 | O107: 17 | P107: 47 | Q107: 51 | R107: 58 | S107: 77 | T107: 67 | U107: 124 | V107: 31 | DT107: 102 | DU107: =IF(AND(D107=D106,D107=D105,D107=D104,D107=D103),ROW(99:99),IF(AND(D107=D106,D107=D105,D107=D104),ROW(100:100),IF(AND(D107=D106,D107=D105),ROW(101:101),IF(D107=D106,ROW(102:102),IF(D107>1,ROW(103:103),"-"))))) -> 103 | DV107: 103 | DX107: 1 | EB107: 99 | ED107: 103 | EE107: (102) | EF107: (-)
A108: 104 (103) | B108: Lana Galea | C108: Tingsryd | D108: 57.5 | F108: 2 | G108: 115 | I108: 0 | J108: 0 | K108: 0 | L108: 0 | M108: 0 | N108: 50 | O108: 65 | DT108: 103 | DU108: 104 | DV108: 104 | DX108: 1 | EB108: 100 | ED108: 104 | EE108: (103) | EF108: (-)
A109: 105 (104) | B109: Tommy Svensson | C109: Värends Hsk | D109: 55.25 | F109: 8 | G109: 442 | I109: 0 | J109: 0 | K109: 0 | L109: 0 | M109: 0 | N109: 44 | O109: 40 | P109: 47 | Q109: 89 | R109: 64 | S109: 72 | T109: 51 | U109: 35 | DT109: 104 | DU109: 105 | DV109: 105 | DX109: 1 | EB109: 101 | ED109: 105 | EE109: (104) | EF109: (-)
A110: 106 (105) | B110: Hanna Karlberg | C110: Jämjö Hsk | D110: 52 | F110: 9 | G110: 468 | I110: 0 | J110: 0 | K110: 0 | L110: 0 | M110: 0 | N110: 68 | O110: 72 | P110: 60 | Q110: 57 | R110: 30 | S110: 45 | T110: 65 | U110: 40 | V110: 31 | DT110: 105 | DU110: 106 | DV110: 106 | DX110: 1 | EB110: 102 | ED110: 106 | EE110: (105) | EF110: (-)
A111: 107 (106) | B111: Mikael Klaving | C111: Vaxholm Hsk | D111: 51.5 | F111: 2 | G111: 103 | I111: 0 | J111: 0 | K111: 0 | L111: 0 | M111: 0 | N111: 45 | O111: 58 | DT111: 106 | DU111: 107 | DV111: 107 | DX111: 1 | EB111: 110 | ED111: 107 | EE111: (106) | EF111: (-)
A112: 108 (107) | B112: Christer Brincner | C112: Värends Hsk | D112: 46.5 | F112: 2 | G112: 93 | I112: 0 | J112: 0 | K112: 0 | L112: 0 | M112: 0 | N112: 72 | O112: 21 | DT112: 107 | DU112: 108 | DV112: 108 | DX112: 1 | EB112: 103 | ED112: 108 | EE112: (107) | EF112: (-)
A113: 109 (109) | B113: Hans Johansson | C113: Korpen Nybro | D113: 34 | F113: 5 | G113: 170 | I113: 0 | J113: 0 | K113: 0 | L113: 0 | M113: 0 | N113: 21 | O113: 34 | P113: 37 | Q113: 35 | R113: 43 | DT113: 109 | DU113: 109 | DV113: 109 | DX113: 1 | EB113: 104 | ED113: 109 | EE113: (109) | EF113: (-)
A114: 110 (110) | B114: Kent Svensson | C114: Lanternan | D114: 32 | F114: 4 | G114: 128 | I114: 0 | J114: 0 | K114: 0 | L114: 0 | M114: 0 | N114: 55 | O114: 14 | P114: 33 | Q114: 26 | DT114: 110 | DU114: 110 | DV114: 110 | DX114: 1 | EB114: 105 | ED114: 110 | EE114: (110) | EF114: (-)
A115: - (-) | B115: Ulrika Strandahl | C115: Växjö | D115: 0 | F115: 0 | G115: 0 | I115: 0 | J115: 0 | K115: 0 | L115: 0 | M115: 0 | DT115: - | DU115: - | DV115: 111 | DX115: 1 | EB115: 106 | ED115: - | EE115: (-) | EF115: (-)
A116: 111 (111) | B116: Solveig Brincner | C116: Värends Hsk | D116: 0 | F116: 0 | G116: 0 | I116: 0 | J116: 0 | K116: 0 | L116: 0 | M116: 0 | DT116: 111 | DU116: 111 | DV116: 112 | DX116: 1 | EB116: 107 | ED116: 111 | EE116: (111) | EF116: (-)
A117: 111 (111) | D117: 0 | F117: 0 | G117: 0 | I117: 0 | J117: 0 | K117: 0 | L117: 0 | M117: 0 | DT117: 111 | DU117: 111 | DV117: 113 | DX117: 1 | EB117: 108 | ED117: 111 | EE117: (111) | EF117: (-)
A118: 111 (111) | D118: 0 | F118: 0 | G118: 0 | I118: 0 | J118: 0 | K118: 0 | L118: 0 | M118: 0 | DT118: 111 | DU118: 111 | DV118: 114 | DX118: 1 | EB118: 109 | ED118: 111 | EE118: (111) | EF118: (-)
A119: 111 (111) | D119: 0 | F119: 0 | G119: 0 | I119: 0 | J119: 0 | K119: 0 | L119: 0 | M119: 0 | DT119: 111 | DU119: 111 | DV119: 115 | DX119: 1 | EB119: 112 | ED119: 111 | EE119: (111) | EF119: (-)
A120: 112 (112) | D120: 0 | F120: 0 | G120: 0 | I120: 0 | J120: 0 | K120: 0 | L120: 0 | M120: 0 | DT120: 112 | DU120: 112 | DV120: 116 | DX120: 1 | EB120: 110 | ED120: 112 | EE120: (112) | EF120: (-)
A121: 113 (113) | D121: 0 | F121: 0 | G121: 0 | I121: 0 | J121: 0 | K121: 0 | L121: 0 | M121: 0 | DT121: 113 | DU121: =IF(AND(D121=D120,D121=D119,D121=D118,D121=D117),ROW(113:113),IF(AND(D121=D120,D121=D119,D121=D118),ROW(114:114),IF(AND(D121=D120,D121=D119),ROW(115:115),IF(D121=D120,ROW(116:116),IF(D121>1,ROW(117:117),"-"))))) -> 113 | DV121: =IF(DX121=1,ROW(117:117),"-") -> 117 | DX121: 1 | EB121: 111 | ED121: =IF(DX121=1,DU121,IF(DX121="",DU121,"")) -> 113 | EE121: =IF(DX121=1,"("&DT121&")","("&DV121&")") -> (113) | EF121: (-)
A122: 114 (114) | D122: 0 | F122: 0 | G122: 0 | I122: 0 | J122: 0 | K122: 0 | L122: 0 | M122: 0 | DT122: 114 | DU122: =IF(AND(D122=D121,D122=D120,D122=D119,D122=D118),ROW(114:114),IF(AND(D122=D121,D122=D120,D122=D119),ROW(115:115),IF(AND(D122=D121,D122=D120),ROW(116:116),IF(D122=D121,ROW(117:117),IF(D122>1,ROW(118:118),"-"))))) -> 114 | DV122: =IF(DX122=1,ROW(118:118),"-") -> 118 | DX122: 1 | EB122: 113 | ED122: =IF(DX122=1,DU122,IF(DX122="",DU122,"")) -> 114 | EE122: =IF(DX122=1,"("&DT122&")","("&DV122&")") -> (114) | EF122: (-)
A123: 115 (115) | D123: 0 | F123: 0 | G123: 0 | I123: 0 | J123: 0 | K123: 0 | L123: 0 | M123: 0 | DT123: 115 | DU123: =IF(AND(D123=D122,D123=D121,D123=D120,D123=D119),ROW(115:115),IF(AND(D123=D122,D123=D121,D123=D120),ROW(116:116),IF(AND(D123=D122,D123=D121),ROW(117:117),IF(D123=D122,ROW(118:118),IF(D123>1,ROW(119:119),"-"))))) -> 115 | DV123: =IF(DX123=1,ROW(119:119),"-") -> 119 | DX123: 1 | EB123: 113 | ED123: =IF(DX123=1,DU123,IF(DX123="",DU123,"")) -> 115 | EE123: =IF(DX123=1,"("&DT123&")","("&DV123&")") -> (115) | EF123: (-)
